Body Name,Service Area,Expenses Type,Invoice Payment Date,Transaction Number,Net Amount,Supplier Name
Manchester City Council,Manchester Leisure,Contract Cleaning External,01.06.2016,5100862392,615.00,Clearview Event Services Limited
Manchester City Council,Manchester Leisure,Contract Cleaning External,01.06.2016,5100862394,615.00,Clearview Event Services Limited
Manchester City Council,Manchester Leisure,Contract Cleaning External,01.06.2016,5100862401,615.00,Clearview Event Services Limited
Manchester City Council,Manchester Leisure,Contract Cleaning External,01.06.2016,5100862409,615.00,Clearview Event Services Limited
Manchester City Council,Manchester Leisure,Contract Cleaning External,01.06.2016,5100862385,530.00,Clearview Event Services Limited
Manchester City Council,Manchester Leisure,Contract Cleaning External,01.06.2016,5100862391,530.00,Clearview Event Services Limited
Manchester City Council,Manchester Leisure,Contract Cleaning External,01.06.2016,5100862396,530.00,Clearview Event Services Limited
Manchester City Council,Manchester Leisure,Grant and subscriptions awarded,01.06.2016,5100862365,"4,000.00",Port Sunlight Village Trust
Manchester City Council,Hospitality + Trading Services,Data Registration Fee,01.06.2016,1905128962,854.00,HMCS Traffic EC
Manchester City Council,Adult Social Care,Bed and Breakfast Accommodation Expenditure,01.06.2016,5100862335,"-7,000.00",Weaste Hotel
Manchester City Council,Adult Social Care,Bed and Breakfast Accommodation Expenditure,01.06.2016,5100862334,"-7,580.00",Weaste Hotel
Manchester City Council,Adult Social Care,Equipment,01.06.2016,5100862321,"1,995.00",After Adoption
Manchester City Council,Adult Social Care,Expenditure re Internal Trading Ordered Externally,01.06.2016,5100862372,"2,750.00",Open Objects Software Ltd
Manchester City Council,Adult Social Care,Foster Payments,01.06.2016,1905137523,"1,223.77",Redacted Personal Information
Manchester City Council,Adult Social Care,Foster Payments,01.06.2016,1905137517,"1,215.44",Redacted Personal Information
Manchester City Council,Adult Social Care,Foster Payments,01.06.2016,1905137525,"1,200.72",Redacted Personal Information
Manchester City Council,Adult Social Care,Foster Payments,01.06.2016,1905137519,646.85,Redacted Personal Information
Manchester City Council,Adult Social Care,Foster Payments,01.06.2016,1905137520,561.32,Redacted Personal Information
Manchester City Council,Adult Social Care,Grant and subscriptions awarded,01.06.2016,5100862307,"2,700.00",Simply Cycling - Wyth Wheelers
Manchester City Council,Adult Social Care,Payments for services,01.06.2016,5100862316,"20,667.00",After Adoption
Manchester City Council,Adult Social Care,Stationery,01.06.2016,5100859079,"1,881.40",Northgate Public Services (UK) Ltd
Manchester City Council,Adult Social Care,Supporting People Payments,01.06.2016,5100862313,"103,514.29",Creative Support Ltd
Manchester City Council,Adult Social Care,Third party payments relating to Voluntary Organisations,01.06.2016,5100862327,750.00,Simply Cycling - Wyth Wheelers
Manchester City Council,Adult Social Care,Third party payments relating to Voluntary Organisations,01.06.2016,5100862338,750.00,Simply Cycling - Wyth Wheelers
Manchester City Council,Adult Social Care,Third party payments relating to Voluntary Organisations,01.06.2016,5100862333,-750.00,Simply Cycling - Wyth Wheelers
Manchester City Council,Adult Social Care,Third party payments to Health Authority,01.06.2016,5100862329,"8,443.33",Independent Life Solutions
Manchester City Council,Adult Social Care,Third party payments to Health Authority,01.06.2016,5100862309,"6,000.00",Independent Life Solutions
Manchester City Council,Adult Social Care,Third party payments to Health Authority,01.06.2016,5100862332,"1,360.00",Independent Life Solutions
Manchester City Council,Adult Social Care,Third party payments to other Local Authorities,01.06.2016,5100862369,874.00,Derbyshire County Council
Manchester City Council,Adult Social Care,Transport Coach Hire,01.06.2016,5100862377,"41,257.50",APTSL
Manchester City Council,Adult Social Care,Transport Coach Hire,01.06.2016,5100862284,"2,273.00",Redacted Personal Information
Manchester City Council,Adult Social Care,Transport Coach Hire,01.06.2016,5100862374,"2,219.00",Nelson Transport
Manchester City Council,Corporate Services,Works and associated costs for Land and Buildings,01.06.2016,5100862301,"20,989.00",Manchester Working Ltd
Manchester City Council,Corporate Services,Works and associated costs for Land and Buildings,01.06.2016,5100854784,"8,099.71",Manchester Working Ltd
Manchester City Council,Housing Revenue Account,Council Dwelling Adaptations,01.06.2016,5100862408,"13,280.97",Northwards Housing Limited
Manchester City Council,Chief Executives,Agency staff provision,01.06.2016,5100862347,"1,233.73",Bs Project Services Ltd T/A
Manchester City Council,Chief Executives,Agency staff provision,01.06.2016,5100862347,774.21,Bs Project Services Ltd T/A
Manchester City Council,Chief Executives,Equipment,01.06.2016,5100862368,"10,906.24",Xerox (Uk) Ltd
Manchester City Council,Chief Executives,Postage,01.06.2016,5100860759,"7,847.47",Royal Mail Group Plc
Manchester City Council,Regeneration Finance,Agency staff provision,01.06.2016,5100862347,"1,374.45",Bs Project Services Ltd T/A
Manchester City Council,Regeneration Finance,Licences Purchase,01.06.2016,1905137547,552.00,Driver and Vehicle Licensing Agency
Manchester City Council,Regeneration Finance,Professional fees,01.06.2016,5100862276,"6,800.00",DTZ Debenham Tie Leung Ltd
Manchester City Council,Regeneration Finance,Professional fees,01.06.2016,5100862302,"4,700.00",Keelagher Okey Associates Ltd t/a
Manchester City Council,Regeneration Finance,Taxi Vehicle Materials,01.06.2016,5100862303,"3,373.50",New Auto Ltd T/A Mogo (Uk)
Manchester City Council,Manchester Leisure,Building Materials for direct delivery,02.06.2016,5100862491,"10,732.00",Arboricultural Services Treework
Manchester City Council,Manchester Leisure,Compensation Payments,02.06.2016,1905105649,500.00,Redacted Personal Information
Manchester City Council,Manchester Leisure,Contract Cleaning External,02.06.2016,5100862422,802.50,Clearview Event Services Limited
Manchester City Council,Manchester Leisure,Contract Cleaning External,02.06.2016,5100862413,615.00,Clearview Event Services Limited
Manchester City Council,Manchester Leisure,Contract Cleaning External,02.06.2016,5100862417,615.00,Clearview Event Services Limited
Manchester City Council,Manchester Leisure,Contract Cleaning External,02.06.2016,5100862418,615.00,Clearview Event Services Limited
Manchester City Council,Manchester Leisure,Contract Cleaning External,02.06.2016,5100862419,615.00,Clearview Event Services Limited
Manchester City Council,Manchester Leisure,Contract Cleaning External,02.06.2016,5100862423,615.00,Clearview Event Services Limited
Manchester City Council,Manchester Leisure,Grant Payments,02.06.2016,1905129770,"1,250.00",Higher Blackley Comm.Assoc.
Manchester City Council,Manchester Leisure,Grant Payments,02.06.2016,1905131894,"1,000.00",Close Neighbours Residents Assoc
Manchester City Council,Manchester Leisure,Payments for services,02.06.2016,5100862431,"4,375.00",Greater Manchester Community
Manchester City Council,Manchester Leisure,Payments to Sub-Contractors,02.06.2016,5100862460,"19,993.42",Biffa Municipal Limited
Manchester City Council,Manchester Leisure,Payments to Sub-Contractors,02.06.2016,5100862459,"16,216.48",Biffa Municipal Limited
Manchester City Council,Manchester Leisure,Professional fees,02.06.2016,5100862406,"2,600.00",The Composer Works Limited
Manchester City Council,Manchester Leisure,Training and Development,02.06.2016,5100862436,773.20,Trident Crisis Solutions Ltd
Manchester City Council,Manchester Leisure,Works and associated costs for Land and Buildings,02.06.2016,5100862540,"10,000.00",Austin-Smith:Lord LLP
Manchester City Council,Manchester Leisure,Works and associated costs for Land and Buildings,02.06.2016,5100862540,"10,000.00",Austin-Smith:Lord LLP
Manchester City Council,Manchester Leisure,Works and associated costs for Land and Buildings,02.06.2016,5100862543,"-10,000.00",Austin-Smith:Lord LLP
Manchester City Council,Manchester Leisure,Works and associated costs for Land and Buildings,02.06.2016,5100862543,"-10,000.00",Austin-Smith:Lord LLP
Manchester City Council,Hospitality + Trading Services,Building Materials for direct delivery,02.06.2016,5100862572,542.78,TARMAC
Manchester City Council,Hospitality + Trading Services,Data Registration Fee,02.06.2016,1905128961,"1,435.00",HMCS Traffic EC
Manchester City Council,Hospitality + Trading Services,Data Registration Fee,02.06.2016,1905137511,539.00,HMCS Traffic EC
Manchester City Council,Hospitality + Trading Services,Electricity,02.06.2016,1905137719,"1,002.91",Scottish & Southern Energy Plc
Manchester City Council,Hospitality + Trading Services,Internal Repairs and Maintenance for buildings,02.06.2016,5100862561,"1,500.00",Concerto Support Services
Manchester City Council,Hospitality + Trading Services,Internal Repairs and Maintenance for buildings,02.06.2016,5100862544,"-1,500.00",Concerto Support Services
Manchester City Council,Hospitality + Trading Services,Payments to Sub-Contractors,02.06.2016,5100862424,"4,814.95",Northern Marking Limited
Manchester City Council,Hospitality + Trading Services,Payments to Sub-Contractors,02.06.2016,5100862536,"2,996.10",Northern Marking Limited
Manchester City Council,Hospitality + Trading Services,Payments to Sub-Contractors,02.06.2016,5100862421,"2,839.92",Northern Marking Limited
Manchester City Council,Hospitality + Trading Services,Payments to Sub-Contractors,02.06.2016,5100862425,"1,745.80",Northern Marking Limited
Manchester City Council,Hospitality + Trading Services,Payments to Sub-Contractors,02.06.2016,5100859638,"1,579.33",Northern Marking Limited
Manchester City Council,Hospitality + Trading Services,Payments to Sub-Contractors,02.06.2016,5100862534,"-2,996.10",Northern Marking Limited
Manchester City Council,Hospitality + Trading Services,Publications,02.06.2016,1905137521,924.00,HMCS Traffic EC
Manchester City Council,Hospitality + Trading Services,Rents,02.06.2016,1905129786,"2,348.93",St Modwen Corporate Services Ltd
Manchester City Council,Hospitality + Trading Services,Vehicle Hire Costs,02.06.2016,5100862559,"43,823.84",Manchester Van Hire Ltd
Manchester City Council,Hospitality + Trading Services,Window Cleaning,02.06.2016,5100862445,"1,250.00",Ultra Cleaning Service
Manchester City Council,Environment and Operations,Electricity,02.06.2016,1905137722,"2,905.62",Scottish & Southern Energy Plc
Manchester City Council,Adult Social Care,Agency staff provision,02.06.2016,5100862469,865.00,SRA Cover Staff Ltd
Manchester City Council,Adult Social Care,Agency staff provision,02.06.2016,5100862469,727.23,SRA Cover Staff Ltd
Manchester City Council,Adult Social Care,Agency staff provision,02.06.2016,5100862469,692.00,SRA Cover Staff Ltd
Manchester City Council,Adult Social Care,Agency staff provision,02.06.2016,5100862469,687.68,SRA Cover Staff Ltd
Manchester City Council,Adult Social Care,Agency staff provision,02.06.2016,5100862469,575.10,SRA Cover Staff Ltd
Manchester City Council,Adult Social Care,Agency staff provision,02.06.2016,5100862469,569.39,SRA Cover Staff Ltd
Manchester City Council,Adult Social Care,Agency staff provision,02.06.2016,5100862469,563.53,SRA Cover Staff Ltd
Manchester City Council,Adult Social Care,Agency staff provision,02.06.2016,5100862469,519.00,SRA Cover Staff Ltd
Manchester City Council,Adult Social Care,Bed and Breakfast Accommodation Expenditure,02.06.2016,5100862325,"8,470.00",Weaste Hotel
Manchester City Council,Adult Social Care,Bed and Breakfast Accommodation Expenditure,02.06.2016,5100862360,"7,580.00",Weaste Hotel
Manchester City Council,Adult Social Care,Bed and Breakfast Accommodation Expenditure,02.06.2016,5100861906,"7,140.00",Weaste Hotel
Manchester City Council,Adult Social Care,Bed and Breakfast Accommodation Expenditure,02.06.2016,5100862324,"-8,470.00",Weaste Hotel
Manchester City Council,Adult Social Care,Hire of Premises,02.06.2016,5100862513,666.67,Barlow Moor Community Association
Manchester City Council,Adult Social Care,Payments for services,02.06.2016,5100862452,"3,822.12",Rossendale School Priory
Manchester City Council,Adult Social Care,Professional fees,02.06.2016,5100862447,"28,000.00",Wythenshawe Community Housing Group
Manchester City Council,Adult Social Care,Professional fees,02.06.2016,5100862512,"1,680.00",Adoption Matters Northwest
Manchester City Council,Adult Social Care,Professional fees,02.06.2016,1905131887,"1,170.00",Stockport Psychology Services
Manchester City Council,Adult Social Care,Refuse Collection,02.06.2016,1905137763,602.71,BRITISH GAS TRADIN
Manchester City Council,Adult Social Care,Rents,02.06.2016,5100862448,"60,760.50",B & A Properties
Manchester City Council,Adult Social Care,Third party payments relating to Voluntary Organisations,02.06.2016,5100862465,"36,855.00",Welfare Call (LAC) Ltd
Manchester City Council,Adult Social Care,Third party payments relating to Voluntary Organisations,02.06.2016,5100862466,"36,855.00",Welfare Call (LAC) Ltd
Manchester City Council,Adult Social Care,Third party payments relating to Voluntary Organisations,02.06.2016,5100862274,"2,000.00",The Lesbian & Gay Foundation
Manchester City Council,Adult Social Care,Third party payments relating to Voluntary Organisations,02.06.2016,5100862275,"2,000.00",The Lesbian & Gay Foundation
Manchester City Council,Adult Social Care,Third party payments relating to Voluntary Organisations,02.06.2016,5100858036,"1,898.25",Wythenshawe Community Housing Group
Manchester City Council,Adult Social Care,Third party payments relating to Voluntary Organisations,02.06.2016,5100862450,"1,500.00",Afro Carribean Care Group
Manchester City Council,Adult Social Care,Third party payments to other Local Authorities,02.06.2016,5100862305,"8,500.22",Tameside Metropolitan Bouough
Manchester City Council,Adult Social Care,Training and Development,02.06.2016,5100862570,"13,492.57",NOMS
Manchester City Council,Adult Social Care,Training and Development,02.06.2016,5100862580,"13,492.57",NOMS
Manchester City Council,Adult Social Care,Training and Development,02.06.2016,5100855576,"3,054.24",NOMS
Manchester City Council,Adult Social Care,Training and Development,02.06.2016,5100862573,"-13,492.57",NOMS
Manchester City Council,Childrens Services,Building Works,02.06.2016,5100862497,"132,780.01",United Learning Trust
Manchester City Council,Corporate Services,Licences Purchase,02.06.2016,5100859780,950.62,Wolters Kluwer (Uk) Ltd
Manchester City Council,Corporate Services,Professional fees,02.06.2016,5100862546,"22,500.00",Deloitte & Touche Llp
Manchester City Council,Corporate Services,Works and associated costs for Land and Buildings,02.06.2016,5100862461,"6,219.89",Squire Sanders (UK) LLP
Manchester City Council,Housing General Fund,Surplus property Fees,02.06.2016,1905124666,"1,500.00",Eversheds LLP
Manchester City Council,Housing Revenue Account,Council Dwelling Adaptations,02.06.2016,5100862434,544.56,JTC Furniture Group
Manchester City Council,Housing Revenue Account,Electricity,02.06.2016,1905137720,"1,231.85",Scottish & Southern Energy Plc
Manchester City Council,Housing Revenue Account,Professional fees,02.06.2016,5100862289,"2,869.85",University Of Salford
Manchester City Council,Chief Executives,Agency staff provision,02.06.2016,5100862469,"1,422.87",SRA Cover Staff Ltd
Manchester City Council,Chief Executives,Agency staff provision,02.06.2016,5100862469,781.90,SRA Cover Staff Ltd
Manchester City Council,Chief Executives,Electricity,02.06.2016,5100862213,"15,808.60",Principal Agent Management Ltd
Manchester City Council,Chief Executives,Printing,02.06.2016,5100862449,830.00,Intermart
Manchester City Council,Chief Executives,Printing,02.06.2016,5100862339,560.00,Contact Photographic Services Ltd
Manchester City Council,Regeneration Finance,Gas,02.06.2016,5100862330,686.17,Barlow Hall Primary School
Manchester City Council,Regeneration Finance,Gas,02.06.2016,5100862344,607.19,Barlow Hall Primary School
Manchester City Council,Regeneration Finance,Professional fees,02.06.2016,5100862476,"10,000.00",The Carbon and Energy Fund Ltd
Manchester City Council,Regeneration Finance,Professional fees,02.06.2016,5100862414,750.00,Turner & Townsend Project
Manchester City Council,Regeneration Finance,Professional fees,02.06.2016,5100862415,575.00,Turner & Townsend Project
Manchester City Council,Regeneration Finance,Professional fees,02.06.2016,5100862515,-575.00,Turner & Townsend Project
Manchester City Council,Regeneration Finance,Professional fees,02.06.2016,5100862516,-750.00,Turner & Townsend Project
Manchester City Council,Regeneration Finance,Storage Costs,02.06.2016,5100862485,750.05,Data Space Limited
Manchester City Council,Regeneration Finance,Subsistence and Conference Expenses,02.06.2016,1905137795,948.42,RENAISSANCE BEIJING WA
Manchester City Council,Regeneration Finance,Water Service Charges - Unmetered,02.06.2016,1905137723,"4,338.25",United Utilities Water Plc
Manchester City Council,Insurance Fund,Miscellaneous Insurance Premium,02.06.2016,1905106260,"318,674.00",Municipal Mutual Insurance Ltd
Manchester City Council,GMIST (Greater Mcr Integrated),I T Provision,02.06.2016,5100862541,"1,677.33",Computacenter (UK) Ltd
Manchester City Council,Manchester Leisure,Bed and Breakfast Accommodation Expenditure,03.06.2016,1905137828,"1,735.00",Village
Manchester City Council,Manchester Leisure,Contract Cleaning External,03.06.2016,5100862744,"1,631.90",Clearview Event Services Limited
Manchester City Council,Manchester Leisure,Contract Cleaning External,03.06.2016,5100862746,"1,631.90",Clearview Event Services Limited
Manchester City Council,Manchester Leisure,Contract Cleaning External,03.06.2016,5100862743,"1,609.30",Clearview Event Services Limited
Manchester City Council,Manchester Leisure,Contract Cleaning External,03.06.2016,5100862745,"1,586.70",Clearview Event Services Limited
Manchester City Council,Manchester Leisure,Grant and subscriptions awarded,03.06.2016,5100862345,"1,016.00",Pathways CIC
Manchester City Council,Manchester Leisure,Hire of Premises,03.06.2016,5100862620,"1,080.75",Compass Group UK
Manchester City Council,Manchester Leisure,Hire of Premises,03.06.2016,5100862640,"1,080.75",Compass Group UK
Manchester City Council,Manchester Leisure,Hire of Premises,03.06.2016,5100862747,"1,080.75",Compass Group UK
Manchester City Council,Manchester Leisure,Hire of Premises,03.06.2016,5100862627,"-1,080.75",Compass Group UK
Manchester City Council,Manchester Leisure,Hire of Premises,03.06.2016,5100862653,"-1,080.75",Compass Group UK
Manchester City Council,Manchester Leisure,Payments to Sub-Contractors,03.06.2016,5100862694,"2,228.52",Manchester Dogs Home
Manchester City Council,Manchester Leisure,Payments to Sub-Contractors,03.06.2016,1905137828,500.00,Village
Manchester City Council,Manchester Leisure,Professional fees,03.06.2016,1905122307,"3,500.00",Redacted Personal Information
Manchester City Council,Manchester Leisure,Rents,03.06.2016,5100862748,960.00,Holy Trinity Parish Hall
Manchester City Council,Manchester Leisure,Travel,03.06.2016,1905137828,658.00,Village
Manchester City Council,Hospitality + Trading Services,Building Materials for direct delivery,03.06.2016,5100862805,"9,849.07",Marshalls Mono Ltd
Manchester City Council,Hospitality + Trading Services,Building Materials for direct delivery,03.06.2016,5100862803,"9,817.09",Marshalls Mono Ltd
Manchester City Council,Hospitality + Trading Services,Hire of Equipment,03.06.2016,5100862286,"5,384.00",Mahood Marquees Ltd
Manchester City Council,Hospitality + Trading Services,Hire of Machinery,03.06.2016,5100862716,"2,373.96",One Stop Hire Limited
Manchester City Council,Hospitality + Trading Services,Hire of Machinery,03.06.2016,5100862716,"2,373.96",One Stop Hire Limited
Manchester City Council,Hospitality + Trading Services,Hire of Machinery,03.06.2016,5100862721,854.64,Gibsons Garden Machinery Limited
Manchester City Council,Hospitality + Trading Services,Hire of Machinery,03.06.2016,5100862722,-733.02,Gibsons Garden Machinery Limited
Manchester City Council,Hospitality + Trading Services,Payments to Sub-Contractors,03.06.2016,5100862603,"22,930.00",Kenny Bros (Civil Eng) Ltd
Manchester City Council,Hospitality + Trading Services,Payments to Sub-Contractors,03.06.2016,5100862606,"18,710.00",Kenny Bros (Civil Eng) Ltd
Manchester City Council,Hospitality + Trading Services,Payments to Sub-Contractors,03.06.2016,5100862597,"15,170.00",Kenny Bros (Civil Eng) Ltd
Manchester City Council,Hospitality + Trading Services,Payments to Sub-Contractors,03.06.2016,5100862608,"5,508.00",Kenny Bros (Civil Eng) Ltd
Manchester City Council,Hospitality + Trading Services,Payments to Sub-Contractors,03.06.2016,5100862610,"1,836.00",Kenny Bros (Civil Eng) Ltd
Manchester City Council,Hospitality + Trading Services,Payments to Sub-Contractors,03.06.2016,5100862591,"1,800.00",Kenny Bros (Civil Eng) Ltd
Manchester City Council,Hospitality + Trading Services,Payments to Sub-Contractors,03.06.2016,5100862607,"1,474.92",Kenny Bros (Civil Eng) Ltd
Manchester City Council,Hospitality + Trading Services,Payments to Sub-Contractors,03.06.2016,5100862616,867.00,Kenny Bros (Civil Eng) Ltd
Manchester City Council,Hospitality + Trading Services,Payments to Sub-Contractors,03.06.2016,5100862618,642.60,Kenny Bros (Civil Eng) Ltd
Manchester City Council,Hospitality + Trading Services,Purchase of stores for re-distribution,03.06.2016,5100862802,"2,483.60",Marshalls Mono Ltd
Manchester City Council,Hospitality + Trading Services,Security,03.06.2016,5100862709,"2,895.00",Cerberus Security Ltd
Manchester City Council,Hospitality + Trading Services,Security,03.06.2016,5100862712,876.75,Chubb  Systems Limited
Manchester City Council,Hospitality + Trading Services,Vehicle Hire Costs,03.06.2016,5100862521,"5,801.60",Specialist Vehicle rental
Manchester City Council,Hospitality + Trading Services,Vehicle Repairs,03.06.2016,5100862311,"1,750.88",LDS Motor Bodies Ltd
Manchester City Council,Hospitality + Trading Services,Vehicle Repairs,03.06.2016,5100862314,"1,019.40",LDS Motor Bodies Ltd
Manchester City Council,Hospitality + Trading Services,Vehicle Repairs,03.06.2016,5100862312,966.20,LDS Motor Bodies Ltd
Manchester City Council,Environment and Operations,Compensation Payments,03.06.2016,1905132004,"15,000.00",Ald Legal Ltd
Manchester City Council,Environment and Operations,Compensation Payments,03.06.2016,1905131912,"6,135.00",Tranter Cleere & Co
Manchester City Council,Environment and Operations,Compensation Payments,03.06.2016,1905137551,"2,400.00",Altius Law
Manchester City Council,Environment and Operations,Compensation Payments,03.06.2016,1905137495,"2,000.00",JMW Solicitors
Manchester City Council,Environment and Operations,Compensation Payments,03.06.2016,1905137494,"1,400.00",Accountant General of the Senior
Manchester City Council,Environment and Operations,Compensation Payments,03.06.2016,1905137553,"1,200.03",Admiral Group
Manchester City Council,Environment and Operations,Compensation Payments,03.06.2016,1905132000,829.00,Department For Work & Pensions
Manchester City Council,Environment and Operations,Compensation Payments,03.06.2016,1905131999,627.00,Department For Work & Pensions
Manchester City Council,Environment and Operations,Compensation Payments,03.06.2016,1905137772,"1,102.43",Department For Work & Pensions
Manchester City Council,Environment and Operations,Compensation Payments,03.06.2016,1905137510,"2,193.00",JMW Solicitors
Manchester City Council,Environment and Operations,Compensation Payments,03.06.2016,1905131912,"2,366.60",Tranter Cleere & Co
Manchester City Council,Environment and Operations,Compensation Payments,03.06.2016,1905132015,"4,137.54",CM Solicitors
Manchester City Council,Environment and Operations,Compensation Payments,03.06.2016,1905137500,"5,250.00",Clifford Johnston & Co
Manchester City Council,Environment and Operations,Compensation Payments,03.06.2016,1905137550,"10,000.00",Altius Law
Manchester City Council,Adult Social Care,Bed and Breakfast Accommodation Expenditure,03.06.2016,5100862639,"8,150.00",Redacted Personal Information
Manchester City Council,Adult Social Care,Internal Repairs and Maintenance for buildings,03.06.2016,1905124324,700.00,Redacted Personal Information
Manchester City Council,Adult Social Care,Payments for services,03.06.2016,5100862587,"231,243.18",Standwalk Ltd
Manchester City Council,Adult Social Care,Professional fees,03.06.2016,5100862707,"4,050.00",Redacted Personal Information
Manchester City Council,Adult Social Care,Professional fees,03.06.2016,5100862685,"2,000.00",Capita Asset Services
Manchester City Council,Adult Social Care,Rents,03.06.2016,5100862713,"27,575.30",Medlock Primary School
Manchester City Council,Adult Social Care,Subsistence and Conference Expenses,03.06.2016,5100862643,"1,120.00",Trinity College London
Manchester City Council,Adult Social Care,Supporting People Payments,03.06.2016,5100862686,"11,666.66",The Depaul Trust
Manchester City Council,Adult Social Care,Supporting People Payments,03.06.2016,5100862499,"11,407.94",DISC Ltd
Manchester City Council,Adult Social Care,Supporting People Payments,03.06.2016,5100862683,"5,000.00",The Depaul Trust
Manchester City Council,Adult Social Care,Supporting People Payments,03.06.2016,5100862498,"3,200.33",DISC Ltd
Manchester City Council,Adult Social Care,Third party payments relating to Voluntary Organisations,03.06.2016,5100862651,"2,250.00",Wai Yin Society
Manchester City Council,Adult Social Care,Third party payments relating to Voluntary Organisations,03.06.2016,5100862652,"2,250.00",Wai Yin Society
Manchester City Council,Adult Social Care,Third party payments relating to Voluntary Organisations,03.06.2016,5100862547,750.00,Simply Cycling - Wyth Wheelers
Manchester City Council,Adult Social Care,Compensation Payments,03.06.2016,1905131895,613.00,Arcos
Manchester City Council,Adult Social Care,Compensation Payments,03.06.2016,1905137545,"1,035.00",Redacted Personal Information
Manchester City Council,Adult Social Care,Compensation Payments,03.06.2016,1905137552,"10,750.00",Sharp Young & Pearce Solicitors
Manchester City Council,Corporate Services,Postage,03.06.2016,5100862511,"2,106.13",Royal Mail Group Plc
Manchester City Council,Corporate Services,Printing,03.06.2016,5100862310,"1,145.00",Mail Solutions
Manchester City Council,Corporate Services,Works and associated costs for Land and Buildings,03.06.2016,5100862723,"23,803.00",Manchester Working Ltd
Manchester City Council,Housing General Fund,Council Dwellings - Demolition,03.06.2016,5100862568,"5,413.78",Northwards Housing Limited
Manchester City Council,Housing General Fund,Works and associated costs for Land and Buildings,03.06.2016,5100862613,"2,735.71",Northwards Housing Limited
Manchester City Council,Housing General Fund,Works and associated costs for Land and Buildings,03.06.2016,5100862612,"1,689.74",Northwards Housing Limited
Manchester City Council,Housing Revenue Account,Council Dwellings - Demolition,03.06.2016,5100862609,"20,499.64",Northwards Housing Limited
Manchester City Council,Housing Revenue Account,Rents,03.06.2016,5100862376,"40,284.49",Fasset
Manchester City Council,Housing Revenue Account,Supporting People Payments,03.06.2016,5100862622,"1,538.46",Northwards Housing Limited
Manchester City Council,Chief Executives,General Office expenses,03.06.2016,5100857603,"1,000.00",Redacted Personal Information
Manchester City Council,Chief Executives,Hire of Equipment,03.06.2016,5100862464,648.45,Itw Envopak
Manchester City Council,Regeneration Finance,External repairs and maintenance for buildings,03.06.2016,5100862681,"7,072.65",Laing O'Rourke Construction Ltd
Manchester City Council,Regeneration Finance,Professional fees,03.06.2016,5100862646,"25,000.00",Diginus Limited
Manchester City Council,GMIST (Greater Mcr Integrated),Goods Received Invoice Received,03.06.2016,5100862742,"-1,758.14",Zurich Insurance
Manchester City Council,Manchester Leisure,Advertising,06.06.2016,5100862895,"1,125.00",Redacted Personal Information
Manchester City Council,Manchester Leisure,Foster Payments,06.06.2016,1905140623,"2,530.00",Redacted Personal Information
Manchester City Council,Manchester Leisure,Grounds Maintenance Costs,06.06.2016,5100862375,"11,074.00",A P Broome Landscapes Ltd
Manchester City Council,Manchester Leisure,Professional fees,06.06.2016,5100862585,680.00,Height Lift & Shift Ltd
Manchester City Council,Manchester Leisure,Special Events,06.06.2016,5100862268,"51,820.00",Walk The Plank Ltd
Manchester City Council,Hospitality + Trading Services,Building Materials for direct delivery,06.06.2016,5100862785,"1,230.00",Viewprint
Manchester City Council,Hospitality + Trading Services,Building Materials for direct delivery,06.06.2016,5100862849,720.95,Marshalls Mono Ltd
Manchester City Council,Hospitality + Trading Services,Catering Provisions,06.06.2016,1905140609,"60,792.49",Ralph Livesey Ltd
Manchester City Council,Hospitality + Trading Services,Catering Provisions,06.06.2016,1905139730,866.51,Chicken Joes Limited
Manchester City Council,Hospitality + Trading Services,Catering Provisions,06.06.2016,1905139772,504.29,BRAMBLES FOODS LTD
Manchester City Council,Hospitality + Trading Services,Cleaning Equipment and Materials,06.06.2016,1905138723,625.00,St Paul's CE Primary School
Manchester City Council,Hospitality + Trading Services,Compensation Payments,06.06.2016,1905137496,"119,753.80",Thompsons Solicitors
Manchester City Council,Hospitality + Trading Services,Compensation Payments,06.06.2016,1905138648,"2,025.00",HLW Keeble Hewson LLP
Manchester City Council,Hospitality + Trading Services,Equipment,06.06.2016,5100862984,540.00,W.V.Howe Ltd
Manchester City Council,Hospitality + Trading Services,Hire of Machinery,06.06.2016,5100862669,"2,943.60",Gibsons Garden Machinery Limited
Manchester City Council,Hospitality + Trading Services,Hire of Machinery,06.06.2016,5100862736,"1,780.32",Gibsons Garden Machinery Limited
Manchester City Council,Hospitality + Trading Services,Hire of Machinery,06.06.2016,5100862672,"1,632.40",Gibsons Garden Machinery Limited
Manchester City Council,Hospitality + Trading Services,Hire of Machinery,06.06.2016,5100862734,"1,253.48",Gibsons Garden Machinery Limited
Manchester City Council,Hospitality + Trading Services,Hire of Machinery,06.06.2016,5100862807,"1,038.50",R & M Developments Ltd
Manchester City Council,Hospitality + Trading Services,Hire of Machinery,06.06.2016,5100862810,"1,022.10",R & M Developments Ltd
Manchester City Council,Hospitality + Trading Services,Hire of Machinery,06.06.2016,5100862717,976.80,Gibsons Garden Machinery Limited
Manchester City Council,Hospitality + Trading Services,Hire of Machinery,06.06.2016,5100862666,726.00,Gibsons Garden Machinery Limited
Manchester City Council,Hospitality + Trading Services,Hire of Machinery,06.06.2016,5100862735,535.12,Gibsons Garden Machinery Limited
Manchester City Council,Hospitality + Trading Services,I T Provision,06.06.2016,5100859202,630.00,Ncc Services Limited
Manchester City Council,Hospitality + Trading Services,Licences Purchase,06.06.2016,5100862675,836.38,Symology Limited
Manchester City Council,Hospitality + Trading Services,Payments to Sub-Contractors,06.06.2016,5100862317,"35,076.00",Groundwork Landscapes Ltd
Manchester City Council,Hospitality + Trading Services,Purchase of stores for re-distribution,06.06.2016,5100862565,"2,617.60",Instarmac Group Ltd
Manchester City Council,Hospitality + Trading Services,Purchase of stores for re-distribution,06.06.2016,5100862753,"1,185.00",Kloeckner Metals UK
Manchester City Council,Hospitality + Trading Services,Royalties Payable,06.06.2016,1905129690,"31,437.00",The Barlow R.C.High School
Manchester City Council,Hospitality + Trading Services,Royalties Payable,06.06.2016,1905129689,"30,196.00",Abraham Moss Community School
Manchester City Council,Hospitality + Trading Services,Royalties Payable,06.06.2016,1905130223,"22,238.00",Manchester Communication Academy
Manchester City Council,Hospitality + Trading Services,Royalties Payable,06.06.2016,1905130242,"6,412.00",St Paul's Catholic High School (Aca
Manchester City Council,Hospitality + Trading Services,Transport Coach Hire,06.06.2016,5100862982,"2,510.00",APTSL
Manchester City Council,Hospitality + Trading Services,Vehicle Hire Costs,06.06.2016,5100862277,"70,872.22",Winners Contract Hire Ltd
Manchester City Council,Hospitality + Trading Services,Vehicle Repairs,06.06.2016,5100862645,"1,800.61",Advanced Vehicle Technicians Ltd
Manchester City Council,Hospitality + Trading Services,Legal Fees,06.06.2016,1905137781,600.00,Redacted Personal Information
Manchester City Council,Hospitality + Trading Services,Compensation Payments,06.06.2016,1905137904,"2,269.25",HLW Keeble Hewson LLP
Manchester City Council,Environment and Operations,Grant and subscriptions awarded,06.06.2016,5100862371,"5,380.00",Warrington Borough Council
Manchester City Council,Environment and Operations,Private Finance and Public Private partnership initiatives,06.06.2016,5100862801,"630,520.09",Amey Highways Lighting (Manchester)
Manchester City Council,Environment and Operations,Professional fees,06.06.2016,5100862400,"3,088.05",Amey OW Limited
Manchester City Council,Environment and Operations,Compensation Payments,06.06.2016,1905137826,637.00,Department For Work & Pensions
Manchester City Council,Environment and Operations,Compensation Payments,06.06.2016,1905137814,750.00,Redacted Personal Information
Manchester City Council,Adult Social Care,Agency staff provision,06.06.2016,5100862662,"9,150.18",Remedi
Manchester City Council,Adult Social Care,Agency staff provision,06.06.2016,5100863026,"3,171.29",Ashberry Recruitment Ltd
Manchester City Council,Adult Social Care,Agency staff provision,06.06.2016,5100862985,"1,995.31",SRA Cover Staff Ltd
Manchester City Council,Adult Social Care,Agency staff provision,06.06.2016,5100862985,975.12,SRA Cover Staff Ltd
Manchester City Council,Adult Social Care,Agency staff provision,06.06.2016,5100862985,920.16,SRA Cover Staff Ltd
Manchester City Council,Adult Social Care,Agency staff provision,06.06.2016,5100862985,830.40,SRA Cover Staff Ltd
Manchester City Council,Adult Social Care,Agency staff provision,06.06.2016,5100862985,830.40,SRA Cover Staff Ltd
Manchester City Council,Adult Social Care,Agency staff provision,06.06.2016,5100862985,738.48,SRA Cover Staff Ltd
Manchester City Council,Adult Social Care,Agency staff provision,06.06.2016,5100862985,684.72,SRA Cover Staff Ltd
Manchester City Council,Adult Social Care,Agency staff provision,06.06.2016,5100862985,644.14,SRA Cover Staff Ltd
Manchester City Council,Adult Social Care,Agency staff provision,06.06.2016,5100862985,556.37,SRA Cover Staff Ltd
Manchester City Council,Adult Social Care,Agency staff provision,06.06.2016,5100862985,519.00,SRA Cover Staff Ltd
Manchester City Council,Adult Social Care,Agency staff provision,06.06.2016,5100862985,500.85,SRA Cover Staff Ltd
Manchester City Council,Adult Social Care,Agency staff provision,06.06.2016,5100863025,"-3,171.29",Ashberry Recruitment Ltd
Manchester City Council,Adult Social Care,Bed and Breakfast Accommodation Expenditure,06.06.2016,5100862818,"13,106.03",G & A Taylor Hotels Ltd
Manchester City Council,Adult Social Care,Catering,06.06.2016,5100862353,"18,754.75",SPIE FS Northern UK Ltd
Manchester City Council,Adult Social Care,Payments for services,06.06.2016,1905124444,"3,454.00",Thorley Day Nursery
Manchester City Council,Adult Social Care,Payments for services,06.06.2016,1905122329,"2,763.00",Elmscot Day Nursery Ltd
Manchester City Council,Adult Social Care,Payments for services,06.06.2016,5100862664,"2,428.50",Remedi
Manchester City Council,Adult Social Care,Personal needs of client,06.06.2016,5100862482,"1,200.00",Ultimate Healthcare
Manchester City Council,Adult Social Care,Professional fees,06.06.2016,5100862494,"4,950.00",Redacted Personal Information
Manchester City Council,Adult Social Care,Professional fees,06.06.2016,5100862701,900.00,Andrew Lagden Education Consultants
Manchester City Council,Adult Social Care,Professional fees,06.06.2016,1905137766,783.66,Hencewell
Manchester City Council,Adult Social Care,Rents,06.06.2016,5100862829,"45,997.71",Accommodation Links Ltd
Manchester City Council,Adult Social Care,Rents,06.06.2016,1905138720,600.00,Hallsworth & Co
Manchester City Council,Adult Social Care,Signers/Interpreters Fees,06.06.2016,5100862361,"1,100.00",Interpreter Booking Services
Manchester City Council,Adult Social Care,Storage Costs,06.06.2016,5100862637,"1,107.00",Apex Self Storage Ltd
Manchester City Council,Adult Social Care,Third party payments relating to Voluntary Organisations,06.06.2016,5100862647,"50,000.00",Career Connect
Manchester City Council,Adult Social Care,Third party payments relating to Voluntary Organisations,06.06.2016,5100862711,"42,954.00",Gaddum Centre
Manchester City Council,Adult Social Care,Third party payments relating to Voluntary Organisations,06.06.2016,5100862554,"8,158.00",Greater Manchester Immigration Aid
Manchester City Council,Adult Social Care,Third party payments relating to Voluntary Organisations,06.06.2016,5100862440,"5,000.00",Sleep Safe Digital Ltd
Manchester City Council,Adult Social Care,Third party payments relating to Voluntary Organisations,06.06.2016,5100862692,"1,612.50",GMCVO
Manchester City Council,Adult Social Care,Third party payments to Health Authority,06.06.2016,5100862774,"68,060.00",NHS Greater Manchester CSU
Manchester City Council,Adult Social Care,Third party payments to Health Authority,06.06.2016,5100862772,"-68,060.00",NHS Greater Manchester CSU
Manchester City Council,Adult Social Care,Third party payments to other Local Authorities,06.06.2016,5100863094,"66,342.64",Bury M.B.C.
Manchester City Council,Adult Social Care,Third party payments to other Local Authorities,06.06.2016,5100863095,"-66,342.64",Bury M.B.C.
Manchester City Council,Adult Social Care,Training and Development,06.06.2016,5100862630,"1,320.00",Right 2 Write Ltd
Manchester City Council,Adult Social Care,Transport Coach Hire,06.06.2016,5100862331,"6,745.00",Redacted Personal Information
Manchester City Council,Adult Social Care,Transport Coach Hire,06.06.2016,5100862439,"5,225.00",D.J. Minibus Travel
Manchester City Council,Adult Social Care,Transport Coach Hire,06.06.2016,5100862280,"3,230.00",Ricks Travel
Manchester City Council,Adult Social Care,Transport Coach Hire,06.06.2016,5100862407,"2,565.00",Connect Cars Ltd
Manchester City Council,Adult Social Care,Transport Coach Hire,06.06.2016,5100862282,"1,805.00",JKR Travel
Manchester City Council,Adult Social Care,Transport Coach Hire,06.06.2016,5100862304,"1,710.00",T/A Beresford Travel
Manchester City Council,Adult Social Care,Transport Coach Hire,06.06.2016,5100862477,"1,710.00",Liddle Hackney Carriage
Manchester City Council,Adult Social Care,Transport Coach Hire,06.06.2016,5100862351,"1,444.00",Connect Cars Ltd
Manchester City Council,Adult Social Care,Transport Coach Hire,06.06.2016,5100862356,"1,440.00",Connect Cars Ltd
Manchester City Council,Adult Social Care,Transport Coach Hire,06.06.2016,5100862405,"1,045.00",Connect Cars Ltd
Manchester City Council,Adult Social Care,Transport Coach Hire,06.06.2016,5100862354,990.00,Connect Cars Ltd
Manchester City Council,Adult Social Care,Transport Coach Hire,06.06.2016,5100862402,986.00,Connect Cars Ltd
Manchester City Council,Childrens Services,Building Works,06.06.2016,5100862496,"330,949.67",United Learning Trust
Manchester City Council,Corporate Services,Agency staff provision,06.06.2016,5100862832,"1,374.45",Bennett Staff Bureau
Manchester City Council,Corporate Services,Professional fees,06.06.2016,5100862287,"19,500.00",GVA Grimley Ltd
Manchester City Council,Corporate Services,Professional fees,06.06.2016,5100862290,"3,500.00",GVA Grimley Ltd
Manchester City Council,Corporate Services,Training and Development,06.06.2016,5100862973,780.00,CIPFA NW & NW Audit Group
Manchester City Council,Corporate Services,Transport Taxis,06.06.2016,1905140610,"10,098.14",Mantax Radio Taxis Ltd
Manchester City Council,Housing Revenue Account,Council Dwelling Adaptations,06.06.2016,5100862986,"211,065.36",Manchester Working Ltd
Manchester City Council,Chief Executives,Agency staff provision,06.06.2016,5100862985,"6,576.25",SRA Cover Staff Ltd
Manchester City Council,Chief Executives,Agency staff provision,06.06.2016,5100863016,"3,760.29",Hays Personnel
Manchester City Council,Chief Executives,Agency staff provision,06.06.2016,5100862504,"2,676.45",Spring Technology Staffing Services
Manchester City Council,Chief Executives,Agency staff provision,06.06.2016,5100862352,"2,410.00",Michael Page International
Manchester City Council,Chief Executives,Agency staff provision,06.06.2016,5100862352,"2,353.53",Michael Page International
Manchester City Council,Chief Executives,Agency staff provision,06.06.2016,5100862503,"1,911.75",Spring Technology Staffing Services
Manchester City Council,Chief Executives,Hire of Premises,06.06.2016,5100862367,526.00,Quaker Trading Ltd
Manchester City Council,Chief Executives,Printing,06.06.2016,5100862549,"1,385.00",Allied Publicity Serv.(Manchester)
Manchester City Council,Chief Executives,Printing,06.06.2016,5100862420,920.00,Premier Paper Group Ltd
Manchester City Council,Chief Executives,Printing,06.06.2016,5100862756,920.00,Premier Paper Group Ltd
Manchester City Council,Chief Executives,Printing,06.06.2016,5100862754,-920.00,Premier Paper Group Ltd
Manchester City Council,Chief Executives,Vehicle Plant Furniture and Equipment,06.06.2016,5100862542,"3,042.96",Computacenter (UK) Ltd
Manchester City Council,Chief Executives,"Vehicles, Plant, Furniture & Equip - Adaptations",06.06.2016,5100862352,"1,764.70",Michael Page International
Manchester City Council,Chief Executives,Legal Fees,06.06.2016,1905137544,"1,750.00",Redacted Personal Information
Manchester City Council,Chief Executives,Compensation Payments,06.06.2016,1905137549,"2,366.98",Hughes Walker Solicitors Ltd
Manchester City Council,Regeneration Finance,I T Provision,06.06.2016,5100862479,"22,231.46",Computacenter (UK) Ltd
Manchester City Council,Regeneration Finance,I T Provision,06.06.2016,5100862411,"2,315.78",Computacenter (UK) Ltd
Manchester City Council,Regeneration Finance,Professional fees,06.06.2016,5100862395,"7,728.92",Keelagher Okey Associates Ltd t/a
Manchester City Council,Regeneration Finance,Professional fees,06.06.2016,5100862343,"5,688.00",AECOM Limited
Manchester City Council,Regeneration Finance,Professional fees,06.06.2016,5100862500,"4,641.55",Lancaster Maloney Ltd
Manchester City Council,Regeneration Finance,Professional fees,06.06.2016,5100862501,"4,273.54",Lancaster Maloney Ltd
Manchester City Council,Regeneration Finance,Professional fees,06.06.2016,5100862398,"1,568.75",ABG Design
Manchester City Council,Regeneration Finance,Professional fees,06.06.2016,5100862393,925.00,ABG Design
Manchester City Council,Regeneration Finance,Professional fees,06.06.2016,5100862478,911.00,Mott Macdonald Uk Limited
Manchester City Council,Regeneration Finance,Professional fees,06.06.2016,5100862518,750.00,Turner & Townsend Project
Manchester City Council,Regeneration Finance,Professional fees,06.06.2016,5100862517,575.00,Turner & Townsend Project
Manchester City Council,General Fund,CRC Carbon reduction charge,06.06.2016,1905121580,"515,200.00",Department of Energy & Climate Chan
Manchester City Council,Insurance Fund,Insurance,06.06.2016,1905137497,"4,015.60",Slater & Gordon (UK) LLP
Manchester City Council,Insurance Fund,Insurance,06.06.2016,1905137805,700.00,Redacted Personal Information
Manchester City Council,Manchester Leisure,Building Materials for direct delivery,07.06.2016,5100863211,"2,074.00",Adactus Housing Group Ltd
Manchester City Council,Manchester Leisure,Building Materials for direct delivery,07.06.2016,5100863201,557.00,Adactus Housing Group Ltd
Manchester City Council,Manchester Leisure,Building Materials for direct delivery,07.06.2016,5100863204,-557.00,Adactus Housing Group Ltd
Manchester City Council,Manchester Leisure,Building Materials for direct delivery,07.06.2016,5100863215,"-2,074.00",Adactus Housing Group Ltd
Manchester City Council,Manchester Leisure,Equipment,07.06.2016,5100862617,"1,152.84",Crosby'S
Manchester City Council,Manchester Leisure,Grounds Maintenance Costs,07.06.2016,5100863246,"3,240.00",Iss Facility Services Limited
Manchester City Council,Manchester Leisure,Grounds Maintenance Costs,07.06.2016,5100863245,"-3,240.00",Iss Facility Services Limited
Manchester City Council,Manchester Leisure,Payments to Sub-Contractors,07.06.2016,5100863315,"3,118.15",Community Security (North West)
Manchester City Council,Manchester Leisure,Professional fees,07.06.2016,5100863102,"6,613.83",Big Up Productions Ltd t/a Nuff
Manchester City Council,Manchester Leisure,Special Events,07.06.2016,5100858660,"3,700.00",Star Autos Ltd
Manchester City Council,Hospitality + Trading Services,Courier Costs,07.06.2016,5100862891,"3,332.00",Scalamander Business Services Ltd
Manchester City Council,Hospitality + Trading Services,Hire of Machinery,07.06.2016,5100863090,"45,552.20",F.R.Sharrock Ltd
Manchester City Council,Hospitality + Trading Services,Hire of Machinery,07.06.2016,5100862725,"1,559.48",Gibsons Garden Machinery Limited
Manchester City Council,Hospitality + Trading Services,Hire of Machinery,07.06.2016,5100862728,-649.08,Gibsons Garden Machinery Limited
Manchester City Council,Hospitality + Trading Services,Internal Repairs and Maintenance for buildings,07.06.2016,5100862740,"27,019.88",Manchester Working Ltd
Manchester City Council,Hospitality + Trading Services,Purchase of stores for re-distribution,07.06.2016,5100863190,"2,744.31",Cooper Clarke Group Ltd
Manchester City Council,Hospitality + Trading Services,Vehicle Costs,07.06.2016,5100863028,"5,130.00",Crystal Ball Ltd
Manchester City Council,Environment and Operations,Construction Works,07.06.2016,5100863180,"24,017.50",Atkins Limited
Manchester City Council,Environment and Operations,Construction Works,07.06.2016,5100863184,"15,982.50",Atkins Limited
Manchester City Council,Environment and Operations,Construction Works,07.06.2016,5100862602,921.10,GMCA
Manchester City Council,Environment and Operations,Construction Works,07.06.2016,5100863186,"-40,000.00",Atkins Limited
Manchester City Council,Adult Social Care,Agency staff provision,07.06.2016,5100863003,"1,683.96",Reed Employment Plc
Manchester City Council,Adult Social Care,Agency staff provision,07.06.2016,5100863073,"1,259.73",Ashberry Recruitment Ltd
Manchester City Council,Adult Social Care,Agency staff provision,07.06.2016,5100863073,853.65,Ashberry Recruitment Ltd
Manchester City Council,Adult Social Care,Bed and Breakfast Accommodation Expenditure,07.06.2016,5100862881,"7,530.00",Redacted Personal Information
Manchester City Council,Adult Social Care,Compensation Payments,07.06.2016,1905130219,"10,000.00",Simpson Millar Solicitors LLP
Manchester City Council,Adult Social Care,Funeral and coroner related services,07.06.2016,5100863098,"1,153.00",Funeral Prtnrs t/a Michael Kennedy
Manchester City Council,Adult Social Care,Furniture,07.06.2016,5100862991,"1,139.39",The Furnishing Service Ltd
Manchester City Council,Adult Social Care,Professional fees,07.06.2016,5100863299,"10,945.02",Places for People Living +
Manchester City Council,Adult Social Care,Professional fees,07.06.2016,5100863320,"-10,945.02",Places for People Living +
Manchester City Council,Adult Social Care,Rents,07.06.2016,5100863078,"23,195.43",Accommodation Links Ltd
Manchester City Council,Adult Social Care,Security,07.06.2016,5100862886,"1,012.50",WADSWORTH SECURITY PRODUCTS
Manchester City Council,Adult Social Care,Supporting People Payments,07.06.2016,5100863088,"23,028.50",Sanctuary Housing Association
Manchester City Council,Adult Social Care,Third party payments relating to Voluntary Organisations,07.06.2016,5100863034,"19,623.00",Proper Job Theatre company
Manchester City Council,Adult Social Care,Third party payments relating to Voluntary Organisations,07.06.2016,5100863216,"17,071.00",Breakthrough Uk Ltd
Manchester City Council,Adult Social Care,Third party payments relating to Voluntary Organisations,07.06.2016,5100863039,"6,014.98",Manchester Carers Centre
Manchester City Council,Adult Social Care,Third party payments relating to Voluntary Organisations,07.06.2016,5100863041,"6,014.98",Manchester Carers Centre
Manchester City Council,Adult Social Care,Third party payments relating to Voluntary Organisations,07.06.2016,5100863213,989.00,NEPHRA residents Association
Manchester City Council,Adult Social Care,Training and Development,07.06.2016,5100863083,660.00,Greater Manchester Fire & Rescue
Manchester City Council,Adult Social Care,Transport Coach Hire,07.06.2016,5100862654,"5,496.40",Parkway Cabs & Cars
Manchester City Council,Adult Social Care,Transport Coach Hire,07.06.2016,5100862328,"4,541.00",Redacted Personal Information
Manchester City Council,Adult Social Care,Transport Coach Hire,07.06.2016,5100862342,"2,033.00",Redacted Personal Information
Manchester City Council,Adult Social Care,Transport Coach Hire,07.06.2016,5100863093,"1,710.00",G.M Travel
Manchester City Council,Adult Social Care,Transport Coach Hire,07.06.2016,5100862319,"1,710.00",Exec-Coach Services
Manchester City Council,Adult Social Care,Transport Coach Hire,07.06.2016,5100863023,"-5,496.40",Parkway Cabs & Cars
Manchester City Council,Adult Social Care,Legal Fees,07.06.2016,1905137505,"5,221.75",Redacted Personal Information
Manchester City Council,Adult Social Care,Legal Fees,07.06.2016,1905137498,"5,486.80",Redacted Personal Information
Manchester City Council,Adult Social Care,Compensation Payments,07.06.2016,1905132016,"1,500.00",Jordans Solicitors
Manchester City Council,Adult Social Care,Compensation Payments,07.06.2016,1905128958,"1,550.00",Simpson Millar Solicitors LLP
Manchester City Council,Adult Social Care,Compensation Payments,07.06.2016,1905124698,"2,400.00",Simpson Millar Solicitors LLP
Manchester City Council,Adult Social Care,Compensation Payments,07.06.2016,1905137817,"6,300.00",Simpson Millar Solicitors LLP
Manchester City Council,Adult Social Care,Compensation Payments,07.06.2016,1905137506,"7,000.00",Simpson Millar Solicitors LLP
Manchester City Council,Adult Social Care,Compensation Payments,07.06.2016,1905124663,"7,400.00",Simpson Millar Solicitors LLP
Manchester City Council,Adult Social Care,Compensation Payments,07.06.2016,1905124662,"8,000.00",Simpson Millar Solicitors LLP
Manchester City Council,Adult Social Care,Compensation Payments,07.06.2016,1905137783,"9,500.00",Simpson Millar Solicitors LLP
Manchester City Council,Adult Social Care,Compensation Payments,07.06.2016,1905124660,"10,000.00",Simpson Millar Solicitors LLP
Manchester City Council,Adult Social Care,Compensation Payments,07.06.2016,1905124679,"10,500.00",Simpson Millar Solicitors LLP
Manchester City Council,Adult Social Care,Compensation Payments,07.06.2016,1905137816,"16,000.00",Simpson Millar Solicitors LLP
Manchester City Council,Corporate Services,Agency staff provision,07.06.2016,5100863003,832.30,Reed Employment Plc
Manchester City Council,Corporate Services,Transport Taxis,07.06.2016,1905140665,"16,948.00",Street Cars
Manchester City Council,Corporate Services,Travel,07.06.2016,1905131919,"24,993.55",Trainline.com Limited
Manchester City Council,Corporate Services,Travel Season Ticket Loan Scheme,07.06.2016,5100862437,550.00,Stagecoach Manchester
Manchester City Council,Corporate Services,Travel Season Ticket Loan Scheme,07.06.2016,5100862437,550.00,Stagecoach Manchester
Manchester City Council,Corporate Services,Travel Season Ticket Loan Scheme,07.06.2016,5100862437,550.00,Stagecoach Manchester
Manchester City Council,Corporate Services,Travel Season Ticket Loan Scheme,07.06.2016,5100862437,550.00,Stagecoach Manchester
Manchester City Council,Corporate Services,Welfare Provision Service Awards,07.06.2016,5100863267,819.17,The Furnishing Service Ltd
Manchester City Council,Corporate Services,Welfare Provision Service Awards,07.06.2016,5100863312,805.37,The Furnishing Service Ltd
Manchester City Council,Corporate Services,Welfare Provision Service Awards,07.06.2016,5100863259,789.70,The Furnishing Service Ltd
Manchester City Council,Corporate Services,Welfare Provision Service Awards,07.06.2016,5100863313,745.48,The Furnishing Service Ltd
Manchester City Council,Corporate Services,Welfare Provision Service Awards,07.06.2016,5100863287,689.13,The Furnishing Service Ltd
Manchester City Council,Corporate Services,Welfare Provision Service Awards,07.06.2016,5100862994,676.27,The Furnishing Service Ltd
Manchester City Council,Corporate Services,Welfare Provision Service Awards,07.06.2016,5100863269,653.36,The Furnishing Service Ltd
Manchester City Council,Corporate Services,Welfare Provision Service Awards,07.06.2016,5100863263,629.24,The Furnishing Service Ltd
Manchester City Council,Corporate Services,Welfare Provision Service Awards,07.06.2016,5100863296,629.24,The Furnishing Service Ltd
Manchester City Council,Corporate Services,Welfare Provision Service Awards,07.06.2016,5100862988,608.19,The Furnishing Service Ltd
Manchester City Council,Corporate Services,Welfare Provision Service Awards,07.06.2016,5100862992,572.89,The Furnishing Service Ltd
Manchester City Council,Corporate Services,Welfare Provision Service Awards,07.06.2016,5100862993,572.89,The Furnishing Service Ltd
Manchester City Council,Corporate Services,Welfare Provision Service Awards,07.06.2016,5100863286,572.89,The Furnishing Service Ltd
Manchester City Council,Corporate Services,Welfare Provision Service Awards,07.06.2016,5100863273,560.03,The Furnishing Service Ltd
Manchester City Council,Corporate Services,Welfare Provision Service Awards,07.06.2016,5100863270,545.96,The Furnishing Service Ltd
Manchester City Council,Corporate Services,Welfare Provision Service Awards,07.06.2016,5100862976,538.98,The Furnishing Service Ltd
Manchester City Council,Corporate Services,Welfare Provision Service Awards,07.06.2016,5100863274,536.85,The Furnishing Service Ltd
Manchester City Council,Corporate Services,Welfare Provision Service Awards,07.06.2016,5100863262,532.13,The Furnishing Service Ltd
Manchester City Council,Corporate Services,Welfare Provision Service Awards,07.06.2016,5100863314,532.13,The Furnishing Service Ltd
Manchester City Council,Corporate Services,Welfare Provision Service Awards,07.06.2016,5100863272,525.86,The Furnishing Service Ltd
Manchester City Council,Corporate Services,Welfare Provision Service Awards,07.06.2016,5100863311,525.86,The Furnishing Service Ltd
Manchester City Council,Housing General Fund,Professional fees,07.06.2016,5100863203,"4,650.00",Experian  Ltd
Manchester City Council,Housing General Fund,Surplus property Acquisitions,07.06.2016,1905140617,"3,332.67",S Kershaw & Sons
Manchester City Council,Housing Revenue Account,Private Finance and Public Private partnership initiatives,07.06.2016,5100863051,"32,292.52",Manchester Energy Company Limited
Manchester City Council,Chief Executives,Advertising,07.06.2016,5100863109,877.50,TES Global Ltd
Manchester City Council,Chief Executives,Advertising,07.06.2016,5100863111,877.50,TES Global Ltd
Manchester City Council,Chief Executives,Advertising,07.06.2016,5100863117,877.50,TES Global Ltd
Manchester City Council,Chief Executives,Advertising,07.06.2016,5100863119,877.50,TES Global Ltd
Manchester City Council,Chief Executives,Advertising,07.06.2016,5100863120,877.50,TES Global Ltd
Manchester City Council,Chief Executives,Advertising,07.06.2016,5100863121,877.50,TES Global Ltd
Manchester City Council,Chief Executives,Advertising,07.06.2016,5100863122,877.50,TES Global Ltd
Manchester City Council,Chief Executives,Advertising,07.06.2016,5100863123,877.50,TES Global Ltd
Manchester City Council,Chief Executives,Advertising,07.06.2016,5100863125,877.50,TES Global Ltd
Manchester City Council,Chief Executives,Advertising,07.06.2016,5100863126,877.50,TES Global Ltd
Manchester City Council,Chief Executives,Advertising,07.06.2016,5100863127,877.50,TES Global Ltd
Manchester City Council,Chief Executives,Advertising,07.06.2016,5100863129,877.50,TES Global Ltd
Manchester City Council,Chief Executives,Advertising,07.06.2016,5100863107,745.87,TES Global Ltd
Manchester City Council,Chief Executives,Advertising,07.06.2016,5100863108,710.10,TES Global Ltd
Manchester City Council,Chief Executives,Advertising,07.06.2016,5100863114,710.10,TES Global Ltd
Manchester City Council,Chief Executives,Advertising,07.06.2016,5100863115,710.10,TES Global Ltd
Manchester City Council,Chief Executives,Advertising,07.06.2016,5100863112,603.58,TES Global Ltd
Manchester City Council,Chief Executives,Agency staff provision,07.06.2016,5100862520,"7,135.51",Semester Recruitment Ltd
Manchester City Council,Chief Executives,Agency staff provision,07.06.2016,5100863073,"4,545.27",Ashberry Recruitment Ltd
Manchester City Council,Chief Executives,Agency staff provision,07.06.2016,5100863003,"2,635.36",Reed Employment Plc
Manchester City Council,Chief Executives,Agency staff provision,07.06.2016,5100863006,675.14,Network Ventures Ltd T/A Topcare
Manchester City Council,Chief Executives,Building Works,07.06.2016,5100863055,"7,450.24",The Co-Operative Group
Manchester City Council,Chief Executives,Equipment,07.06.2016,5100863165,"3,194.00",Neopost Ltd (Consumables)
Manchester City Council,Chief Executives,Printing,07.06.2016,5100862451,520.00,Intermart
Manchester City Council,Chief Executives,Training and Development,07.06.2016,5100857926,790.00,Gov Net communications
Manchester City Council,Chief Executives,Vehicle Plant Furniture and Equipment,07.06.2016,5100863207,"7,288.86",FTS Facilities
Manchester City Council,Chief Executives,"Vehicles, Plant, Furniture & Equip - Adaptations",07.06.2016,5100863003,"11,902.50",Reed Employment Plc
Manchester City Council,Chief Executives,Compensation Payments,07.06.2016,1905137825,535.25,Redacted Personal Information
Manchester City Council,Regeneration Finance,External repairs and maintenance for buildings,07.06.2016,5100862890,"3,350.00",Community Security (North West)
Manchester City Council,Regeneration Finance,External repairs and maintenance for buildings,07.06.2016,5100862889,"2,300.00",Community Security (North West)
Manchester City Council,Regeneration Finance,Professional fees,07.06.2016,5100863045,"5,000.00",Network Rail Property
Manchester City Council,Regeneration Finance,Professional fees,07.06.2016,5100863097,"2,220.75",Mpulse Ltd
Manchester City Council,Regeneration Finance,Professional fees,07.06.2016,5100863040,"-5,000.00",Turner & Townsend Project
Manchester City Council,Regeneration Finance,Professional fees,07.06.2016,5100863040,"-7,199.00",Turner & Townsend Project
Manchester City Council,Regeneration Finance,Security,07.06.2016,5100862484,670.00,Arboricultural Services Treework
Manchester City Council,Manchester Leisure,Contract Cleaning External,08.06.2016,5100863304,"1,631.90",Clearview Event Services Limited
Manchester City Council,Manchester Leisure,Contract Cleaning External,08.06.2016,5100863300,"1,609.30",Clearview Event Services Limited
Manchester City Council,Manchester Leisure,Contract Cleaning External,08.06.2016,5100863335,"1,609.30",Clearview Event Services Limited
Manchester City Council,Manchester Leisure,Equipment,08.06.2016,5100863360,550.00,Penrose Film Productions Ltd
Manchester City Council,Manchester Leisure,Grant and subscriptions awarded,08.06.2016,5100862800,"5,000.00",Greater Manchester Chamber of
Manchester City Council,Manchester Leisure,Grant Payments,08.06.2016,1905136675,"1,170.00",Creative Co-op
Manchester City Council,Manchester Leisure,Professional fees,08.06.2016,5100863426,"2,158.00",Association For Public
Manchester City Council,Hospitality + Trading Services,Building Materials for direct delivery,08.06.2016,1905146368,"2,686.40",Benchmark Building Supplies Ltd
Manchester City Council,Hospitality + Trading Services,Building Materials for direct delivery,08.06.2016,1905146369,"1,473.92",Benchmark Building Supplies Ltd
Manchester City Council,Hospitality + Trading Services,Catering Provisions,08.06.2016,1905146331,"1,037.47",Brake Bros Foodservice Ltd
Manchester City Council,Hospitality + Trading Services,Catering Provisions,08.06.2016,1905146319,631.12,Brake Bros Foodservice Ltd
Manchester City Council,Hospitality + Trading Services,Catering Provisions,08.06.2016,1905146314,569.89,Brake Bros Foodservice Ltd
Manchester City Council,Hospitality + Trading Services,Catering Provisions,08.06.2016,1905146330,527.06,Brake Bros Foodservice Ltd
Manchester City Council,Hospitality + Trading Services,Catering Provisions,08.06.2016,1905146312,525.63,Brake Bros Foodservice Ltd
Manchester City Council,Hospitality + Trading Services,"Clothes, Uniform and Laundry",08.06.2016,5100863362,"2,305.00",Slater Menswear
Manchester City Council,Hospitality + Trading Services,Payments to Sub-Contractors,08.06.2016,5100863474,"32,346.77",Clearway Drainage Systems Ltd
Manchester City Council,Hospitality + Trading Services,Payments to Sub-Contractors,08.06.2016,5100862875,"4,772.48",Custodian Monitoring
Manchester City Council,Hospitality + Trading Services,Payments to Sub-Contractors,08.06.2016,5100863338,"4,772.48",Custodian Monitoring
Manchester City Council,Hospitality + Trading Services,Payments to Sub-Contractors,08.06.2016,5100863332,"-4,772.48",Custodian Monitoring
Manchester City Council,Hospitality + Trading Services,Refuse Collection,08.06.2016,5100863059,546.87,G.G. Rentals Ltd
Manchester City Council,Environment and Operations,Compensation Payments,08.06.2016,1905140626,"1,000.00",Simpson Millar LLP
Manchester City Council,Environment and Operations,Compensation Payments,08.06.2016,1905140612,650.00,CGDM Ltd T/A
Manchester City Council,Environment and Operations,Compensation Payments,08.06.2016,1905139811,637.00,Department For Work & Pensions
Manchester City Council,Environment and Operations,Compensation Payments,08.06.2016,1905140612,"1,802.50",CGDM Ltd T/A
Manchester City Council,Adult Social Care,Agency staff provision,08.06.2016,5100863031,"1,049.13",Ashberry Recruitment Ltd
Manchester City Council,Adult Social Care,Agency staff provision,08.06.2016,5100863031,853.65,Ashberry Recruitment Ltd
Manchester City Council,Adult Social Care,Bed and Breakfast Accommodation Expenditure,08.06.2016,5100862882,"12,895.00",346 Ltd t/a Lansdowne Hotel
Manchester City Council,Adult Social Care,Payments for services,08.06.2016,5100863391,"9,127.90",The Together Trust
Manchester City Council,Adult Social Care,Payments for services,08.06.2016,5100863283,"8,533.71",4CT Limited
Manchester City Council,Adult Social Care,Payments for services,08.06.2016,5100863451,"5,462.96",The Together Trust
Manchester City Council,Adult Social Care,Payments for services,08.06.2016,5100863436,"2,876.00",The Together Trust
Manchester City Council,Adult Social Care,Payments for services,08.06.2016,5100863443,"2,373.38",The Together Trust
Manchester City Council,Adult Social Care,Payments for services,08.06.2016,5100863439,"1,144.83",The Together Trust
Manchester City Council,Adult Social Care,Payments for services,08.06.2016,5100863447,763.22,The Together Trust
Manchester City Council,Adult Social Care,Payments for services,08.06.2016,5100863431,533.12,The Together Trust
Manchester City Council,Adult Social Care,Professional fees,08.06.2016,5100857805,"1,750.00",JBS-R Associates
Manchester City Council,Adult Social Care,Professional fees,08.06.2016,5100863244,"1,485.90",Redacted Personal Information
Manchester City Council,Adult Social Care,Publications,08.06.2016,5100863236,750.00,Liverpool John Moores University
Manchester City Council,Adult Social Care,Publications,08.06.2016,5100863237,-750.00,Liverpool John Moores University
Manchester City Council,Adult Social Care,Rents,08.06.2016,5100863301,"8,451.75",Great Places Housing Association
Manchester City Council,Adult Social Care,Third party payments relating to Voluntary Organisations,08.06.2016,5100863220,996.00,NEPHRA residents Association
Manchester City Council,Adult Social Care,Third party payments to other Local Authorities,08.06.2016,5100863257,"5,755.84",Sale Grammar School
Manchester City Council,Adult Social Care,Third party payments to other Local Authorities,08.06.2016,5100863278,"4,860.25",Marlborough Road Academy
Manchester City Council,Adult Social Care,Third party payments to other Local Authorities,08.06.2016,5100863457,"2,100.00",Cheadle Royal Healthcare
Manchester City Council,Corporate Services,Fees,08.06.2016,5100862703,"2,250.00",Pannone Corporate LLP
Manchester City Council,Corporate Services,Licences Purchase,08.06.2016,5100863289,"2,400.00",Magique Galiloe Software Ltd
Manchester City Council,Corporate Services,Welfare Provision Service Awards,08.06.2016,5100863294,560.03,The Furnishing Service Ltd
Manchester City Council,Corporate Services,Welfare Provision Service Awards,08.06.2016,5100862935,538.98,The Furnishing Service Ltd
Manchester City Council,Housing Revenue Account,Council Dwelling Adaptations,08.06.2016,5100863444,"59,800.29",Manchester Working Ltd
Manchester City Council,Housing Revenue Account,Council Dwelling Adaptations,08.06.2016,5100863448,"5,778.30",Manchester Working Ltd
Manchester City Council,Housing Revenue Account,Council Dwelling Adaptations,08.06.2016,5100863456,"1,661.00",Stannah Lift Services Ltd
Manchester City Council,Housing Revenue Account,Council Dwelling Adaptations,08.06.2016,5100863453,"1,471.41",Chiltern Invadex Ltd
Manchester City Council,Housing Revenue Account,Council Dwelling Adaptations,08.06.2016,5100863358,"-42,602.89",SIG Roofing Supplies
Manchester City Council,Housing Revenue Account,Northwards Management Fee,08.06.2016,5100863146,"57,484.04",Northwards Housing Limited
Manchester City Council,Housing Revenue Account,Northwards Management Fee,08.06.2016,5100863147,"-57,484.04",Northwards Housing Limited
Manchester City Council,Housing Revenue Account,Professional fees,08.06.2016,5100862614,"3,450.00",Action for Sustainable Living Ltd
Manchester City Council,Chief Executives,Advertising,08.06.2016,5100863430,"2,205.00",The Law Society
Manchester City Council,Chief Executives,Advertising,08.06.2016,5100863290,"1,563.66",TES Global Ltd
Manchester City Council,Chief Executives,Advertising,08.06.2016,5100863295,"1,351.89",TES Global Ltd
Manchester City Council,Chief Executives,Advertising,08.06.2016,5100863322,"1,125.00",TES Global Ltd
Manchester City Council,Chief Executives,Advertising,08.06.2016,5100863381,"1,125.00",TES Global Ltd
Manchester City Council,Chief Executives,Advertising,08.06.2016,5100863383,"1,125.00",TES Global Ltd
Manchester City Council,Chief Executives,Advertising,08.06.2016,5100863386,"1,125.00",TES Global Ltd
Manchester City Council,Chief Executives,Advertising,08.06.2016,5100863248,877.50,TES Global Ltd
Manchester City Council,Chief Executives,Advertising,08.06.2016,5100863305,877.50,TES Global Ltd
Manchester City Council,Chief Executives,Advertising,08.06.2016,5100863309,877.50,TES Global Ltd
Manchester City Council,Chief Executives,Advertising,08.06.2016,5100863323,877.50,TES Global Ltd
Manchester City Council,Chief Executives,Advertising,08.06.2016,5100863326,877.50,TES Global Ltd
Manchester City Council,Chief Executives,Advertising,08.06.2016,5100863378,877.50,TES Global Ltd
Manchester City Council,Chief Executives,Advertising,08.06.2016,5100863379,877.50,TES Global Ltd
Manchester City Council,Chief Executives,Advertising,08.06.2016,5100863380,877.50,TES Global Ltd
Manchester City Council,Chief Executives,Advertising,08.06.2016,5100863382,877.50,TES Global Ltd
Manchester City Council,Chief Executives,Advertising,08.06.2016,5100863389,877.50,TES Global Ltd
Manchester City Council,Chief Executives,Advertising,08.06.2016,5100863392,750.00,Wythenshawe Community Media
Manchester City Council,Chief Executives,Advertising,08.06.2016,5100863238,710.10,TES Global Ltd
Manchester City Council,Chief Executives,Advertising,08.06.2016,5100863288,710.10,TES Global Ltd
Manchester City Council,Chief Executives,Advertising,08.06.2016,5100863307,710.10,TES Global Ltd
Manchester City Council,Chief Executives,Advertising,08.06.2016,5100863317,710.10,TES Global Ltd
Manchester City Council,Chief Executives,Advertising,08.06.2016,5100863319,710.10,TES Global Ltd
Manchester City Council,Chief Executives,Advertising,08.06.2016,5100863384,710.10,TES Global Ltd
Manchester City Council,Chief Executives,Advertising,08.06.2016,5100863387,710.10,TES Global Ltd
Manchester City Council,Chief Executives,Advertising,08.06.2016,5100863388,603.58,TES Global Ltd
Manchester City Council,Chief Executives,Agency staff provision,08.06.2016,5100863031,"18,134.13",Ashberry Recruitment Ltd
Manchester City Council,Chief Executives,Agency staff provision,08.06.2016,5100863437,647.15,Hays Personnel
Manchester City Council,Chief Executives,Expenditure re Internal Trading Ordered Externally,08.06.2016,1905138654,540.00,Redacted Personal Information
Manchester City Council,Chief Executives,Hire of Equipment,08.06.2016,5100863353,618.00,Universal Live
Manchester City Council,Chief Executives,Stationery,08.06.2016,5100863239,502.86,Shaw & Sons Ltd
Manchester City Council,Chief Executives,Telecoms Maintenance,08.06.2016,5100863240,500.00,T.I.S. Limited
Manchester City Council,Chief Executives,Works and associated costs for Land and Buildings,08.06.2016,5100863333,"13,000.00",Ove Arup & Partners Ltd
Manchester City Council,Chief Executives,Works and associated costs for Land and Buildings,08.06.2016,5100863324,"3,000.00",Deloitte & Touche Llp
Manchester City Council,Regeneration Finance,Agency staff provision,08.06.2016,5100862830,733.04,Bs Project Services Ltd T/A
Manchester City Council,Regeneration Finance,Car Parking Permits,08.06.2016,5100863027,"3,194.00",National Car Parks Ltd Season Ticke
Manchester City Council,Regeneration Finance,Car Parking Permits,08.06.2016,5100863385,"-3,194.00",National Car Parks Ltd Season Ticke
Manchester City Council,GMIST (Greater Mcr Integrated),Payments for services,08.06.2016,5100863276,"82,000.00",Wigan Metropolitan Borough Council
Manchester City Council,GMIST (Greater Mcr Integrated),Payments for services,08.06.2016,5100863280,"82,000.00",Wigan Metropolitan Borough Council
Manchester City Council,GMIST (Greater Mcr Integrated),Payments for services,08.06.2016,5100863277,"-82,000.00",Wigan Metropolitan Borough Council
Manchester City Council,Manchester Leisure,Electricity,09.06.2016,1905148764,599.04,Scottish & Southern Energy Plc
Manchester City Council,Manchester Leisure,Expenditure re Internal Trading Ordered Externally,09.06.2016,5100863044,"1,201.00",Wythenshawe Forum Trust Ltd
Manchester City Council,Manchester Leisure,Goods purchased for resale in Council outlets,09.06.2016,5100853636,836.30,Etnika
Manchester City Council,Manchester Leisure,Tree work,09.06.2016,5100863633,-877.50,Brentwood Moss Nurseries
Manchester City Council,Hospitality + Trading Services,Building Materials for direct delivery,09.06.2016,5100863521,663.16,TARMAC
Manchester City Council,Hospitality + Trading Services,Building Materials for direct delivery,09.06.2016,5100863524,531.93,TARMAC
Manchester City Council,Hospitality + Trading Services,Building Materials for direct delivery,09.06.2016,5100863489,504.76,TARMAC
Manchester City Council,Hospitality + Trading Services,Catering Provisions,09.06.2016,1905148644,839.22,Brake Bros Foodservice Ltd
Manchester City Council,Hospitality + Trading Services,Catering Provisions,09.06.2016,1905148638,692.24,Brake Bros Foodservice Ltd
Manchester City Council,Hospitality + Trading Services,Catering Provisions,09.06.2016,1905148658,667.40,THE NOISY DRINK CO
Manchester City Council,Hospitality + Trading Services,Catering Provisions,09.06.2016,1905148603,655.29,Brake Bros Foodservice Ltd
Manchester City Council,Hospitality + Trading Services,Catering Provisions,09.06.2016,1905148595,609.22,Brake Bros Foodservice Ltd
Manchester City Council,Hospitality + Trading Services,Catering Provisions,09.06.2016,1905148649,573.66,Brake Bros Foodservice Ltd
Manchester City Council,Hospitality + Trading Services,Catering Provisions,09.06.2016,1905148623,569.04,Brake Bros Foodservice Ltd
Manchester City Council,Hospitality + Trading Services,Catering Provisions,09.06.2016,1905148628,516.95,Brake Bros Foodservice Ltd
Manchester City Council,Hospitality + Trading Services,Electricity,09.06.2016,1905148725,"26,871.28",British Gas Plc
Manchester City Council,Hospitality + Trading Services,Electricity,09.06.2016,1905148718,"12,160.28",British Gas Plc
Manchester City Council,Hospitality + Trading Services,Electricity,09.06.2016,1905148738,"5,284.28",British Gas Plc
Manchester City Council,Hospitality + Trading Services,Electricity,09.06.2016,1905148719,"3,247.25",British Gas Plc
Manchester City Council,Hospitality + Trading Services,Electricity,09.06.2016,1905148726,"1,864.63",British Gas Plc
Manchester City Council,Hospitality + Trading Services,Electricity,09.06.2016,1905148728,"1,344.57",British Gas Plc
Manchester City Council,Hospitality + Trading Services,Electricity,09.06.2016,1905148836,930.57,Scottish & Southern Energy Plc
Manchester City Council,Hospitality + Trading Services,Electricity,09.06.2016,1905148838,674.43,Scottish & Southern Energy Plc
Manchester City Council,Hospitality + Trading Services,Equipment,09.06.2016,1700063160,-687.64,Physio-Control UK Sales Ltd
Manchester City Council,Hospitality + Trading Services,Hire of Machinery,09.06.2016,5100863627,"1,299.50",R & M Developments Ltd
Manchester City Council,Hospitality + Trading Services,Hire of Machinery,09.06.2016,5100863626,"1,247.30",R & M Developments Ltd
Manchester City Council,Hospitality + Trading Services,Hire of Machinery,09.06.2016,5100863594,"1,038.50",R & M Developments Ltd
Manchester City Council,Hospitality + Trading Services,Hire of Machinery,09.06.2016,5100863624,"1,012.50",R & M Developments Ltd
Manchester City Council,Hospitality + Trading Services,Hire of Machinery,09.06.2016,5100863628,814.12,R & M Developments Ltd
Manchester City Council,Hospitality + Trading Services,Hire of Machinery,09.06.2016,5100863629,814.12,R & M Developments Ltd
Manchester City Council,Hospitality + Trading Services,Hire of Machinery,09.06.2016,5100863635,706.79,R & M Developments Ltd
Manchester City Council,Hospitality + Trading Services,Payments to Sub-Contractors,09.06.2016,5100862593,"19,991.92",Kenny Bros (Civil Eng) Ltd
Manchester City Council,Hospitality + Trading Services,Payments to Sub-Contractors,09.06.2016,5100863517,504.00,Budgetgate Ltd
Manchester City Council,Environment and Operations,Construction Works,09.06.2016,5100863698,"-4,542.90",Bt Repayments And Claims Group
Manchester City Council,Environment and Operations,Electricity,09.06.2016,1905148720,"3,063.78",British Gas Plc
Manchester City Council,Environment and Operations,Electricity,09.06.2016,1905148762,780.21,Scottish & Southern Energy Plc
Manchester City Council,Environment and Operations,Heating Oil,09.06.2016,1905148890,762.80,Emo Oil Ltd
Manchester City Council,Environment and Operations,Licences Purchase,09.06.2016,5100863545,649.50,Resolute Systems (UK) Ltd
Manchester City Council,Environment and Operations,Legal Fees,09.06.2016,5100863655,875.00,Redacted Personal Information
Manchester City Council,Adult Social Care,Building Materials for direct delivery,09.06.2016,5100863634,"1,120.00",Illingworth Ingham (M/cR)
Manchester City Council,Adult Social Care,Electricity,09.06.2016,1905148816,"2,263.07",Scottish & Southern Energy Plc
Manchester City Council,Adult Social Care,Electricity,09.06.2016,1905148794,"1,344.88",Scottish & Southern Energy Plc
Manchester City Council,Adult Social Care,Electricity,09.06.2016,1905148782,"1,144.63",Scottish & Southern Energy Plc
Manchester City Council,Adult Social Care,Electricity,09.06.2016,1905148777,951.28,Scottish & Southern Energy Plc
Manchester City Council,Adult Social Care,Electricity,09.06.2016,1905148795,936.96,Scottish & Southern Energy Plc
Manchester City Council,Adult Social Care,Electricity,09.06.2016,1905148787,907.58,Scottish & Southern Energy Plc
Manchester City Council,Adult Social Care,Electricity,09.06.2016,1905148863,897.29,Scottish & Southern Energy Plc
Manchester City Council,Adult Social Care,Electricity,09.06.2016,1905148757,773.35,Scottish & Southern Energy Plc
Manchester City Council,Adult Social Care,Electricity,09.06.2016,1905148753,743.92,Scottish & Southern Energy Plc
Manchester City Council,Adult Social Care,Electricity,09.06.2016,1905148856,707.92,Scottish & Southern Energy Plc
Manchester City Council,Adult Social Care,Electricity,09.06.2016,1905148843,685.01,Scottish & Southern Energy Plc
Manchester City Council,Adult Social Care,Electricity,09.06.2016,1905148801,673.87,Scottish & Southern Energy Plc
Manchester City Council,Adult Social Care,Electricity,09.06.2016,1905148775,511.22,Scottish & Southern Energy Plc
Manchester City Council,Adult Social Care,Equipment,09.06.2016,5100863528,"2,250.00",Tunstall Healthcare (UK) Ltd
Manchester City Council,Adult Social Care,Equipment,09.06.2016,5100863566,"1,590.00",NRS Healthcare
Manchester City Council,Adult Social Care,Equipment,09.06.2016,5100863526,"1,324.00",Tunstall Healthcare (UK) Ltd
Manchester City Council,Adult Social Care,Payments for services,09.06.2016,5100863589,"95,603.00",Tameside Metropolitan Bouough
Manchester City Council,Adult Social Care,Payments for services,09.06.2016,5100863598,"29,654.72",The Together Trust
Manchester City Council,Adult Social Care,Payments for services,09.06.2016,5100863597,"4,692.00",The Together Trust
Manchester City Council,Adult Social Care,Payments for services,09.06.2016,5100863595,"4,374.44",The Together Trust
Manchester City Council,Adult Social Care,Payments for services,09.06.2016,5100863623,"3,859.80",The Together Trust
Manchester City Council,Adult Social Care,Personal needs of client,09.06.2016,5100863530,"2,097.60",Drive Medical Limited
Manchester City Council,Adult Social Care,Professional fees,09.06.2016,5100863499,"1,050.00",Action First iPeople Ltd
Manchester City Council,Adult Social Care,Professional fees,09.06.2016,5100863494,700.00,Action First iPeople Ltd
Manchester City Council,Adult Social Care,Third party payments relating to Voluntary Organisations,09.06.2016,5100863640,"7,305.25",Manchester Action On Street Health
Manchester City Council,Adult Social Care,Third party payments relating to Voluntary Organisations,09.06.2016,5100863525,533.87,University Hospital of South Mcr
Manchester City Council,Adult Social Care,Third party payments to other Local Authorities,09.06.2016,5100863460,"1,400.00",Cheadle Royal Healthcare
Manchester City Council,Adult Social Care,Training and Development,09.06.2016,5100863570,517.79,Findel Education Ltd
Manchester City Council,Adult Social Care,Transport Coach Hire,09.06.2016,5100862514,"1,862.00",T/a K Travel
Manchester City Council,Adult Social Care,Legal Fees,09.06.2016,5100863649,700.00,Kings Chambers
Manchester City Council,Corporate Services,Electricity,09.06.2016,1905148715,"3,142.04",British Gas Plc
Manchester City Council,Corporate Services,Electricity,09.06.2016,1905148808,"1,923.88",Scottish & Southern Energy Plc
Manchester City Council,Corporate Services,Electricity,09.06.2016,1905148877,"1,844.78",Scottish & Southern Energy Plc
Manchester City Council,Corporate Services,Electricity,09.06.2016,1905148870,"1,665.95",Scottish & Southern Energy Plc
Manchester City Council,Corporate Services,Electricity,09.06.2016,1905148807,"1,601.01",Scottish & Southern Energy Plc
Manchester City Council,Corporate Services,Electricity,09.06.2016,1905148850,"1,416.14",Scottish & Southern Energy Plc
Manchester City Council,Corporate Services,Electricity,09.06.2016,1905148860,"1,323.82",Scottish & Southern Energy Plc
Manchester City Council,Corporate Services,Electricity,09.06.2016,1905148800,"1,099.73",Scottish & Southern Energy Plc
Manchester City Council,Corporate Services,Electricity,09.06.2016,1905148767,"1,087.79",Scottish & Southern Energy Plc
Manchester City Council,Corporate Services,Electricity,09.06.2016,1905148761,"1,044.61",Scottish & Southern Energy Plc
Manchester City Council,Corporate Services,Electricity,09.06.2016,1905148769,861.50,Scottish & Southern Energy Plc
Manchester City Council,Corporate Services,Electricity,09.06.2016,1905148781,760.76,Scottish & Southern Energy Plc
Manchester City Council,Corporate Services,Electricity,09.06.2016,1905148750,651.04,Scottish & Southern Energy Plc
Manchester City Council,Corporate Services,Electricity,09.06.2016,1905148756,567.71,Scottish & Southern Energy Plc
Manchester City Council,Corporate Services,Electricity,09.06.2016,1905148819,565.82,Scottish & Southern Energy Plc
Manchester City Council,Corporate Services,Electricity,09.06.2016,1905148773,557.07,Scottish & Southern Energy Plc
Manchester City Council,Corporate Services,Electricity,09.06.2016,1905148776,532.26,Scottish & Southern Energy Plc
Manchester City Council,Corporate Services,Electricity,09.06.2016,1905148790,508.04,Scottish & Southern Energy Plc
Manchester City Council,Corporate Services,Postage,09.06.2016,5100863099,"7,270.90",Royal Mail Group Plc
Manchester City Council,Corporate Services,Postage,09.06.2016,5100863261,"1,945.84",Royal Mail Group Plc
Manchester City Council,Corporate Services,Vehicle Hire Costs,09.06.2016,1905149324,"2,289.64",City Car Club Ltd
Manchester City Council,Housing Revenue Account,Council Dwelling Adaptations,09.06.2016,5100863462,"4,979.00",Stannah Lift Services Ltd
Manchester City Council,Housing Revenue Account,Council Dwelling Adaptations,09.06.2016,5100863464,"4,559.00",Stannah Lift Services Ltd
Manchester City Council,Chief Executives,Advertising,09.06.2016,5100863577,600.00,Moonscape Media Ltd
Manchester City Council,Chief Executives,Licences Purchase,09.06.2016,5100863343,"95,950.00",Foursys Ltd
Manchester City Council,Chief Executives,Postage,09.06.2016,5100863536,"9,511.91",Royal Mail Group Plc
Manchester City Council,Chief Executives,Postage,09.06.2016,5100862474,"1,139.62",Royal Mail Group Plc
Manchester City Council,Chief Executives,Postage,09.06.2016,5100863544,850.37,Royal Mail Group Plc
Manchester City Council,Chief Executives,Rents,09.06.2016,5100863053,"3,600.00",Principal Agent Management Ltd
Manchester City Council,Chief Executives,Rents,09.06.2016,5100863060,"1,177.83",Principal Agent Management Ltd
Manchester City Council,Chief Executives,Rents,09.06.2016,5100863553,"-1,177.83",Principal Agent Management Ltd
Manchester City Council,Chief Executives,Rents,09.06.2016,5100863556,"-3,600.00",Principal Agent Management Ltd
Manchester City Council,Chief Executives,Telecoms Equip,09.06.2016,5100863654,"-13,196.00",EE / Orange
Manchester City Council,Chief Executives,Training and Development,09.06.2016,5100863645,"6,000.00",Association of Facilitators
Manchester City Council,Chief Executives,Works and associated costs for Land and Buildings,09.06.2016,5100863583,"6,000.00",Wsp Buildings
Manchester City Council,Chief Executives,Compensation Payments,09.06.2016,5100863644,900.00,Redacted Personal Information
Manchester City Council,Regeneration Finance,Catering,09.06.2016,5100863538,853.00,Digital China
Manchester City Council,Regeneration Finance,Catering,09.06.2016,5100863547,-853.00,Digital China
Manchester City Council,Regeneration Finance,Electricity,09.06.2016,1905148722,"21,237.60",British Gas Plc
Manchester City Council,Regeneration Finance,Electricity,09.06.2016,1905148721,"18,406.84",British Gas Plc
Manchester City Council,Regeneration Finance,Electricity,09.06.2016,1905148736,"16,341.88",British Gas Plc
Manchester City Council,Regeneration Finance,Electricity,09.06.2016,1905148731,"15,138.19",British Gas Plc
Manchester City Council,Regeneration Finance,Electricity,09.06.2016,1905148713,"14,741.10",British Gas Plc
Manchester City Council,Regeneration Finance,Electricity,09.06.2016,1905148742,"13,247.13",British Gas Plc
Manchester City Council,Regeneration Finance,Electricity,09.06.2016,1905148714,"12,329.69",British Gas Plc
Manchester City Council,Regeneration Finance,Electricity,09.06.2016,1905148734,"11,087.44",British Gas Plc
Manchester City Council,Regeneration Finance,Electricity,09.06.2016,1905148716,"4,999.96",British Gas Plc
Manchester City Council,Regeneration Finance,Electricity,09.06.2016,1905148732,"4,687.34",British Gas Plc
Manchester City Council,Regeneration Finance,Electricity,09.06.2016,1905148735,"4,331.57",British Gas Plc
Manchester City Council,Regeneration Finance,Electricity,09.06.2016,1905148871,"4,067.04",Scottish & Southern Energy Plc
Manchester City Council,Regeneration Finance,Electricity,09.06.2016,1905148857,"3,230.14",Scottish & Southern Energy Plc
Manchester City Council,Regeneration Finance,Electricity,09.06.2016,1905148881,"2,919.57",Scottish & Southern Energy Plc
Manchester City Council,Regeneration Finance,Electricity,09.06.2016,1905148740,"2,913.18",British Gas Plc
Manchester City Council,Regeneration Finance,Electricity,09.06.2016,1905148852,"2,624.87",Scottish & Southern Energy Plc
Manchester City Council,Regeneration Finance,Electricity,09.06.2016,1905148854,"2,254.25",Scottish & Southern Energy Plc
Manchester City Council,Regeneration Finance,Electricity,09.06.2016,1905148727,"2,026.55",British Gas Plc
Manchester City Council,Regeneration Finance,Electricity,09.06.2016,1905148763,"2,002.17",Scottish & Southern Energy Plc
Manchester City Council,Regeneration Finance,Electricity,09.06.2016,1905148747,"1,976.62",Scottish & Southern Energy Plc
Manchester City Council,Regeneration Finance,Electricity,09.06.2016,1905148839,"1,866.68",Scottish & Southern Energy Plc
Manchester City Council,Regeneration Finance,Electricity,09.06.2016,1905148723,"1,512.79",British Gas Plc
Manchester City Council,Regeneration Finance,Electricity,09.06.2016,1905148755,"1,509.79",Scottish & Southern Energy Plc
Manchester City Council,Regeneration Finance,Electricity,09.06.2016,1905148717,"1,400.36",British Gas Plc
Manchester City Council,Regeneration Finance,Electricity,09.06.2016,1905148784,"1,352.08",Scottish & Southern Energy Plc
Manchester City Council,Regeneration Finance,Electricity,09.06.2016,1905148739,"1,338.18",British Gas Plc
Manchester City Council,Regeneration Finance,Electricity,09.06.2016,1905148730,"1,237.14",British Gas Plc
Manchester City Council,Regeneration Finance,Electricity,09.06.2016,1905148743,"1,218.38",EDF Energy
Manchester City Council,Regeneration Finance,Electricity,09.06.2016,1905148729,"1,206.19",British Gas Plc
Manchester City Council,Regeneration Finance,Electricity,09.06.2016,1905148774,"1,185.14",Scottish & Southern Energy Plc
Manchester City Council,Regeneration Finance,Electricity,09.06.2016,1905148796,"1,053.04",Scottish & Southern Energy Plc
Manchester City Council,Regeneration Finance,Electricity,09.06.2016,1905148798,"1,028.43",Scottish & Southern Energy Plc
Manchester City Council,Regeneration Finance,Electricity,09.06.2016,1905148880,856.56,Scottish & Southern Energy Plc
Manchester City Council,Regeneration Finance,Electricity,09.06.2016,1905148733,838.39,British Gas Plc
Manchester City Council,Regeneration Finance,Electricity,09.06.2016,1905148744,726.08,Scottish & Southern Energy Plc
Manchester City Council,Regeneration Finance,Electricity,09.06.2016,1905148751,696.48,Scottish & Southern Energy Plc
Manchester City Council,Regeneration Finance,Electricity,09.06.2016,1905148749,638.04,Scottish & Southern Energy Plc
Manchester City Council,Regeneration Finance,Electricity,09.06.2016,1905148754,601.86,Scottish & Southern Energy Plc
Manchester City Council,Regeneration Finance,Electricity,09.06.2016,1905148802,596.23,Scottish & Southern Energy Plc
Manchester City Council,Regeneration Finance,Electricity,09.06.2016,1905148853,573.30,Scottish & Southern Energy Plc
Manchester City Council,Regeneration Finance,Electricity,09.06.2016,1905148833,541.42,Scottish & Southern Energy Plc
Manchester City Council,Regeneration Finance,Electricity,09.06.2016,1905148855,541.36,Scottish & Southern Energy Plc
Manchester City Council,Regeneration Finance,Electricity,09.06.2016,1905148745,507.72,Scottish & Southern Energy Plc
Manchester City Council,Regeneration Finance,Electricity,09.06.2016,1700063155,"-1,508.71",Scottish & Southern Energy Plc
Manchester City Council,Regeneration Finance,Other Insurance Premiums,09.06.2016,5100856607,"4,698.47",Clarendon Homes Ltd
Manchester City Council,Regeneration Finance,Professional fees,09.06.2016,5100863316,"1,190.00",Tep-The Environment Partnership
Manchester City Council,Regeneration Finance,Removal and Storage of Furniture,09.06.2016,5100862765,"2,071.82",BCL
Manchester City Council,Regeneration Finance,Removal and Storage of Furniture,09.06.2016,5100863638,"-2,071.82",BCL
Manchester City Council,Manchester Leisure,Agency staff provision,10.06.2016,5100863802,956.20,Reed Employment Plc
Manchester City Council,Manchester Leisure,Hire of Equipment,10.06.2016,5100863590,"1,635.00",Eve Trakway
Manchester City Council,Manchester Leisure,Hospitality,10.06.2016,1905149460,500.00,JAMIE'S ITALIAN
Manchester City Council,Manchester Leisure,Insurance,10.06.2016,1700063167,662.45,PP PROFILES LTD
Manchester City Council,Manchester Leisure,Payments for services,10.06.2016,5100862656,918.00,The Fitness Training Academy Ltd
Manchester City Council,Manchester Leisure,Professional fees,10.06.2016,5100863354,"16,295.00",Private White V.C. Ltd
Manchester City Council,Manchester Leisure,Professional fees,10.06.2016,5100862693,"10,000.00",England Athletics Limited
Manchester City Council,Manchester Leisure,Professional fees,10.06.2016,5100863588,"6,150.00",Greenwich Leisure Limited
Manchester City Council,Manchester Leisure,Professional fees,10.06.2016,5100863756,"6,000.00",Don't Panic Projects Ltd
Manchester City Council,Manchester Leisure,Professional fees,10.06.2016,5100863352,"5,415.00",Tile Fire Limited
Manchester City Council,Manchester Leisure,Professional fees,10.06.2016,1905122140,"3,382.00",Redacted Personal Information
Manchester City Council,Manchester Leisure,Professional fees,10.06.2016,5100863688,"1,500.00",North Manchester Sports Forum
Manchester City Council,Manchester Leisure,Publications,10.06.2016,5100863791,815.53,LEM Art UK Ltd
Manchester City Council,Manchester Leisure,Special Events,10.06.2016,5100863641,"10,612.00",Walk The Plank Ltd
Manchester City Council,Manchester Leisure,Works Health and Safety related,10.06.2016,5100863217,"1,550.00",Aquam Water Services Limited
Manchester City Council,Manchester Leisure,Works Health and Safety related,10.06.2016,5100863223,675.00,Aquam Water Services Limited
Manchester City Council,Manchester Leisure,Works Health and Safety related,10.06.2016,5100863221,625.00,Aquam Water Services Limited
Manchester City Council,Libraries and Theatres,Training and Development,10.06.2016,5100856640,675.00,Cipfa
Manchester City Council,Libraries and Theatres,Works and associated costs for Land and Buildings,10.06.2016,5100862462,"10,336.50",Turner & Townsend Project
Manchester City Council,Hospitality + Trading Services,Agency staff provision,10.06.2016,5100863820,"2,866.48",Hays Personnel
Manchester City Council,Hospitality + Trading Services,Building Materials for direct delivery,10.06.2016,1905149901,969.60,Ecomix Concrete Ltd
Manchester City Council,Hospitality + Trading Services,Building Materials for direct delivery,10.06.2016,1905149894,888.80,Ecomix Concrete Ltd
Manchester City Council,Hospitality + Trading Services,Building Materials for direct delivery,10.06.2016,1905149893,808.00,Ecomix Concrete Ltd
Manchester City Council,Hospitality + Trading Services,Building Materials for direct delivery,10.06.2016,1700063174,690.18,Tiles Uk Ltd
Manchester City Council,Hospitality + Trading Services,Building Materials for direct delivery,10.06.2016,1905149518,576.33,MARSHALLS
Manchester City Council,Hospitality + Trading Services,Building Materials for direct delivery,10.06.2016,1905149892,565.60,Ecomix Concrete Ltd
Manchester City Council,Hospitality + Trading Services,Building Materials for direct delivery,10.06.2016,1905149895,565.60,Ecomix Concrete Ltd
Manchester City Council,Hospitality + Trading Services,Catering Provisions,10.06.2016,1905149838,790.88,Brake Bros Foodservice Ltd
Manchester City Council,Hospitality + Trading Services,Catering Provisions,10.06.2016,1905149865,753.42,Brake Bros Foodservice Ltd
Manchester City Council,Hospitality + Trading Services,Catering Provisions,10.06.2016,1905149821,601.31,Brake Bros Foodservice Ltd
Manchester City Council,Hospitality + Trading Services,Catering Provisions,10.06.2016,1905149846,568.56,Brake Bros Foodservice Ltd
Manchester City Council,Hospitality + Trading Services,Catering Provisions,10.06.2016,1905149808,534.70,Brake Bros Foodservice Ltd
Manchester City Council,Hospitality + Trading Services,Equipment,10.06.2016,1905149687,"1,205.10",SLATER MENSWEAR
Manchester City Council,Hospitality + Trading Services,Furniture,10.06.2016,5100863355,"1,052.00",CDS-Wilman
Manchester City Council,Hospitality + Trading Services,Hire of Machinery,10.06.2016,5100862732,"1,535.00",Gibsons Garden Machinery Limited
Manchester City Council,Hospitality + Trading Services,Payments to Sub-Contractors,10.06.2016,5100862768,"11,183.26",Rosgal Ltd
Manchester City Council,Hospitality + Trading Services,Payments to Sub-Contractors,10.06.2016,5100862793,"3,775.73",Rosgal Ltd
Manchester City Council,Hospitality + Trading Services,Purchase of stores for re-distribution,10.06.2016,5100863504,634.39,Benchmark Building Supplies Ltd
Manchester City Council,Hospitality + Trading Services,Security,10.06.2016,5100863049,"6,221.28",Showsec International Ltd
Manchester City Council,Hospitality + Trading Services,Security,10.06.2016,5100863057,"1,914.24",Showsec International Ltd
Manchester City Council,Hospitality + Trading Services,Vehicle Hire Costs,10.06.2016,5100862698,"3,875.00",Gullivers Truck Hire Ltd
Manchester City Council,Hospitality + Trading Services,Vehicle Hire Costs,10.06.2016,5100862691,"2,600.00",Gullivers Truck Hire Ltd
Manchester City Council,Environment and Operations,Agency staff provision,10.06.2016,5100862349,"1,075.80",Kenyon Block Consultants Ltd
Manchester City Council,Environment and Operations,Surplus property Acquisitions,10.06.2016,1905149795,"1,620.00",Trowers & Hamlins
Manchester City Council,Adult Social Care,Agency staff provision,10.06.2016,5100863783,"17,100.00",HCL Social Care
Manchester City Council,Adult Social Care,Agency staff provision,10.06.2016,5100863783,"5,836.25",HCL Social Care
Manchester City Council,Adult Social Care,Agency staff provision,10.06.2016,5100863783,"4,704.00",HCL Social Care
Manchester City Council,Adult Social Care,Agency staff provision,10.06.2016,5100863805,870.80,Resolve Personnel Ltd
Manchester City Council,Adult Social Care,Agency staff provision,10.06.2016,5100863810,833.48,Resolve Personnel Ltd
Manchester City Council,Adult Social Care,Equipment,10.06.2016,5100863557,"2,205.70",Aidapt Bathrooms Ltd
Manchester City Council,Adult Social Care,Foster Payments,10.06.2016,1905149914,"10,435.00",Redacted Personal Information
Manchester City Council,Adult Social Care,Funeral and coroner related services,10.06.2016,5100862519,"3,350.33",Funeral Prtnrs t/a Michael Kennedy
Manchester City Council,Adult Social Care,Funeral and coroner related services,10.06.2016,5100862533,"3,089.67",Funeral Prtnrs t/a Michael Kennedy
Manchester City Council,Adult Social Care,Funeral and coroner related services,10.06.2016,5100862535,"1,153.00",Funeral Prtnrs t/a Michael Kennedy
Manchester City Council,Adult Social Care,I T Provision,10.06.2016,5100863225,"13,000.00",Policy Partners Project Ltd
Manchester City Council,Adult Social Care,I T Provision,10.06.2016,5100862279,"4,500.00",Open Objects Software Ltd
Manchester City Council,Adult Social Care,Payments for services,10.06.2016,5100863685,"5,334.00",Chaigeley Education Foundation
Manchester City Council,Adult Social Care,Payments for services,10.06.2016,5100863674,"4,535.46",Chaigeley Education Foundation
Manchester City Council,Adult Social Care,Payments for services,10.06.2016,5100863669,"4,134.55",Chaigeley Education Foundation
Manchester City Council,Adult Social Care,Payments for services,10.06.2016,5100863689,"4,134.55",Chaigeley Education Foundation
Manchester City Council,Adult Social Care,Payments for services,10.06.2016,5100863673,-909.09,Chaigeley Education Foundation
Manchester City Council,Adult Social Care,Payments for services,10.06.2016,5100863675,-909.09,Chaigeley Education Foundation
Manchester City Council,Adult Social Care,Payments for services,10.06.2016,5100863687,-909.09,Chaigeley Education Foundation
Manchester City Council,Adult Social Care,Payments for services,10.06.2016,5100863692,-909.09,Chaigeley Education Foundation
Manchester City Council,Adult Social Care,Personal needs of client,10.06.2016,5100863726,"1,647.00",NRS Healthcare
Manchester City Council,Adult Social Care,Personal needs of client,10.06.2016,5100863853,"1,040.00",Aidservice Ltd
Manchester City Council,Adult Social Care,Personal needs of client,10.06.2016,5100863857,"1,040.00",Aidservice Ltd
Manchester City Council,Adult Social Care,Professional fees,10.06.2016,5100863686,"1,115.04",Real Systems
Manchester City Council,Adult Social Care,Professional fees,10.06.2016,5100862790,750.00,Kleducation Services
Manchester City Council,Adult Social Care,Third party payments relating to Voluntary Organisations,10.06.2016,5100863643,"2,395.00",Wai Yin Society
Manchester City Council,Adult Social Care,Third party payments relating to Voluntary Organisations,10.06.2016,5100862789,"2,250.00",Trinity House Community Resource Ce
Manchester City Council,Adult Social Care,Third party payments relating to Voluntary Organisations,10.06.2016,5100862791,"2,250.00",Trinity House Community Resource Ce
Manchester City Council,Adult Social Care,Third party payments to Health Authority,10.06.2016,5100863739,"50,400.00",NHS Central Manchester CCG
Manchester City Council,Adult Social Care,Third party payments to Health Authority,10.06.2016,5100863740,"-50,400.00",NHS Central Manchester CCG
Manchester City Council,Adult Social Care,Training and Development,10.06.2016,5100863424,"1,120.00",Trinity College London
Manchester City Council,Adult Social Care,Training and Development,10.06.2016,5100863708,"1,110.00",Manchester Enterprise Academy
Manchester City Council,Adult Social Care,Transport Coach Hire,10.06.2016,5100862737,"23,524.00",Redacted Personal Information
Manchester City Council,Adult Social Care,Transport Coach Hire,10.06.2016,5100863582,"22,690.50",Youbus Ltd
Manchester City Council,Adult Social Care,Transport Coach Hire,10.06.2016,5100862273,"11,320.00",JCT Travel Ltd
Manchester City Council,Adult Social Care,Transport Coach Hire,10.06.2016,5100862632,"5,586.00",Galaxy Cars
Manchester City Council,Adult Social Care,Transport Coach Hire,10.06.2016,5100863024,"5,382.40",Parkway Cabs & Cars
Manchester City Council,Adult Social Care,Transport Coach Hire,10.06.2016,5100862739,"2,090.00",DMC Travel
Manchester City Council,Adult Social Care,Transport Coach Hire,10.06.2016,5100863657,"1,710.00",G.M Travel
Manchester City Council,Adult Social Care,Transport Coach Hire,10.06.2016,5100862741,"1,666.00",DMC Travel
Manchester City Council,Adult Social Care,Transport Coach Hire,10.06.2016,5100862738,"1,235.00",DMC Travel
Manchester City Council,Adult Social Care,Transport Taxis,10.06.2016,1905114459,"1,495.00",Cleveleys Taxi Limited
Manchester City Council,Adult Social Care,Compensation Payments,10.06.2016,1905149686,"10,917.00",Sainsburys Solicitors
Manchester City Council,Childrens Services,Student Discretionery Awards,10.06.2016,1700063175,"1,399.00",Acacia Training Ltd
Manchester City Council,Childrens Services,Works and associated costs for Land and Buildings,10.06.2016,5100863226,"163,737.00",Capita IT Services (BSF) Limited
Manchester City Council,Childrens Services,Works and associated costs for Land and Buildings,10.06.2016,5100863202,"42,372.52",Capita IT Services (BSF) Limited
Manchester City Council,Corporate Services,Agency staff provision,10.06.2016,5100863810,916.30,Resolve Personnel Ltd
Manchester City Council,Corporate Services,Agency staff provision,10.06.2016,5100863802,832.30,Reed Employment Plc
Manchester City Council,Corporate Services,Bank Charges,10.06.2016,5100859078,"21,840.00",Northgate Public Services (UK) Ltd
Manchester City Council,Corporate Services,Welfare Provision Service Awards,10.06.2016,5100862970,771.46,The Furnishing Service Ltd
Manchester City Council,Corporate Services,Welfare Provision Service Awards,10.06.2016,5100862969,595.33,The Furnishing Service Ltd
Manchester City Council,Corporate Services,Works and associated costs for Land and Buildings,10.06.2016,5100862350,"22,123.70",Turner & Townsend Cost
Manchester City Council,Corporate Services,Works and associated costs for Land and Buildings,10.06.2016,5100863717,"-12,201.69",G & J Seddon Ltd
Manchester City Council,Corporate Services,Compensation Payments,10.06.2016,1905149724,"1,104.00",HMCTS (Manchester)
Manchester City Council,Corporate Services,Compensation Payments,10.06.2016,1905149390,"1,452.00",HMCTS (Manchester)
Manchester City Council,Corporate Services,Compensation Payments,10.06.2016,1905149501,"2,574.00",HMCTS (Manchester)
Manchester City Council,Corporate Services,Compensation Payments,10.06.2016,1905149783,"11,322.00",HMCTS (Manchester)
Manchester City Council,Housing General Fund,Surplus property Acquisitions,10.06.2016,1905149811,"61,383.26",Aventus Law Limited
Manchester City Council,Housing General Fund,Surplus property Fees,10.06.2016,1905149811,"1,849.40",Aventus Law Limited
Manchester City Council,Housing Revenue Account,Northwards Management Fee,10.06.2016,5100863135,"27,472.50",Northwards Housing Limited
Manchester City Council,Housing Revenue Account,Northwards Repairs Fee,10.06.2016,5100863445,"1,789,541.17",Northwards Housing Limited
Manchester City Council,Housing Revenue Account,Sundry Recoverables,10.06.2016,1905149811,"-4,197.36",Aventus Law Limited
Manchester City Council,Housing Revenue Account,West Gorton Management Fee,10.06.2016,5100863790,"12,203.00",The Guinness Partnership Ltd
Manchester City Council,Housing Revenue Account,Works and associated costs for Land and Buildings,10.06.2016,5100863079,"3,487.50",Buttress
Manchester City Council,Housing Revenue Account,Legal Fees,10.06.2016,5100863742,"10,032.00",DWF LLP
Manchester City Council,Chief Executives,Advertising,10.06.2016,1905149582,602.13,Facebook (CARD ONLY)
Manchester City Council,Chief Executives,Advertising,10.06.2016,1905149781,601.02,Facebook (CARD ONLY)
Manchester City Council,Chief Executives,Advertising,10.06.2016,1905149703,600.77,Facebook (CARD ONLY)
Manchester City Council,Chief Executives,Advertising,10.06.2016,1905149558,600.75,Facebook (CARD ONLY)
Manchester City Council,Chief Executives,Advertising,10.06.2016,1905149733,600.08,Facebook (CARD ONLY)
Manchester City Council,Chief Executives,Advertising,10.06.2016,1905149503,599.71,Facebook (CARD ONLY)
Manchester City Council,Chief Executives,Advertising,10.06.2016,1905149603,599.30,Facebook (CARD ONLY)
Manchester City Council,Chief Executives,Advertising,10.06.2016,1905149623,598.35,Facebook (CARD ONLY)
Manchester City Council,Chief Executives,Advertising,10.06.2016,1905149676,597.07,Facebook (CARD ONLY)
Manchester City Council,Chief Executives,Advertising,10.06.2016,1905149626,596.58,Facebook (CARD ONLY)
Manchester City Council,Chief Executives,Advertising,10.06.2016,1905149705,595.79,Facebook (CARD ONLY)
Manchester City Council,Chief Executives,Advertising,10.06.2016,1905149622,595.67,Facebook (CARD ONLY)
Manchester City Council,Chief Executives,Advertising,10.06.2016,1905149630,595.05,Facebook (CARD ONLY)
Manchester City Council,Chief Executives,Advertising,10.06.2016,1905149628,594.66,Facebook (CARD ONLY)
Manchester City Council,Chief Executives,Advertising,10.06.2016,1905149734,587.21,Facebook (CARD ONLY)
Manchester City Council,Chief Executives,Agency staff provision,10.06.2016,5100863823,"26,494.56",Hays Personnel
Manchester City Council,Chief Executives,Agency staff provision,10.06.2016,5100863783,"21,855.91",HCL Social Care
Manchester City Council,Chief Executives,Agency staff provision,10.06.2016,5100863402,"6,207.98",Semester Recruitment Ltd
Manchester City Council,Chief Executives,Agency staff provision,10.06.2016,5100863810,"5,513.13",Resolve Personnel Ltd
Manchester City Council,Chief Executives,Agency staff provision,10.06.2016,5100863817,"4,025.00",Hays Personnel
Manchester City Council,Chief Executives,Agency staff provision,10.06.2016,5100863805,"2,899.47",Resolve Personnel Ltd
Manchester City Council,Chief Executives,Agency staff provision,10.06.2016,5100863828,"2,703.68",Bennett Staff Bureau
Manchester City Council,Chief Executives,Agency staff provision,10.06.2016,5100863812,"2,700.00",Hays Personnel
Manchester City Council,Chief Executives,Agency staff provision,10.06.2016,5100863816,"1,298.56",Hays Personnel
Manchester City Council,Chief Executives,Agency staff provision,10.06.2016,5100863802,941.20,Reed Employment Plc
Manchester City Council,Chief Executives,Equipment,10.06.2016,1905149464,790.67,Amazon Co.Uk
Manchester City Council,Chief Executives,Hire of Equipment,10.06.2016,5100863357,"4,076.00",Universal Live
Manchester City Council,Chief Executives,Hire of Equipment,10.06.2016,5100863364,"1,415.00",Universal Live
Manchester City Council,Chief Executives,Hire of Equipment,10.06.2016,5100863361,"1,264.00",Universal Live
Manchester City Council,Chief Executives,I T Provision,10.06.2016,5100863537,"7,630.62",Ibm United Kingdom Financial Serv.L
Manchester City Council,Chief Executives,I T Provision,10.06.2016,1905149794,835.00,WWW.PFSENSE.CO.UK
Manchester City Council,Chief Executives,ICT Support & Maintenance,10.06.2016,5100863046,"10,462.50",Esteem
Manchester City Council,Chief Executives,Infrastructure Fees,10.06.2016,5100863814,"2,875.00",Hays Personnel
Manchester City Council,Chief Executives,Infrastructure Fees,10.06.2016,5100863086,"2,000.00",Visionware Plc
Manchester City Council,Chief Executives,Vehicle Plant Furniture and Equipment,10.06.2016,5100863048,"12,187.50",Esteem
Manchester City Council,Chief Executives,"Vehicles, Plant, Furniture & Equip - Adaptations",10.06.2016,5100863802,"3,529.40",Reed Employment Plc
Manchester City Council,Chief Executives,"Vehicles, Plant, Furniture & Equip - Adaptations",10.06.2016,5100863819,"3,105.00",Hays Personnel
Manchester City Council,Chief Executives,"Vehicles, Plant, Furniture & Equip - Adaptations",10.06.2016,5100863802,"2,587.50",Reed Employment Plc
Manchester City Council,Chief Executives,Compensation Payments,10.06.2016,5100863653,542.80,Acumension Ltd
Manchester City Council,Regeneration Finance,Agency staff provision,10.06.2016,5100863821,"6,263.20",Hays Personnel
Manchester City Council,Regeneration Finance,Catering,10.06.2016,5100863878,853.00,Digital China
Manchester City Council,Regeneration Finance,Contract Cleaning External,10.06.2016,5100862758,857.25,M & M Cleaning Services Ltd
Manchester City Council,Regeneration Finance,Equipment,10.06.2016,5100863345,"7,600.00",Idox Software Ltd
Manchester City Council,Regeneration Finance,I T Provision,10.06.2016,5100863341,"3,300.00",1st Milestone Ltd
Manchester City Council,Regeneration Finance,Professional fees,10.06.2016,5100863179,"13,233.00",Turner & Townsend Project
Manchester City Council,Regeneration Finance,Professional fees,10.06.2016,5100862770,"6,364.80",Turner & Townsend Project
Manchester City Council,Regeneration Finance,Professional fees,10.06.2016,5100862767,"4,542.28",BCL
Manchester City Council,Regeneration Finance,Professional fees,10.06.2016,5100862887,"1,400.00",Lateral Technologies & Solutions
Manchester City Council,Regeneration Finance,Professional fees,10.06.2016,5100863747,"-3,328.00",Turner & Townsend Cost
Manchester City Council,Regeneration Finance,Professional fees,10.06.2016,5100863795,"-4,299.00",Turner & Townsend Cost
Manchester City Council,Regeneration Finance,Professional fees,10.06.2016,5100863799,"-4,406.00",Turner & Townsend Cost
Manchester City Council,Regeneration Finance,Professional fees,10.06.2016,5100863811,"-6,831.00",Turner & Townsend Cost
Manchester City Council,Regeneration Finance,Recruitment Expenses,10.06.2016,5100862811,"4,050.00",Gatenby Sanderson
Manchester City Council,Regeneration Finance,Removal and Storage of Furniture,10.06.2016,5100862763,"5,613.04",BCL
Manchester City Council,Regeneration Finance,Removal and Storage of Furniture,10.06.2016,5100862762,"2,815.48",BCL
Manchester City Council,Regeneration Finance,Removal and Storage of Furniture,10.06.2016,5100863646,"2,071.82",BCL
Manchester City Council,Regeneration Finance,Special Events,10.06.2016,5100863792,"6,750.00",Hemisphere Design
Manchester City Council,Regeneration Finance,Third party payments relating to Voluntary Organisations,10.06.2016,5100862806,"114,032.83",HOME
Manchester City Council,Learning Disabilities PB,Day Care Payments,10.06.2016,1700063173,641.28,Brookvale
Manchester City Council,GMIST (Greater Mcr Integrated),I T Provision,10.06.2016,5100863709,514.18,Axiell Ltd
Manchester City Council,GMIST (Greater Mcr Integrated),I T Provision,10.06.2016,5100863710,-514.18,Axiell Ltd
Manchester City Council,GMIST (Greater Mcr Integrated),Storage Costs,10.06.2016,5100862649,"2,549.59",DeepStore
Manchester City Council,GMIST (Greater Mcr Integrated),Storage Costs,10.06.2016,5100862648,567.62,DeepStore
Manchester City Council,Manchester Leisure,Building Materials for direct delivery,13.06.2016,5100862563,875.00,Groundwork Landscapes Ltd
Manchester City Council,Manchester Leisure,Building Materials for direct delivery,13.06.2016,5100863773,858.91,Chambers & Perkins
Manchester City Council,Manchester Leisure,Cleaning Equipment and Materials,13.06.2016,5100863959,"9,130.62",Redgate Holdings Ltd
Manchester City Council,Manchester Leisure,Disposables,13.06.2016,5100863884,"24,019.60",Redgate Holdings Ltd
Manchester City Council,Manchester Leisure,Grounds Maintenance Costs,13.06.2016,5100863958,"6,831.12",Redgate Holdings Ltd
Manchester City Council,Manchester Leisure,Grounds Maintenance Costs,13.06.2016,5100863943,"6,749.36",Continental Landscapes Limited
Manchester City Council,Manchester Leisure,Library Materials Acquisition,13.06.2016,1905146490,"2,000.55",Azhar Enterrprises
Manchester City Council,Manchester Leisure,Library Materials Acquisition,13.06.2016,1905146385,"1,466.37",Martin Lavell Limited
Manchester City Council,Manchester Leisure,Library Materials Acquisition,13.06.2016,1905146494,917.20,Nelson Microfilm Ltd
Manchester City Council,Manchester Leisure,Library Materials Acquisition,13.06.2016,1905146476,642.81,Askews and Holts
Manchester City Council,Manchester Leisure,Library Materials Acquisition,13.06.2016,1905146478,628.19,Askews and Holts
Manchester City Council,Manchester Leisure,Library Materials Acquisition,13.06.2016,1905146464,626.41,Askews and Holts
Manchester City Council,Manchester Leisure,Liquid Container Recycling,13.06.2016,5100863890,"13,812.70",Redgate Holdings Ltd
Manchester City Council,Manchester Leisure,Payments to Sub-Contractors,13.06.2016,5100863668,"2,710.00",Halcyon Conservation Ltd
Manchester City Council,Manchester Leisure,Professional fees,13.06.2016,5100863351,"17,681.40",The Lowry Centre Ltd
Manchester City Council,Manchester Leisure,Professional fees,13.06.2016,5100863056,"3,995.00",Enventure Research Ltd
Manchester City Council,Manchester Leisure,Refuse Collection,13.06.2016,5100863887,"26,691.20",Redgate Holdings Ltd
Manchester City Council,Manchester Leisure,Tipping Charges - Skips,13.06.2016,5100863885,"24,169.20",Redgate Holdings Ltd
Manchester City Council,Manchester Leisure,Tipping Charges - Tonnage,13.06.2016,5100863957,"83,301.36",Redgate Holdings Ltd
Manchester City Council,Hospitality + Trading Services,Agency staff provision,13.06.2016,5100862979,745.15,Search Consultancy Ltd
Manchester City Council,Hospitality + Trading Services,Building Materials for direct delivery,13.06.2016,1905151062,651.00,Ecomix Concrete Ltd
Manchester City Council,Hospitality + Trading Services,Building Materials for direct delivery,13.06.2016,1905151059,521.50,Ecomix Concrete Ltd
Manchester City Council,Hospitality + Trading Services,Catering Provisions,13.06.2016,1905151044,993.35,Brake Bros Foodservice Ltd
Manchester City Council,Hospitality + Trading Services,Catering Provisions,13.06.2016,1905151056,810.17,Brake Bros Foodservice Ltd
Manchester City Council,Hospitality + Trading Services,Catering Provisions,13.06.2016,1905151028,753.85,Brake Bros Foodservice Ltd
Manchester City Council,Hospitality + Trading Services,Catering Provisions,13.06.2016,1905151001,607.66,Brake Bros Foodservice Ltd
Manchester City Council,Hospitality + Trading Services,Catering Provisions,13.06.2016,1905151049,555.25,Brake Bros Foodservice Ltd
Manchester City Council,Hospitality + Trading Services,Catering Provisions,13.06.2016,1905151022,543.02,Brake Bros Foodservice Ltd
Manchester City Council,Hospitality + Trading Services,Catering Provisions,13.06.2016,1905151055,526.33,Brake Bros Foodservice Ltd
Manchester City Council,Hospitality + Trading Services,Cleaning Equipment and Materials,13.06.2016,1905150993,523.63,Alliance Disposables Ltd
Manchester City Council,Hospitality + Trading Services,Internal Repairs and Maintenance for buildings,13.06.2016,5100863919,"14,236.69",Manchester Working Ltd
Manchester City Council,Hospitality + Trading Services,Payments to Sub-Contractors,13.06.2016,5100862727,"3,999.40",Rosgal Ltd
Manchester City Council,Hospitality + Trading Services,Payments to Sub-Contractors,13.06.2016,5100863306,"3,093.52",Rosgal Ltd
Manchester City Council,Hospitality + Trading Services,Purchase of stores for re-distribution,13.06.2016,5100863488,605.95,P.F. Cusack (Tools Supplies) Ltd
Manchester City Council,Hospitality + Trading Services,Rents,13.06.2016,1905149018,"4,857.13",St Modwen Corporate Services Ltd
Manchester City Council,Hospitality + Trading Services,Rents,13.06.2016,1905149017,"2,553.28",St Modwen Corporate Services Ltd
Manchester City Council,Hospitality + Trading Services,Vehicle Hire Costs,13.06.2016,5100863331,"2,720.82",Dawson Rentals Sweepers
Manchester City Council,Environment and Operations,Compensation Payments,13.06.2016,1905140627,"1,180.00",Simpson Millar LLP
Manchester City Council,Adult Social Care,Agency staff provision,13.06.2016,5100862874,"6,505.38",Protocol Education Ltd
Manchester City Council,Adult Social Care,Agency staff provision,13.06.2016,5100862874,"4,577.86",Protocol Education Ltd
Manchester City Council,Adult Social Care,Agency staff provision,13.06.2016,5100862896,"4,361.52",P S Recruitment Specialists Ltd
Manchester City Council,Adult Social Care,Agency staff provision,13.06.2016,5100862995,"4,340.67",Barker Ross Health & Social Care
Manchester City Council,Adult Social Care,Agency staff provision,13.06.2016,5100862997,"3,154.53",4Social Work Ltd
Manchester City Council,Adult Social Care,Agency staff provision,13.06.2016,5100862896,"1,829.60",P S Recruitment Specialists Ltd
Manchester City Council,Adult Social Care,Agency staff provision,13.06.2016,5100862995,"1,663.91",Barker Ross Health & Social Care
Manchester City Council,Adult Social Care,Agency staff provision,13.06.2016,5100862896,"1,594.28",P S Recruitment Specialists Ltd
Manchester City Council,Adult Social Care,Agency staff provision,13.06.2016,5100862995,"1,580.41",Barker Ross Health & Social Care
Manchester City Council,Adult Social Care,Agency staff provision,13.06.2016,5100862896,"1,459.31",P S Recruitment Specialists Ltd
Manchester City Council,Adult Social Care,Agency staff provision,13.06.2016,5100862828,"1,424.64",Morgan Hunt Public Sector Ltd
Manchester City Council,Adult Social Care,Agency staff provision,13.06.2016,5100862896,"1,274.84",P S Recruitment Specialists Ltd
Manchester City Council,Adult Social Care,Agency staff provision,13.06.2016,5100862979,"1,232.98",Search Consultancy Ltd
Manchester City Council,Adult Social Care,Agency staff provision,13.06.2016,5100863966,"1,204.00",Capita  Resourcing Ltd
Manchester City Council,Adult Social Care,Agency staff provision,13.06.2016,5100862997,813.75,4Social Work Ltd
Manchester City Council,Adult Social Care,Agency staff provision,13.06.2016,5100863694,755.51,Manchester Mental Health & Social C
Manchester City Council,Adult Social Care,Agency staff provision,13.06.2016,5100863696,753.00,Manchester Mental Health & Social C
Manchester City Council,Adult Social Care,Agency staff provision,13.06.2016,5100862995,701.19,Barker Ross Health & Social Care
Manchester City Council,Adult Social Care,Agency staff provision,13.06.2016,5100862834,686.44,Kennoh Cleaning & Care
Manchester City Council,Adult Social Care,Agency staff provision,13.06.2016,5100862979,663.60,Search Consultancy Ltd
Manchester City Council,Adult Social Care,Agency staff provision,13.06.2016,5100862995,660.12,Barker Ross Health & Social Care
Manchester City Council,Adult Social Care,Agency staff provision,13.06.2016,5100862834,654.82,Kennoh Cleaning & Care
Manchester City Council,Adult Social Care,Agency staff provision,13.06.2016,5100862828,653.98,Morgan Hunt Public Sector Ltd
Manchester City Council,Adult Social Care,Agency staff provision,13.06.2016,5100862995,584.04,Barker Ross Health & Social Care
Manchester City Council,Adult Social Care,Agency staff provision,13.06.2016,5100862896,557.69,P S Recruitment Specialists Ltd
Manchester City Council,Adult Social Care,Agency staff provision,13.06.2016,5100863000,538.30,Deekay Technical Recruitment Ltd
Manchester City Council,Adult Social Care,Agency staff provision,13.06.2016,5100863963,"-1,204.00",Capita  Resourcing Ltd
Manchester City Council,Adult Social Care,Home Care ,13.06.2016,5100863912,"1,066.75",Cooperative Childcare
Manchester City Council,Adult Social Care,Landline Telephone Charges,13.06.2016,1905070477,"1,137.00",BT PLC
Manchester City Council,Adult Social Care,Payments for services,13.06.2016,5100862660,"62,748.58",ABL Health Ltd
Manchester City Council,Adult Social Care,Payments for services,13.06.2016,5100862663,"27,500.00",ABL Health Ltd
Manchester City Council,Adult Social Care,Payments for services,13.06.2016,5100863927,"12,742.50",Time Specialist Support Ltd
Manchester City Council,Adult Social Care,Payments for services,13.06.2016,5100863909,"11,355.00",Time Specialist Support Ltd
Manchester City Council,Adult Social Care,Payments for services,13.06.2016,5100862657,"10,333.33",ABL Health Ltd
Manchester City Council,Adult Social Care,Payments for services,13.06.2016,5100863693,"3,626.66",Salford College
Manchester City Council,Adult Social Care,Personal needs of client,13.06.2016,5100863967,"2,719.20",Morris & Alexander Ltd
Manchester City Council,Adult Social Care,Professional fees,13.06.2016,5100863291,"9,664.00",Wythenshawe Community Initiative
Manchester City Council,Adult Social Care,Rents,13.06.2016,5100863731,"33,000.00",City South Manchester Housing Trust
Manchester City Council,Adult Social Care,Stationery,13.06.2016,5100863561,524.40,Northgate Public Services (UK) Ltd
Manchester City Council,Adult Social Care,Subsistence and Conference Expenses,13.06.2016,5100863907,"1,477.54",The Mechanics Centre Ltd
Manchester City Council,Adult Social Care,Subsistence and Conference Expenses,13.06.2016,5100863191,520.00,Trinity College London
Manchester City Council,Adult Social Care,Subsistence and Conference Expenses,13.06.2016,5100863896,500.00,Irish World Heritage Centre
Manchester City Council,Adult Social Care,Supporting People Payments,13.06.2016,5100862892,"30,183.00",Action For Children
Manchester City Council,Adult Social Care,Supporting People Payments,13.06.2016,5100863987,"4,592.16",People First Housing Association
Manchester City Council,Adult Social Care,Third party payments relating to Voluntary Organisations,13.06.2016,5100863563,"44,308.08",Lifeline Project Limited
Manchester City Council,Adult Social Care,Third party payments relating to Voluntary Organisations,13.06.2016,5100863969,"25,000.00",Manchester Care & Repair Ltd
Manchester City Council,Adult Social Care,Third party payments relating to Voluntary Organisations,13.06.2016,5100863970,"25,000.00",Manchester Care & Repair Ltd
Manchester City Council,Adult Social Care,Third party payments relating to Voluntary Organisations,13.06.2016,5100863971,"25,000.00",Manchester Care & Repair Ltd
Manchester City Council,Adult Social Care,Third party payments relating to Voluntary Organisations,13.06.2016,5100862714,"8,748.00",Back On Track
Manchester City Council,Adult Social Care,Third party payments relating to Voluntary Organisations,13.06.2016,5100863983,"8,410.50",People First Housing Association
Manchester City Council,Adult Social Care,Third party payments relating to Voluntary Organisations,13.06.2016,5100863964,"6,737.00",Great Places Housing Association
Manchester City Council,Adult Social Care,Third party payments relating to Voluntary Organisations,13.06.2016,5100863868,"3,074.25",LMCP Care Link
Manchester City Council,Adult Social Care,Third party payments relating to Voluntary Organisations,13.06.2016,5100863944,"2,394.00",Manchester Communication Academy
Manchester City Council,Adult Social Care,Third party payments relating to Voluntary Organisations,13.06.2016,5100863869,"2,281.00",LMCP Care Link
Manchester City Council,Adult Social Care,Third party payments relating to Voluntary Organisations,13.06.2016,5100863866,"1,430.00",LMCP Care Link
Manchester City Council,Adult Social Care,Third party payments relating to Voluntary Organisations,13.06.2016,5100863924,"1,133.75",Royal Oak & Baguley Residents Assoc
Manchester City Council,Adult Social Care,Third party payments to Health Authority,13.06.2016,1905123406,"31,958.00",Bridgewater Community Healthcare
Manchester City Council,Adult Social Care,Third party payments to Health Authority,13.06.2016,5100863442,"7,500.00",Alere Ltd
Manchester City Council,Adult Social Care,Training and Development,13.06.2016,1905139813,"1,775.00",Expert Psychology Consultancy Ltd
Manchester City Council,Adult Social Care,Training and Development,13.06.2016,5100863428,776.00,Trinity College London
Manchester City Council,Adult Social Care,Training and Development,13.06.2016,5100863423,636.00,Trinity College London
Manchester City Council,Adult Social Care,Training and Development,13.06.2016,5100863398,575.00,Trinity College London
Manchester City Council,Adult Social Care,Transport Coach Hire,13.06.2016,5100863948,"2,280.00",Taxi Team Limited
Manchester City Council,Adult Social Care,Transport Coach Hire,13.06.2016,5100863946,"2,242.00",Taxi Team Limited
Manchester City Council,Adult Social Care,Transport Coach Hire,13.06.2016,5100863956,"2,071.00",Taxi Team Limited
Manchester City Council,Adult Social Care,Transport Coach Hire,13.06.2016,5100863947,"1,900.00",Taxi Team Limited
Manchester City Council,Adult Social Care,Transport Coach Hire,13.06.2016,5100863486,"1,710.00",Redacted Personal Information
Manchester City Council,Childrens Services,Building Works,13.06.2016,5100863716,"10,000.00",United Learning Trust
Manchester City Council,Childrens Services,Works and associated costs for Land and Buildings,13.06.2016,5100863208,"27,643.51",Capita IT Services (BSF) Limited
Manchester City Council,Childrens Services,Works and associated costs for Land and Buildings,13.06.2016,5100863210,"14,221.43",Capita IT Services (BSF) Limited
Manchester City Council,Childrens Services,Works and associated costs for Land and Buildings,13.06.2016,5100863214,"8,105.83",Capita IT Services (BSF) Limited
Manchester City Council,Childrens Services,Works and associated costs for Land and Buildings,13.06.2016,5100863212,"6,387.50",Capita IT Services (BSF) Limited
Manchester City Council,Childrens Services,Works and associated costs for Land and Buildings,13.06.2016,5100863222,"6,281.99",Capita IT Services (BSF) Limited
Manchester City Council,Childrens Services,Works and associated costs for Land and Buildings,13.06.2016,5100863206,"1,275.00",Capita IT Services (BSF) Limited
Manchester City Council,Corporate Services,Agency staff provision,13.06.2016,5100863012,682.91,Michael Page International
Manchester City Council,Corporate Services,Refuse Collection,13.06.2016,5100863936,576.00,SAICA Natur
Manchester City Council,Corporate Services,Storage Costs,13.06.2016,5100863373,"5,036.19",Box-It (NW)
Manchester City Council,Corporate Services,Welfare Provision Service Awards,13.06.2016,5100863260,560.03,The Furnishing Service Ltd
Manchester City Council,Corporate Services,Works and associated costs for Land and Buildings,13.06.2016,5100863854,"26,725.51",Irish Diaspora Foundation
Manchester City Council,Housing General Fund,Professional fees,13.06.2016,5100863973,"13,000.00",Manchester Care & Repair Ltd
Manchester City Council,Housing General Fund,Surplus property Fees,13.06.2016,1905151070,"502,248.45",Scott Hyman & Co
Manchester City Council,Housing Revenue Account,Council Dwelling Adaptations,13.06.2016,5100863918,"2,369.28",Rexel UK Ltd
Manchester City Council,Housing Revenue Account,Private Finance and Public Private partnership initiatives,13.06.2016,5100863859,"440,028.28",Grove Village Ltd
Manchester City Council,Housing Revenue Account,Tenants Management Organisation Fees,13.06.2016,5100862715,"23,643.60",SHOUT TMO
Manchester City Council,Chief Executives,Agency staff provision,13.06.2016,5100862995,"30,951.36",Barker Ross Health & Social Care
Manchester City Council,Chief Executives,Agency staff provision,13.06.2016,5100862979,"19,399.07",Search Consultancy Ltd
Manchester City Council,Chief Executives,Agency staff provision,13.06.2016,5100863806,"15,048.00",Penna PLC
Manchester City Council,Chief Executives,Agency staff provision,13.06.2016,5100862997,"12,127.29",4Social Work Ltd
Manchester City Council,Chief Executives,Agency staff provision,13.06.2016,5100862828,"11,010.35",Morgan Hunt Public Sector Ltd
Manchester City Council,Chief Executives,Agency staff provision,13.06.2016,5100863012,"5,253.25",Michael Page International
Manchester City Council,Chief Executives,Agency staff provision,13.06.2016,5100862896,"3,283.25",P S Recruitment Specialists Ltd
Manchester City Council,Chief Executives,Agency staff provision,13.06.2016,5100862834,"3,102.15",Kennoh Cleaning & Care
Manchester City Council,Chief Executives,Agency staff provision,13.06.2016,5100863012,"2,410.00",Michael Page International
Manchester City Council,Chief Executives,Agency staff provision,13.06.2016,5100863000,"1,823.55",Deekay Technical Recruitment Ltd
Manchester City Council,Chief Executives,Agency staff provision,13.06.2016,5100863001,"1,709.37",TeacherActive Ltd
Manchester City Council,Chief Executives,Agency staff provision,13.06.2016,5100863000,"1,035.00",Deekay Technical Recruitment Ltd
Manchester City Council,Chief Executives,General Office expenses,13.06.2016,5100863945,"1,500.00",Manchester Cathedral Visitor Centre
Manchester City Council,Chief Executives,Grant Payments,13.06.2016,5100863990,"40,000.00",North West Employers Ltd
Manchester City Council,Chief Executives,Rents,13.06.2016,5100863559,"3,600.00",Principal Agent Management Ltd
Manchester City Council,Chief Executives,Rents,13.06.2016,5100863554,"1,177.83",Principal Agent Management Ltd
Manchester City Council,Chief Executives,"Vehicles, Plant, Furniture & Equip - Adaptations",13.06.2016,5100863012,"1,764.70",Michael Page International
Manchester City Council,Regeneration Finance,Agency staff provision,13.06.2016,5100863966,"1,012.20",Capita  Resourcing Ltd
Manchester City Council,Regeneration Finance,Agency staff provision,13.06.2016,5100863963,"-1,012.20",Capita  Resourcing Ltd
Manchester City Council,Regeneration Finance,Grant Payments,13.06.2016,5100863749,"19,550.00",British Muslim Heritage Centre
Manchester City Council,Regeneration Finance,Grounds Maintenance Costs,13.06.2016,5100862936,585.00,Countrywide Grounds Maintenance Ltd
Manchester City Council,Regeneration Finance,Payments to Sub-Contractors,13.06.2016,5100862455,"2,940.00",ITS Testing Services (UK) Ltd
Manchester City Council,Regeneration Finance,Preventative Maintenance Work,13.06.2016,5100863700,"272,229.18",Manchester Working Ltd
Manchester City Council,Regeneration Finance,Professional fees,13.06.2016,5100863395,625.00,Manchester Bike Hire
Manchester City Council,General Fund,Levies - Cash Limit,13.06.2016,1905075431,"3,603,875.80",GMCA
Manchester City Council,Insurance Fund,Insurance,13.06.2016,5100863873,"733,709.27",Zurich Insurance
Manchester City Council,Insurance Fund,Insurance,13.06.2016,5100863893,"28,931.02",Zurich Insurance
Manchester City Council,Insurance Fund,Insurance,13.06.2016,5100863883,"16,195.48",Zurich Insurance
Manchester City Council,Insurance Fund,Insurance,13.06.2016,1905149011,"12,000.00",Thompsons Solicitors
Manchester City Council,Insurance Fund,Insurance,13.06.2016,5100863886,"6,575.00",Zurich Insurance
Manchester City Council,Insurance Fund,Insurance,13.06.2016,5100863874,"5,822.44",Zurich Insurance
Manchester City Council,Insurance Fund,Insurance,13.06.2016,5100863880,"2,381.51",Zurich Insurance
Manchester City Council,Insurance Fund,Insurance,13.06.2016,5100863895,615.55,Zurich Insurance
Manchester City Council,GMIST (Greater Mcr Integrated),I T Provision,13.06.2016,5100863665,"8,700.00",Limehouse Software Ltd
Manchester City Council,GMIST (Greater Mcr Integrated),Professional fees,13.06.2016,5100863905,"64,250.00",Kpmg Llp
Manchester City Council,Manchester Leisure,Equipment,14.06.2016,5100864019,"1,950.00",Manchester Youth Academy
Manchester City Council,Manchester Leisure,Equipment,14.06.2016,5100864014,"1,800.00",Manchester Youth Academy
Manchester City Council,Manchester Leisure,Equipment,14.06.2016,5100864018,"1,800.00",Manchester Youth Academy
Manchester City Council,Manchester Leisure,Equipment,14.06.2016,5100864016,"1,750.00",Manchester Youth Academy
Manchester City Council,Manchester Leisure,Equipment,14.06.2016,5100864023,"1,700.00",Manchester Youth Academy
Manchester City Council,Manchester Leisure,Equipment,14.06.2016,5100864020,"1,000.00",Manchester Youth Academy
Manchester City Council,Manchester Leisure,Goods purchased for resale in Council outlets,14.06.2016,5100863580,"1,030.50",Cornflower Ltd
Manchester City Council,Manchester Leisure,Goods purchased for resale in Council outlets,14.06.2016,1905149948,644.15,Woolf And Moon
Manchester City Council,Manchester Leisure,Grant Payments,14.06.2016,5100864158,"5,814.00",Wythenshawe Oasis
Manchester City Council,Manchester Leisure,Grant Payments,14.06.2016,1905149872,550.00,Blackley in Bloom
Manchester City Council,Manchester Leisure,Purchase Card Cash Withdrawals Default code,14.06.2016,1905151858,700.00,ROYAL BANK OF SCOTLANCASH
Manchester City Council,Manchester Leisure,Special Events,14.06.2016,5100864184,"8,241.00",T 3 Events
Manchester City Council,Manchester Leisure,Special Events,14.06.2016,5100864188,"-8,241.00",T 3 Events
Manchester City Council,Manchester Leisure,Subsistence and Conference Expenses,14.06.2016,1905138712,"1,300.00",Earby Mines Research Group Museums
Manchester City Council,Manchester Leisure,Testing Fees,14.06.2016,5100864182,"1,055.00",County Scientific Services
Manchester City Council,Hospitality + Trading Services,Catering Provisions,14.06.2016,1905151868,619.82,Brake Bros Foodservice Ltd
Manchester City Council,Hospitality + Trading Services,Catering Provisions,14.06.2016,1905151822,556.17,Brake Bros Foodservice Ltd
Manchester City Council,Hospitality + Trading Services,Cleaning Equipment and Materials,14.06.2016,5100864119,849.50,Alliance Disposables Ltd
Manchester City Council,Hospitality + Trading Services,Furniture,14.06.2016,5100864136,502.70,Banner Business Services Ltd
Manchester City Council,Hospitality + Trading Services,Hire of Machinery,14.06.2016,5100864186,"12,080.50",H & C Plant Hire Ltd
Manchester City Council,Hospitality + Trading Services,Hire of Machinery,14.06.2016,5100864187,"11,512.68",Fast Hire UK
Manchester City Council,Hospitality + Trading Services,Payments to Sub-Contractors,14.06.2016,5100864148,"2,537.99",Rosgal Ltd
Manchester City Council,Hospitality + Trading Services,Tipping Charges - Tonnage,14.06.2016,5100863730,"1,860.00",J.Hopkins (Contractors) Ltd.
Manchester City Council,Hospitality + Trading Services,Vehicle Hire Costs,14.06.2016,5100864073,"3,157.80",Fleet Dynamic Consultancy Ltd
Manchester City Council,Environment and Operations,Professional fees,14.06.2016,5100862403,"4,901.95",Amey OW Limited
Manchester City Council,Environment and Operations,Compensation Payments,14.06.2016,1905132014,"1,018.00",Michael W Halsall Solicitors Ltd
Manchester City Council,Adult Social Care,External repairs and maintenance for buildings,14.06.2016,5100864067,"3,456.61",Manchester Working Ltd
Manchester City Council,Adult Social Care,Home Care ,14.06.2016,5100864080,721.50,Cooperative Childcare
Manchester City Council,Adult Social Care,Payments for services,14.06.2016,5100864201,"2,589.95",Redacted Personal Information
Manchester City Council,Adult Social Care,Supporting People Payments,14.06.2016,5100864029,991.66,Manchester Settlement
Manchester City Council,Adult Social Care,Third party payments relating to Voluntary Organisations,14.06.2016,5100864216,"47,769.50",Family Action
Manchester City Council,Adult Social Care,Third party payments relating to Voluntary Organisations,14.06.2016,5100863993,"1,062.00",MCCR
Manchester City Council,Adult Social Care,Third party payments relating to Voluntary Organisations,14.06.2016,5100864046,955.75,Manchester Settlement
Manchester City Council,Adult Social Care,Third party payments relating to Voluntary Organisations,14.06.2016,5100863999,947.00,MCCR
Manchester City Council,Adult Social Care,Third party payments relating to Voluntary Organisations,14.06.2016,5100864035,859.50,Manchester Settlement
Manchester City Council,Adult Social Care,Third party payments relating to Voluntary Organisations,14.06.2016,5100864049,767.25,Longsight (Aisha) Nursery
Manchester City Council,Adult Social Care,Third party payments relating to Voluntary Organisations,14.06.2016,5100864057,511.50,The Big Life Company
Manchester City Council,Adult Social Care,Third party payments to other Local Authorities,14.06.2016,5100864012,"4,502.17",Sharples School
Manchester City Council,Adult Social Care,Transport Coach Hire,14.06.2016,5100862799,"29,948.80",Mantax Radio Taxis Ltd
Manchester City Council,Adult Social Care,Transport Coach Hire,14.06.2016,5100864211,"6,498.00",T/A Schools Direct
Manchester City Council,Adult Social Care,Transport Coach Hire,14.06.2016,5100864208,"3,762.00",T/A Schools Direct
Manchester City Council,Adult Social Care,Legal Fees,14.06.2016,1905137903,"2,125.00",Redacted Personal Information
Manchester City Council,Adult Social Care,Compensation Payments,14.06.2016,1905139816,"7,304.00",Simpson Millar Solicitors LLP
Manchester City Council,Childrens Services,Works and associated costs for Land and Buildings,14.06.2016,5100864196,"178,677.78",Laing O'Rourke Construction Ltd
Manchester City Council,Corporate Services,Grant and subscriptions awarded,14.06.2016,5100864009,570.00,Compliance365
Manchester City Council,Corporate Services,Grant and subscriptions awarded,14.06.2016,5100864008,530.00,Compliance365
Manchester City Council,Corporate Services,Transport Taxis,14.06.2016,1905152974,"3,597.90",Manchester Cars
Manchester City Council,Corporate Services,Works and associated costs for Land and Buildings,14.06.2016,5100864043,"241,175.61",Conlon Construction Ltd
Manchester City Council,Corporate Services,Works and associated costs for Land and Buildings,14.06.2016,5100864042,"156,159.07",Conlon Construction Ltd
Manchester City Council,Corporate Services,Works and associated costs for Land and Buildings,14.06.2016,5100864042,"59,717.37",Conlon Construction Ltd
Manchester City Council,Corporate Services,Works and associated costs for Land and Buildings,14.06.2016,5100864062,"7,545.00",Manchester Working Ltd
Manchester City Council,Housing Revenue Account,Council Dwelling Adaptations,14.06.2016,5100864059,"35,240.48",Manchester Working Ltd
Manchester City Council,Housing Revenue Account,Council Dwelling Adaptations,14.06.2016,5100864021,"12,937.68",IG Doors Ltd
Manchester City Council,Housing Revenue Account,Council Dwelling Adaptations,14.06.2016,5100864064,"9,816.54",Manchester Working Ltd
Manchester City Council,Housing Revenue Account,Council Dwelling Adaptations,14.06.2016,5100864027,663.89,IG Doors Ltd
Manchester City Council,Chief Executives,Professional fees,14.06.2016,1905137840,"1,352.70",Encounter Consulting Ltd
Manchester City Council,Chief Executives,Transport Coach Hire,14.06.2016,5100864028,550.00,R Bullock & Co (Transport) Ltd
Manchester City Council,Chief Executives,Vehicle Hire Costs,14.06.2016,5100862835,750.75,Manchester Van Hire Ltd
Manchester City Council,Regeneration Finance,External repairs and maintenance for buildings,14.06.2016,5100864050,"21,430.78",Manchester Working Ltd
Manchester City Council,Regeneration Finance,Grant Payments,14.06.2016,5100864166,"4,000.00",Manchester Jewish Museum
Manchester City Council,Regeneration Finance,Compensation Payments,14.06.2016,5100864165,"1,600.50",Addleshaw Goddard Solicitors
Manchester City Council,GMIST (Greater Mcr Integrated),Seconded Employees,14.06.2016,5100864071,"19,969.54",Oldham Borough Council
Manchester City Council,GMIST (Greater Mcr Integrated),Seconded Employees,14.06.2016,5100864070,"-19,969.54",Oldham Borough Council
Manchester City Council,Manchester Leisure,Professional fees,15.06.2016,5100864254,"56,918.83",British Cycling Events Limited
Manchester City Council,Manchester Leisure,Professional fees,15.06.2016,5100864375,"19,482.00",Set Free Projects Ltd
Manchester City Council,Manchester Leisure,Professional fees,15.06.2016,5100864300,"1,979.00",Clearview Event Services Limited
Manchester City Council,Manchester Leisure,Professional fees,15.06.2016,5100864375,"-3,997.00",Set Free Projects Ltd
Manchester City Council,Manchester Leisure,Refuse Collection,15.06.2016,5100864287,"1,250,227.02",Biffa Municipal Limited
Manchester City Council,Manchester Leisure,Special Events,15.06.2016,5100864284,"8,241.00",T 3 Events
Manchester City Council,Manchester Leisure,Subsistence and Conference Expenses,15.06.2016,1905151069,649.00,Citrus Training Limited
Manchester City Council,Hospitality + Trading Services,Building Materials for direct delivery,15.06.2016,1905158124,703.52,Benchmark Building Supplies Ltd
Manchester City Council,Hospitality + Trading Services,Building Materials for direct delivery,15.06.2016,1905157186,565.60,Ecomix Concrete Ltd
Manchester City Council,Hospitality + Trading Services,Catering Provisions,15.06.2016,1905157162,714.19,BRAMBLES FOODS LTD
Manchester City Council,Hospitality + Trading Services,Catering Provisions,15.06.2016,1905157173,645.82,Brake Bros Foodservice Ltd
Manchester City Council,Hospitality + Trading Services,Catering Provisions,15.06.2016,1905157122,587.53,Brake Bros Foodservice Ltd
Manchester City Council,Hospitality + Trading Services,Catering Provisions,15.06.2016,1905157055,558.99,Ralph Livesey Ltd
Manchester City Council,Hospitality + Trading Services,Catering Provisions,15.06.2016,1905157060,522.60,Brake Bros Foodservice Ltd
Manchester City Council,Hospitality + Trading Services,Catering Provisions,15.06.2016,1905157094,514.41,Ralph Livesey Ltd
Manchester City Council,Hospitality + Trading Services,Catering Provisions,15.06.2016,1905157180,500.59,Brake Bros Foodservice Ltd
Manchester City Council,Hospitality + Trading Services,Collection Commission,15.06.2016,5100864322,"6,467.33",Verrus (UK) T/A paybyphone
Manchester City Council,Hospitality + Trading Services,Data Registration Fee,15.06.2016,1905113416,"2,436.00",HMCS Traffic EC
Manchester City Council,Hospitality + Trading Services,Data Registration Fee,15.06.2016,1905150955,847.00,HMCS Traffic EC
Manchester City Council,Hospitality + Trading Services,Hire of Equipment,15.06.2016,5100864189,648.88,Fast Hire UK
Manchester City Council,Hospitality + Trading Services,Insurance,15.06.2016,1905150957,"9,124.52",Zurich Municipal
Manchester City Council,Hospitality + Trading Services,Payments to Sub-Contractors,15.06.2016,5100864185,"48,313.68",Clearway Drainage Systems Ltd
Manchester City Council,Hospitality + Trading Services,Professional fees,15.06.2016,1905151063,"17,650.00",DTZ Debenham Tie Leung Limited
Manchester City Council,Hospitality + Trading Services,Rents,15.06.2016,1905149910,"27,307.00",CBRE Ltd
Manchester City Council,Hospitality + Trading Services,Rents,15.06.2016,1905151180,"4,766.86",Danish UK Property Management Ltd
Manchester City Council,Hospitality + Trading Services,Vehicle Costs,15.06.2016,5100863578,565.00,RLM Installations
Manchester City Council,Environment and Operations,Professional fees,15.06.2016,5100862288,"2,300.00",Curtins Consulting Ltd
Manchester City Council,Adult Social Care,Agency staff provision,15.06.2016,5100863862,"4,277.00",HCL Social Care
Manchester City Council,Adult Social Care,Agency staff provision,15.06.2016,5100863005,"1,203.70",Morgan Hunt Public Sector Ltd
Manchester City Council,Adult Social Care,Agency staff provision,15.06.2016,5100862893,"1,187.57",Gian Healthcare Ltd
Manchester City Council,Adult Social Care,Agency staff provision,15.06.2016,5100863808,"1,060.15",Entrust Social Care
Manchester City Council,Adult Social Care,Agency staff provision,15.06.2016,5100863808,853.65,Entrust Social Care
Manchester City Council,Adult Social Care,Agency staff provision,15.06.2016,5100862893,748.41,Gian Healthcare Ltd
Manchester City Council,Adult Social Care,Agency staff provision,15.06.2016,5100863808,609.20,Entrust Social Care
Manchester City Council,Adult Social Care,Agency staff provision,15.06.2016,5100863005,516.30,Morgan Hunt Public Sector Ltd
Manchester City Council,Adult Social Care,Bed and Breakfast Accommodation Expenditure,15.06.2016,5100863793,"12,730.00",346 Ltd t/a Lansdowne Hotel
Manchester City Council,Adult Social Care,Childrens Allowances,15.06.2016,1905151885,"1,737.00",Barnardos Manchester Leaving Care S
Manchester City Council,Adult Social Care,Extra Care Sheltered Housing Payments,15.06.2016,5100863440,"20,582.24",Carewest Limited
Manchester City Council,Adult Social Care,Extra Care Sheltered Housing Payments,15.06.2016,5100864378,"19,423.92",Homecare Support
Manchester City Council,Adult Social Care,Fixtures and Fittings,15.06.2016,1905151885,"4,350.00",Barnardos Manchester Leaving Care S
Manchester City Council,Adult Social Care,Home Care ,15.06.2016,5100864381,837.00,Skittles Childcare Ltd
Manchester City Council,Adult Social Care,Payments for services,15.06.2016,5100863074,"26,665.43",Care Concepts Ltd
Manchester City Council,Adult Social Care,Payments for services,15.06.2016,5100864301,"13,947.53",H.G. Care Services Ltd
Manchester City Council,Adult Social Care,Payments for services,15.06.2016,5100863035,"8,849.65",Age Concern Manchester
Manchester City Council,Adult Social Care,Payments for services,15.06.2016,5100864302,"7,007.12",H.G. Care Services Ltd
Manchester City Council,Adult Social Care,Payments for services,15.06.2016,5100863035,"4,749.26",Age Concern Manchester
Manchester City Council,Adult Social Care,Personal Needs of Residents - Other Amenities,15.06.2016,1905151885,"1,945.90",Barnardos Manchester Leaving Care S
Manchester City Council,Adult Social Care,Private Finance and Public Private partnership initiatives,15.06.2016,5100863082,"74,785.80",NU3PS
Manchester City Council,Adult Social Care,Third party payments relating to Voluntary Organisations,15.06.2016,5100864221,"32,092.00",Family Action
Manchester City Council,Adult Social Care,Third party payments relating to Voluntary Organisations,15.06.2016,5100863650,"6,498.66",Wai Yin Society
Manchester City Council,Adult Social Care,Third party payments relating to Voluntary Organisations,15.06.2016,5100863224,"5,373.25",Manchester Mind
Manchester City Council,Adult Social Care,Third party payments relating to Voluntary Organisations,15.06.2016,5100863663,"3,712.50",Chorlton Good Neighbours
Manchester City Council,Adult Social Care,Third party payments relating to Voluntary Organisations,15.06.2016,5100863671,"3,075.00",Assist
Manchester City Council,Adult Social Care,Third party payments relating to Voluntary Organisations,15.06.2016,5100863229,"2,916.60",Manchester Mind
Manchester City Council,Adult Social Care,Third party payments relating to Voluntary Organisations,15.06.2016,5100864223,"2,532.00",Federation of Jewish Services
Manchester City Council,Adult Social Care,Third party payments relating to Voluntary Organisations,15.06.2016,5100862671,"2,523.24",St Lukes Art Project
Manchester City Council,Adult Social Care,Third party payments relating to Voluntary Organisations,15.06.2016,5100862668,"2,523.16",St Lukes Art Project
Manchester City Council,Adult Social Care,Third party payments relating to Voluntary Organisations,15.06.2016,5100864203,"2,385.00",Connect Support Ltd
Manchester City Council,Adult Social Care,Third party payments relating to Voluntary Organisations,15.06.2016,5100863106,"2,186.16",Neesa Well Women Drop-In Project
Manchester City Council,Adult Social Care,Third party payments relating to Voluntary Organisations,15.06.2016,5100863724,"2,175.00",Burnage Good Neighbours
Manchester City Council,Adult Social Care,Third party payments relating to Voluntary Organisations,15.06.2016,5100863390,"1,950.00",Didsbury Good Neighbours Ltd
Manchester City Council,Adult Social Care,Third party payments relating to Voluntary Organisations,15.06.2016,5100862628,"1,650.00",Barlow Moor Community Association
Manchester City Council,Adult Social Care,Third party payments relating to Voluntary Organisations,15.06.2016,5100863004,"1,500.00",Age Concern Manchester
Manchester City Council,Adult Social Care,Third party payments relating to Voluntary Organisations,15.06.2016,5100864224,"1,028.00",Federation of Jewish Services
Manchester City Council,Adult Social Care,Third party payments relating to Voluntary Organisations,15.06.2016,5100864257,660.00,TiddlyWinks Creche Provisions
Manchester City Council,Adult Social Care,Third party payments relating to Voluntary Organisations,15.06.2016,5100864259,528.00,TiddlyWinks Creche Provisions
Manchester City Council,Adult Social Care,Training and Development,15.06.2016,1905151885,"11,839.20",Barnardos Manchester Leaving Care S
Manchester City Council,Adult Social Care,Training and Development,15.06.2016,5100856554,"1,721.25",Edexcel
Manchester City Council,Adult Social Care,Transport Coach Hire,15.06.2016,5100864022,"2,341.00",Nelson Transport
Manchester City Council,Adult Social Care,Transport Coach Hire,15.06.2016,5100863481,"1,710.00",APL Coachhire
Manchester City Council,Adult Social Care,Legal Fees,15.06.2016,5100864222,750.00,Redacted Personal Information
Manchester City Council,Adult Social Care,Legal Fees,15.06.2016,1905158141,"2,420.00",Liberata
Manchester City Council,Adult Social Care,Legal Fees,15.06.2016,1905158142,"4,540.00",Liberata
Manchester City Council,Adult Social Care,Legal Fees,15.06.2016,1905158144,"4,780.00",Liberata
Manchester City Council,Adult Social Care,Legal Fees,15.06.2016,1905158135,"15,695.00",Liberata
Manchester City Council,Adult Social Care,Compensation Payments,15.06.2016,1905158133,"1,955.00",Liberata
Manchester City Council,Chief Executives,Agency staff provision,15.06.2016,5100863862,"9,071.16",HCL Social Care
Manchester City Council,Chief Executives,Agency staff provision,15.06.2016,5100862893,"8,427.03",Gian Healthcare Ltd
Manchester City Council,Chief Executives,Agency staff provision,15.06.2016,5100863808,"3,542.35",Entrust Social Care
Manchester City Council,Chief Executives,Agency staff provision,15.06.2016,5100863005,"1,655.64",Morgan Hunt Public Sector Ltd
Manchester City Council,Chief Executives,Funeral and coroner related services,15.06.2016,1905152949,"3,407.50",Redacted Personal Information
Manchester City Council,Chief Executives,Funeral and coroner related services,15.06.2016,1905152957,"1,037.76",Redacted Personal Information
Manchester City Council,Chief Executives,I T Provision,15.06.2016,5100863711,"1,578.83",Computerland Uk Ltd
Manchester City Council,Chief Executives,Legal Fees,15.06.2016,1905158139,"12,115.00",Liberata
Manchester City Council,Chief Executives,Compensation Payments,15.06.2016,1905152992,"1,275.00",Bolt Burdon Solicitors
Manchester City Council,Chief Executives,Compensation Payments,15.06.2016,1905158137,"10,875.00",Liberata
Manchester City Council,Regeneration Finance,Agency staff provision,15.06.2016,5100864393,733.04,Bs Project Services Ltd T/A
Manchester City Council,Regeneration Finance,External repairs and maintenance for buildings,15.06.2016,5100864157,"1,750.00",P Mcguinness & Co Ltd
Manchester City Council,Regeneration Finance,External repairs and maintenance for buildings,15.06.2016,5100864159,"1,660.00",P Mcguinness & Co Ltd
Manchester City Council,Regeneration Finance,Professional fees,15.06.2016,5100862885,"10,052.20",Turner & Townsend Project
Manchester City Council,Regeneration Finance,Professional fees,15.06.2016,5100864309,"1,680.00",Redacted Personal Information
Manchester City Council,Manchester Leisure,Electricity,16.06.2016,1905158567,"11,109.03",British Gas Plc
Manchester City Council,Manchester Leisure,Electricity,16.06.2016,1905158568,"10,258.78",British Gas Plc
Manchester City Council,Manchester Leisure,Electricity,16.06.2016,1905158565,"10,215.79",British Gas Plc
Manchester City Council,Manchester Leisure,Electricity,16.06.2016,1905158570,"9,307.81",British Gas Plc
Manchester City Council,Manchester Leisure,Electricity,16.06.2016,1905158566,"8,140.70",British Gas Plc
Manchester City Council,Manchester Leisure,Electricity,16.06.2016,1905158569,"7,926.16",British Gas Plc
Manchester City Council,Manchester Leisure,Electricity,16.06.2016,1905158564,"5,388.90",British Gas Plc
Manchester City Council,Manchester Leisure,Equipment,16.06.2016,5100864497,"6,778.60",Fairway Landscapes Ltd
Manchester City Council,Manchester Leisure,Grant and subscriptions awarded,16.06.2016,5100863931,"21,101.00",Manchester Hive Network Limited
Manchester City Council,Manchester Leisure,Grant Payments,16.06.2016,1905153043,900.00,The Gaskell Garden Project
Manchester City Council,Manchester Leisure,Grant Payments,16.06.2016,1905153043,800.00,The Gaskell Garden Project
Manchester City Council,Manchester Leisure,Grant Payments,16.06.2016,1905151189,540.00,Grove Lane Sheltered Accomodation
Manchester City Council,Manchester Leisure,I T Provision,16.06.2016,5100864523,597.55,Banner Business Services Ltd
Manchester City Council,Manchester Leisure,Professional fees,16.06.2016,5100863019,"2,885.75",F R Monkhouse Ltd
Manchester City Council,Manchester Leisure,Publications,16.06.2016,5100864459,747.32,Askews and Holts
Manchester City Council,Manchester Leisure,Stationery,16.06.2016,5100864102,500.42,Banner Business Services Ltd
Manchester City Council,Hospitality + Trading Services,Catering Provisions,16.06.2016,1905158456,745.86,Chicken Joes Limited
Manchester City Council,Hospitality + Trading Services,Catering Provisions,16.06.2016,1905158454,739.18,Brake Bros Foodservice Ltd
Manchester City Council,Hospitality + Trading Services,Catering Provisions,16.06.2016,1905158428,658.56,Brake Bros Foodservice Ltd
Manchester City Council,Hospitality + Trading Services,Catering Provisions,16.06.2016,1905158447,575.83,Brake Bros Foodservice Ltd
Manchester City Council,Hospitality + Trading Services,Catering Provisions,16.06.2016,1905158452,527.19,Brake Bros Foodservice Ltd
Manchester City Council,Hospitality + Trading Services,Catering Provisions,16.06.2016,1905158437,518.22,Brake Bros Foodservice Ltd
Manchester City Council,Hospitality + Trading Services,Electricity,16.06.2016,1905158559,881.64,Scottish & Southern Energy Plc
Manchester City Council,Hospitality + Trading Services,Hire of Equipment,16.06.2016,5100864548,547.80,Mastacab LLP
Manchester City Council,Hospitality + Trading Services,Refuse Collection,16.06.2016,5100863930,572.40,SAICA Natur
Manchester City Council,Environment and Operations,Building Materials for direct delivery,16.06.2016,5100864599,760.00,Rigby Taylor Ltd
Manchester City Council,Environment and Operations,Construction Works,16.06.2016,5100864315,"1,547.61",GMCA
Manchester City Council,Environment and Operations,Construction Works,16.06.2016,5100864314,"1,372.68",GMCA
Manchester City Council,Environment and Operations,Electricity,16.06.2016,1905158556,"180,008.93",Scottish & Southern Energy Plc
Manchester City Council,Environment and Operations,Electricity,16.06.2016,1905158561,"2,553.78",Scottish & Southern Energy Plc
Manchester City Council,Environment and Operations,Vehicle Fuel Costs,16.06.2016,5100864178,820.60,Carlton Fuels Ltd
Manchester City Council,Environment and Operations,Legal Fees,16.06.2016,5100864555,500.00,Redacted Personal Information
Manchester City Council,Adult Social Care,Agency staff provision,16.06.2016,5100863797,"5,361.16",Capita  Resourcing Ltd
Manchester City Council,Adult Social Care,Agency staff provision,16.06.2016,5100863087,"5,313.28",4Social Work Ltd
Manchester City Council,Adult Social Care,Agency staff provision,16.06.2016,5100863758,"4,053.88",Barker Ross Health & Social Care
Manchester City Council,Adult Social Care,Agency staff provision,16.06.2016,5100863087,"3,092.25",4Social Work Ltd
Manchester City Council,Adult Social Care,Agency staff provision,16.06.2016,5100863758,"1,709.19",Barker Ross Health & Social Care
Manchester City Council,Adult Social Care,Agency staff provision,16.06.2016,5100863075,"1,417.50",Medicare First
Manchester City Council,Adult Social Care,Agency staff provision,16.06.2016,5100863075,"1,288.00",Medicare First
Manchester City Council,Adult Social Care,Agency staff provision,16.06.2016,5100863797,"1,168.30",Capita  Resourcing Ltd
Manchester City Council,Adult Social Care,Agency staff provision,16.06.2016,5100863075,"1,028.30",Medicare First
Manchester City Council,Adult Social Care,Agency staff provision,16.06.2016,5100863077,"1,023.05",Liquid Personnel Ltd
Manchester City Council,Adult Social Care,Agency staff provision,16.06.2016,5100863797,"1,006.25",Capita  Resourcing Ltd
Manchester City Council,Adult Social Care,Agency staff provision,16.06.2016,5100863075,967.75,Medicare First
Manchester City Council,Adult Social Care,Agency staff provision,16.06.2016,5100863077,967.75,Liquid Personnel Ltd
Manchester City Council,Adult Social Care,Agency staff provision,16.06.2016,5100863077,967.75,Liquid Personnel Ltd
Manchester City Council,Adult Social Care,Agency staff provision,16.06.2016,5100863758,890.52,Barker Ross Health & Social Care
Manchester City Council,Adult Social Care,Agency staff provision,16.06.2016,5100863797,718.90,Capita  Resourcing Ltd
Manchester City Council,Adult Social Care,Agency staff provision,16.06.2016,5100863758,629.64,Barker Ross Health & Social Care
Manchester City Council,Adult Social Care,Agency staff provision,16.06.2016,5100863758,590.32,Barker Ross Health & Social Care
Manchester City Council,Adult Social Care,Bed and Breakfast Accommodation Expenditure,16.06.2016,5100864557,"7,900.00",Redacted Personal Information
Manchester City Council,Adult Social Care,Childrens Allowances,16.06.2016,1905158052,694.80,Barnardos Manchester Leaving Care S
Manchester City Council,Adult Social Care,Childrens Allowances,16.06.2016,1905157189,636.90,Barnardos Manchester Leaving Care S
Manchester City Council,Adult Social Care,External repairs and maintenance for buildings,16.06.2016,5100864330,"1,531.27",Manchester Working Ltd
Manchester City Council,Adult Social Care,External repairs and maintenance for buildings,16.06.2016,5100864403,"-1,800.00",Manchester Working Ltd
Manchester City Council,Adult Social Care,Fixtures and Fittings,16.06.2016,1905157189,"3,805.00",Barnardos Manchester Leaving Care S
Manchester City Council,Adult Social Care,Hire of Premises,16.06.2016,5100863377,"2,320.00",Central Manchester University Hosp
Manchester City Council,Adult Social Care,Payments for services,16.06.2016,5100864457,"5,028.19",H.G. Care Services Ltd
Manchester City Council,Adult Social Care,Payments for services,16.06.2016,5100864455,"2,463.94",H.G. Care Services Ltd
Manchester City Council,Adult Social Care,Personal Needs of Residents - Other Amenities,16.06.2016,1905157189,"2,957.20",Barnardos Manchester Leaving Care S
Manchester City Council,Adult Social Care,Personal Needs of Residents - Other Amenities,16.06.2016,1905158052,"1,956.70",Barnardos Manchester Leaving Care S
Manchester City Council,Adult Social Care,Professional fees,16.06.2016,5100864421,"1,250.00",Redacted Personal Information
Manchester City Council,Adult Social Care,Professional fees,16.06.2016,1905149875,"1,216.70",Redacted Personal Information
Manchester City Council,Adult Social Care,Professional fees,16.06.2016,5100864271,695.00,t/a Anotherway
Manchester City Council,Adult Social Care,Subsistence and Conference Expenses,16.06.2016,5100864447,"3,135.00",Assoc of Directors of Childrens Svs
Manchester City Council,Adult Social Care,Subsistence and Conference Expenses,16.06.2016,5100864401,641.33,The Mechanics Centre Ltd
Manchester City Council,Adult Social Care,Third party payments relating to Voluntary Organisations,16.06.2016,5100864469,"5,255.13",Pathways CIC
Manchester City Council,Adult Social Care,Third party payments relating to Voluntary Organisations,16.06.2016,5100864191,"5,000.00",Sow the City
Manchester City Council,Adult Social Care,Third party payments relating to Voluntary Organisations,16.06.2016,5100863647,"2,625.00",Wai Yin Society
Manchester City Council,Adult Social Care,Third party payments relating to Voluntary Organisations,16.06.2016,5100863648,"2,250.00",Wai Yin Society
Manchester City Council,Adult Social Care,Third party payments relating to Voluntary Organisations,16.06.2016,5100863976,"1,950.00",People First Housing Association
Manchester City Council,Adult Social Care,Third party payments relating to Voluntary Organisations,16.06.2016,5100864468,"1,629.13",Alzheimers Society (Mcr Branch)
Manchester City Council,Adult Social Care,Third party payments relating to Voluntary Organisations,16.06.2016,5100864464,"1,500.00",George House Trust
Manchester City Council,Adult Social Care,Third party payments relating to Voluntary Organisations,16.06.2016,5100863809,"1,500.00",Ladybarn Community Association
Manchester City Council,Adult Social Care,Third party payments relating to Voluntary Organisations,16.06.2016,5100864476,673.00,Alzheimers Society (Mcr Branch)
Manchester City Council,Adult Social Care,Third party payments relating to Voluntary Organisations,16.06.2016,5100864426,660.50,The Generation Project
Manchester City Council,Adult Social Care,Third party payments to Health Authority,16.06.2016,5100864384,"401,023.00",Manchester Mental Health & Social C
Manchester City Council,Adult Social Care,Training and Development,16.06.2016,5100864554,"9,848.94",Resolutions Consultancy Pty Ltd
Manchester City Council,Adult Social Care,Training and Development,16.06.2016,1905158052,"5,875.20",Barnardos Manchester Leaving Care S
Manchester City Council,Adult Social Care,Training and Development,16.06.2016,1905157189,"5,352.00",Barnardos Manchester Leaving Care S
Manchester City Council,Adult Social Care,Travel,16.06.2016,1905152985,551.80,R.S.P. Ltd Br Business Systems Ltd
Manchester City Council,Adult Social Care,Legal Fees,16.06.2016,1905158046,820.00,Redacted Personal Information
Manchester City Council,Corporate Services,Agency staff provision,16.06.2016,5100863087,"1,654.52",4Social Work Ltd
Manchester City Council,Corporate Services,Agency staff provision,16.06.2016,5100864398,824.67,Bennett Staff Bureau
Manchester City Council,Corporate Services,Grant and subscriptions awarded,16.06.2016,5100864404,"1,000.00",Tameside Metropolitan Bouough
Manchester City Council,Corporate Services,Landline Telephone Charges,16.06.2016,5100864491,737.40,PMC Telecom
Manchester City Council,Corporate Services,Postage,16.06.2016,5100863920,"7,060.54",Royal Mail Group Plc
Manchester City Council,Corporate Services,Postage,16.06.2016,5100863923,"1,332.25",Royal Mail Group Plc
Manchester City Council,Housing Revenue Account,Electricity,16.06.2016,1905158560,"1,082.88",Scottish & Southern Energy Plc
Manchester City Council,Housing Revenue Account,Legal Fees,16.06.2016,5100863699,"34,000.00",Squire Sanders (UK) LLP
Manchester City Council,Chief Executives,Agency staff provision,16.06.2016,5100863087,"15,218.32",4Social Work Ltd
Manchester City Council,Chief Executives,Agency staff provision,16.06.2016,5100863758,"10,710.59",Barker Ross Health & Social Care
Manchester City Council,Chief Executives,Agency staff provision,16.06.2016,5100863794,"4,310.00",Rullion Resource Limited
Manchester City Council,Chief Executives,Agency staff provision,16.06.2016,5100863797,"3,871.00",Capita  Resourcing Ltd
Manchester City Council,Chief Executives,Agency staff provision,16.06.2016,5100863794,"2,350.00",Rullion Resource Limited
Manchester City Council,Chief Executives,Agency staff provision,16.06.2016,5100863077,"1,821.30",Liquid Personnel Ltd
Manchester City Council,Chief Executives,Agency staff provision,16.06.2016,5100863087,"1,306.20",4Social Work Ltd
Manchester City Council,Chief Executives,Agency staff provision,16.06.2016,5100863075,967.75,Medicare First
Manchester City Council,Chief Executives,Agency staff provision,16.06.2016,5100863087,709.08,4Social Work Ltd
Manchester City Council,Chief Executives,Agency staff provision,16.06.2016,5100863087,603.34,4Social Work Ltd
Manchester City Council,Chief Executives,Examination Fees,16.06.2016,5100864566,"6,605.00",ROAR Forensics Ltd
Manchester City Council,Chief Executives,Examination Fees,16.06.2016,5100864561,"1,895.00",ROAR Forensics Ltd
Manchester City Council,Chief Executives,Examination Fees,16.06.2016,5100864558,"1,460.00",ROAR Forensics Ltd
Manchester City Council,Chief Executives,Examination Fees,16.06.2016,5100864563,"1,220.00",ROAR Forensics Ltd
Manchester City Council,Chief Executives,Funeral and coroner related services,16.06.2016,1905151853,"10,024.79",Redacted Personal Information
Manchester City Council,Chief Executives,Funeral and coroner related services,16.06.2016,1905151848,"3,652.66",Gintaras Dumalakas
Manchester City Council,Chief Executives,Funeral and coroner related services,16.06.2016,1905151816,"3,253.59",Redacted Personal Information
Manchester City Council,Chief Executives,Funeral and coroner related services,16.06.2016,1905152961,"2,730.20",Keith Borer Consultants
Manchester City Council,Chief Executives,Funeral and coroner related services,16.06.2016,1905151886,935.20,Redacted Personal Information
Manchester City Council,Chief Executives,I T Provision,16.06.2016,5100864600,"3,300.00",Advanced Legal Solutions Ltd
Manchester City Council,Chief Executives,Postage,16.06.2016,5100864442,"6,209.31",Royal Mail Group Plc
Manchester City Council,Chief Executives,Works and associated costs for Land and Buildings,16.06.2016,5100864567,"16,000.00",AECOM Limited
Manchester City Council,Chief Executives,Works and associated costs for Land and Buildings,16.06.2016,5100864565,"10,000.00",AECOM Limited
Manchester City Council,Regeneration Finance,Car Parking Permits,16.06.2016,5100864307,"3,798.87",National Car Parks Ltd Season Ticke
Manchester City Council,Regeneration Finance,Professional fees,16.06.2016,5100863177,"21,361.58",Turner & Townsend Cost
Manchester City Council,Regeneration Finance,Professional fees,16.06.2016,5100863455,"20,917.38",Turner & Townsend Cost
Manchester City Council,Regeneration Finance,Professional fees,16.06.2016,5100863175,"15,514.20",Turner & Townsend Cost
Manchester City Council,Regeneration Finance,Professional fees,16.06.2016,5100864488,"10,000.00",The Carbon and Energy Fund Ltd
Manchester City Council,Regeneration Finance,Professional fees,16.06.2016,5100863455,"2,574.30",Turner & Townsend Cost
Manchester City Council,Regeneration Finance,Professional fees,16.06.2016,5100863455,"2,037.67",Turner & Townsend Cost
Manchester City Council,Regeneration Finance,Professional fees,16.06.2016,5100862983,"1,500.00",Hoare Lea Fire Engineering
Manchester City Council,Regeneration Finance,Professional fees,16.06.2016,5100864419,571.25,P Mcguinness & Co Ltd
Manchester City Council,Regeneration Finance,Professional fees,16.06.2016,5100864560,"-10,000.00",AECOM Limited
Manchester City Council,Regeneration Finance,Professional fees,16.06.2016,5100864562,"-16,000.00",AECOM Limited
Manchester City Council,Regeneration Finance,Rents,16.06.2016,1905149912,"44,329.00",CBRE Ltd
Manchester City Council,Regeneration Finance,Storage Costs,16.06.2016,5100864550,869.74,Data Space Limited
Manchester City Council,Insurance Fund,Balance of Risks Insurance Premium,16.06.2016,1905152973,680.00,Varna Community Primary School
Manchester City Council,GMIST (Greater Mcr Integrated),Professional fees,16.06.2016,5100858391,"31,349.00",Land Use Consultants
Manchester City Council,GMIST (Greater Mcr Integrated),Professional fees,16.06.2016,1905122321,"6,000.00",Ninian Solutions Limited (Huddle)
Manchester City Council,Manchester Leisure,Equipment,17.06.2016,5100863200,-762.40,Greater Manchester Police
Manchester City Council,Manchester Leisure,Goods purchased for resale in Council outlets,17.06.2016,5100864752,"1,023.12",Museums and Galleries Ltd
Manchester City Council,Manchester Leisure,Goods purchased for resale in Council outlets,17.06.2016,5100864753,601.20,Lagom Design Limited
Manchester City Council,Manchester Leisure,Goods purchased for resale in Council outlets,17.06.2016,5100864606,580.55,Redacted Personal Information
Manchester City Council,Manchester Leisure,Labour Charges,17.06.2016,5100864787,"10,756.06",Greater Manchester Police
Manchester City Council,Manchester Leisure,Professional fees,17.06.2016,5100864573,"61,368.00",Manchester Cathedral Hire Ltd
Manchester City Council,Manchester Leisure,Professional fees,17.06.2016,5100863997,"18,750.00",Water Sculptures Limited
Manchester City Council,Manchester Leisure,Professional fees,17.06.2016,5100864679,"7,616.75",Tarnside Consulting
Manchester City Council,Manchester Leisure,Professional fees,17.06.2016,5100864812,"7,616.75",Tarnside Consulting
Manchester City Council,Manchester Leisure,Professional fees,17.06.2016,5100864304,"1,600.00",Redacted Personal Information
Manchester City Council,Manchester Leisure,Publications,17.06.2016,5100864661,813.24,Askews and Holts
Manchester City Council,Manchester Leisure,Refuse Collection,17.06.2016,1905159397,"1,161.54",Enterprise Manchester TRADE
Manchester City Council,Manchester Leisure,Refuse Collection,17.06.2016,1905159399,"1,110.18",Enterprise Manchester TRADE
Manchester City Council,Hospitality + Trading Services,Cash Collection,17.06.2016,5100864724,"3,166.85",NSL Ltd
Manchester City Council,Hospitality + Trading Services,Cash Collection,17.06.2016,5100864725,"2,029.59",NSL Ltd
Manchester City Council,Hospitality + Trading Services,Catering Provisions,17.06.2016,1905158952,"1,109.12",Brake Bros Foodservice Ltd
Manchester City Council,Hospitality + Trading Services,Catering Provisions,17.06.2016,1905158950,689.02,Brake Bros Foodservice Ltd
Manchester City Council,Hospitality + Trading Services,Catering Provisions,17.06.2016,1905158930,585.65,Brake Bros Foodservice Ltd
Manchester City Council,Hospitality + Trading Services,Payments to Sub-Contractors,17.06.2016,5100864142,"110,472.50",Rosgal Ltd
Manchester City Council,Hospitality + Trading Services,Payments to Sub-Contractors,17.06.2016,5100864597,"43,025.13",Utilities Design & Planning Ltd
Manchester City Council,Hospitality + Trading Services,Refuse Collection,17.06.2016,1905159401,"8,275.12",Enterprise Manchester TRADE
Manchester City Council,Hospitality + Trading Services,Refuse Collection,17.06.2016,1905159402,"3,770.21",Enterprise Manchester TRADE
Manchester City Council,Hospitality + Trading Services,Refuse Collection,17.06.2016,1905159403,"3,416.98",Enterprise Manchester TRADE
Manchester City Council,Hospitality + Trading Services,Refuse Collection,17.06.2016,1905159404,980.57,Enterprise Manchester TRADE
Manchester City Council,Hospitality + Trading Services,Refuse Collection,17.06.2016,1905159415,758.16,Enterprise Manchester TRADE
Manchester City Council,Hospitality + Trading Services,Refuse Collection,17.06.2016,1905159405,646.09,Enterprise Manchester TRADE
Manchester City Council,Hospitality + Trading Services,Refuse Collection,17.06.2016,1905159406,643.85,Enterprise Manchester TRADE
Manchester City Council,Hospitality + Trading Services,Vehicle Fuel Costs,17.06.2016,5100864553,"15,759.00",Carlton Fuels Ltd
Manchester City Council,Hospitality + Trading Services,Vehicle Fuel Costs,17.06.2016,5100864654,"-15,759.00",Carlton Fuels Ltd
Manchester City Council,Hospitality + Trading Services,Vehicle Repairs,17.06.2016,5100864673,840.50,Advanced Vehicle Technicians Ltd
Manchester City Council,Environment and Operations,Agency staff provision,17.06.2016,5100863798,"1,075.80",Kenyon Block Consultants Ltd
Manchester City Council,Adult Social Care,Agency staff provision,17.06.2016,5100864681,"6,738.17",Ashberry Recruitment Ltd
Manchester City Council,Adult Social Care,Agency staff provision,17.06.2016,5100863843,"1,029.81",Routes Healthcare (North) Ltd
Manchester City Council,Adult Social Care,Agency staff provision,17.06.2016,5100863813,967.75,PULSE
Manchester City Council,Adult Social Care,Agency staff provision,17.06.2016,5100863822,718.90,PULSE
Manchester City Council,Adult Social Care,Agency staff provision,17.06.2016,5100864681,705.67,Ashberry Recruitment Ltd
Manchester City Council,Adult Social Care,Agency staff provision,17.06.2016,5100863843,555.51,Routes Healthcare (North) Ltd
Manchester City Council,Adult Social Care,Agency staff provision,17.06.2016,5100864681,529.94,Ashberry Recruitment Ltd
Manchester City Council,Adult Social Care,Bed and Breakfast Accommodation Expenditure,17.06.2016,5100864827,"13,591.59",G & A Taylor Hotels Ltd
Manchester City Council,Adult Social Care,Electricity,17.06.2016,5100864544,"1,233.30",Ashbury Meadow Primary School
Manchester City Council,Adult Social Care,Equipment,17.06.2016,5100864629,"16,640.00",Chroma Therapies Ltd
Manchester City Council,Adult Social Care,Equipment,17.06.2016,5100864620,"2,000.00",After Adoption
Manchester City Council,Adult Social Care,Equipment,17.06.2016,5100864616,"1,995.00",After Adoption
Manchester City Council,Adult Social Care,Equipment,17.06.2016,5100864068,664.00,Sidhil Ltd
Manchester City Council,Adult Social Care,Extra Care Sheltered Housing Payments,17.06.2016,5100864727,716.10,Carewatch Care Service
Manchester City Council,Adult Social Care,Extra Care Sheltered Housing Payments,17.06.2016,5100864788,716.10,Carewatch Care Service
Manchester City Council,Adult Social Care,Funeral and coroner related services,17.06.2016,5100864772,"1,153.00",Funeral Prtnrs t/a Michael Kennedy
Manchester City Council,Adult Social Care,Grant and subscriptions awarded,17.06.2016,5100864745,"4,200.00",Assoc of Dir. of Public Health
Manchester City Council,Adult Social Care,Grant and subscriptions awarded,17.06.2016,5100864065,"2,616.00",Kirklees Council
Manchester City Council,Adult Social Care,Grant and subscriptions awarded,17.06.2016,5100864789,"-4,200.00",Assoc of Dir. of Public Health
Manchester City Council,Adult Social Care,Grant Payments,17.06.2016,5100864745,550.00,Assoc of Dir. of Public Health
Manchester City Council,Adult Social Care,Grant Payments,17.06.2016,5100864789,-550.00,Assoc of Dir. of Public Health
Manchester City Council,Adult Social Care,Home Care ,17.06.2016,5100864632,"1,601.00",Bizzie Kidz Nursery Ltd
Manchester City Council,Adult Social Care,Internal Repairs and Maintenance for buildings,17.06.2016,1905158537,500.00,Happy Homes Uk Ltd
Manchester City Council,Adult Social Care,Payments for services,17.06.2016,5100864487,"1,920.00",One Education Ltd
Manchester City Council,Adult Social Care,Professional fees,17.06.2016,5100864770,"320,000.00",One Education Ltd
Manchester City Council,Adult Social Care,Professional fees,17.06.2016,5100864805,"19,800.00",One Education Ltd
Manchester City Council,Adult Social Care,Refuse Collection,17.06.2016,1905159407,781.76,Enterprise Manchester TRADE
Manchester City Council,Adult Social Care,Rents,17.06.2016,5100864757,"29,413.21",M & Q Properties Management Ltd
Manchester City Council,Adult Social Care,Rents,17.06.2016,5100864683,"21,053.70",United Property Management Ltd
Manchester City Council,Adult Social Care,Rents,17.06.2016,1905157188,600.00,Happy Homes Uk Ltd
Manchester City Council,Adult Social Care,Rents,17.06.2016,1905157194,600.00,Happy Homes Uk Ltd
Manchester City Council,Adult Social Care,Signers/Interpreters Fees,17.06.2016,5100864066,"1,943.80",Interpreter Booking Services
Manchester City Council,Adult Social Care,Storage Costs,17.06.2016,5100864612,"2,681.38",PHS Records Management
Manchester City Council,Adult Social Care,Storage Costs,17.06.2016,5100864614,"1,670.40",PHS Records Management
Manchester City Council,Adult Social Care,Third party payments relating to Voluntary Organisations,17.06.2016,5100864454,"14,763.75",George House Trust
Manchester City Council,Adult Social Care,Third party payments relating to Voluntary Organisations,17.06.2016,5100864785,"2,998.25",One Education Ltd
Manchester City Council,Adult Social Care,Third party payments relating to Voluntary Organisations,17.06.2016,5100864195,"2,250.00",Trinity House Community Resource Ce
Manchester City Council,Adult Social Care,Third party payments relating to Voluntary Organisations,17.06.2016,5100864758,"1,520.25",4CT Limited
Manchester City Council,Adult Social Care,Third party payments relating to Voluntary Organisations,17.06.2016,5100864817,750.00,Hulme Community Garden Centre
Manchester City Council,Adult Social Care,Third party payments relating to Voluntary Organisations,17.06.2016,5100864818,750.00,Hulme Community Garden Centre
Manchester City Council,Adult Social Care,Third party payments to other Local Authorities,17.06.2016,5100864730,"4,639.43",Cheadle Hulme High School
Manchester City Council,Adult Social Care,Training and Development,17.06.2016,5100864052,"1,600.00",Wythenshawe Community Church
Manchester City Council,Adult Social Care,Training and Development,17.06.2016,5100864669,"1,194.00",Ncfe
Manchester City Council,Adult Social Care,Transport Coach Hire,17.06.2016,5100864326,"2,040.00",Hastings Private Hire
Manchester City Council,Adult Social Care,Transport Coach Hire,17.06.2016,5100864329,"1,755.00",Hastings Private Hire
Manchester City Council,Adult Social Care,Transport Coach Hire,17.06.2016,5100864265,"1,700.00",Hastings Private Hire
Manchester City Council,Adult Social Care,Transport Coach Hire,17.06.2016,5100864327,"1,700.00",Hastings Private Hire
Manchester City Council,Adult Social Care,Transport Coach Hire,17.06.2016,5100864263,"1,653.00",Hastings Private Hire
Manchester City Council,Adult Social Care,Transport Coach Hire,17.06.2016,5100864277,"1,167.30",Hastings Private Hire
Manchester City Council,Adult Social Care,Transport Coach Hire,17.06.2016,5100864266,640.00,Hastings Private Hire
Manchester City Council,Adult Social Care,Transport Coach Hire,17.06.2016,5100864269,640.00,Hastings Private Hire
Manchester City Council,Adult Social Care,Transport Coach Hire,17.06.2016,5100864658,570.00,Hastings Private Hire
Manchester City Council,Adult Social Care,Transport Coach Hire,17.06.2016,5100864324,561.20,Hastings Private Hire
Manchester City Council,Adult Social Care,Compensation Payments,17.06.2016,1905152990,"8,500.00",Simpson Millar Solicitors LLP
Manchester City Council,Corporate Services,Audit Commission Fees,17.06.2016,5100864479,"51,791.75",Grant Thornton Uk LLP
Manchester City Council,Corporate Services,Long Term Debtors,17.06.2016,5100864938,"3,808,664.89",W B Developments (Salford) Ltd
Manchester City Council,Housing Revenue Account,Council Dwelling Adaptations,17.06.2016,5100864649,"14,162.31",Warmer Energy Services Ltd
Manchester City Council,Housing Revenue Account,Council Dwelling Adaptations,17.06.2016,5100864644,"8,326.45",Technology Solutions Ltd
Manchester City Council,Housing Revenue Account,Council Dwelling Adaptations,17.06.2016,5100864840,"5,515.85",Wrekin Windows
Manchester City Council,Housing Revenue Account,Council Dwelling Adaptations,17.06.2016,5100864838,"2,746.80",Northwards Housing Limited
Manchester City Council,Housing Revenue Account,Council Dwelling Adaptations,17.06.2016,5100864838,"1,364.20",Northwards Housing Limited
Manchester City Council,Housing Revenue Account,Council Dwelling Adaptations,17.06.2016,5100864839,533.37,Wrekin Windows
Manchester City Council,Chief Executives,Agency staff provision,17.06.2016,5100864676,"14,285.95",Sellick Partnership (Legal) Ltd
Manchester City Council,Chief Executives,Agency staff provision,17.06.2016,5100863826,"13,300.00",Laudale Associates Limited
Manchester City Council,Chief Executives,Agency staff provision,17.06.2016,5100863818,"10,946.00",Laudale Associates Limited
Manchester City Council,Chief Executives,Agency staff provision,17.06.2016,5100863826,"8,426.25",Laudale Associates Limited
Manchester City Council,Chief Executives,Agency staff provision,17.06.2016,5100864506,"7,771.10",Semester Recruitment Ltd
Manchester City Council,Chief Executives,Agency staff provision,17.06.2016,5100863843,"5,156.47",Routes Healthcare (North) Ltd
Manchester City Council,Chief Executives,Agency staff provision,17.06.2016,5100864676,"4,362.98",Sellick Partnership (Legal) Ltd
Manchester City Council,Chief Executives,Agency staff provision,17.06.2016,5100864681,"3,563.07",Ashberry Recruitment Ltd
Manchester City Council,Chief Executives,Agency staff provision,17.06.2016,5100863852,"2,247.00",Laudale Associates Limited
Manchester City Council,Chief Executives,Agency staff provision,17.06.2016,5100864676,"1,825.60",Sellick Partnership (Legal) Ltd
Manchester City Council,Chief Executives,Agency staff provision,17.06.2016,5100864676,"1,391.20",Sellick Partnership (Legal) Ltd
Manchester City Council,Chief Executives,Agency staff provision,17.06.2016,5100864676,"1,121.00",Sellick Partnership (Legal) Ltd
Manchester City Council,Chief Executives,Agency staff provision,17.06.2016,5100864676,"1,101.60",Sellick Partnership (Legal) Ltd
Manchester City Council,Chief Executives,Agency staff provision,17.06.2016,5100864676,805.00,Sellick Partnership (Legal) Ltd
Manchester City Council,Chief Executives,Agency staff provision,17.06.2016,5100864677,-805.00,Sellick Partnership (Legal) Ltd
Manchester City Council,Chief Executives,Agency staff provision,17.06.2016,5100864677,"-1,101.60",Sellick Partnership (Legal) Ltd
Manchester City Council,Chief Executives,Agency staff provision,17.06.2016,5100864677,"-1,121.00",Sellick Partnership (Legal) Ltd
Manchester City Council,Chief Executives,Agency staff provision,17.06.2016,5100864677,"-1,391.20",Sellick Partnership (Legal) Ltd
Manchester City Council,Chief Executives,Agency staff provision,17.06.2016,5100864677,"-1,825.60",Sellick Partnership (Legal) Ltd
Manchester City Council,Chief Executives,Agency staff provision,17.06.2016,5100864677,"-4,362.98",Sellick Partnership (Legal) Ltd
Manchester City Council,Chief Executives,Agency staff provision,17.06.2016,5100864677,"-14,285.95",Sellick Partnership (Legal) Ltd
Manchester City Council,Chief Executives,AGMA Contributions,17.06.2016,5100864774,"1,821,561.00",GMCA
Manchester City Council,Chief Executives,Hire of Equipment,17.06.2016,5100864556,759.00,Pakflatt (UK) Ltd
Manchester City Council,Chief Executives,Postage,17.06.2016,5100864666,"1,000.04",Electoral Reform Services Ltd
Manchester City Council,Chief Executives,Printing,17.06.2016,5100862589,643.00,Allied Publicity Serv.(Manchester)
Manchester City Council,Chief Executives,Printing,17.06.2016,5100864607,-643.00,Allied Publicity Serv.(Manchester)
Manchester City Council,Chief Executives,Training and Development,17.06.2016,5100864048,"1,116.80",Capita Business Services Ltd
Manchester City Council,Chief Executives,Compensation Payments,17.06.2016,5100864621,"1,000.00",DWF LLP
Manchester City Council,Chief Executives,Compensation Payments,17.06.2016,5100864665,"1,500.00",Exchange Chambers
Manchester City Council,Regeneration Finance,Grant Payments,17.06.2016,5100864431,"2,500.00",Castlefield Gallery Limited
Manchester City Council,Regeneration Finance,Internal Repairs and Maintenance for buildings,17.06.2016,5100864657,985.00,Manchester Working Ltd
Manchester City Council,Regeneration Finance,Professional fees,17.06.2016,1905159496,"180,000.00",Clarendon Homes Ltd
Manchester City Council,Regeneration Finance,Professional fees,17.06.2016,5100864427,"50,351.75",Jacobs UK Ltd
Manchester City Council,Regeneration Finance,Professional fees,17.06.2016,5100864489,"10,000.00",The Carbon and Energy Fund Ltd
Manchester City Council,Regeneration Finance,Professional fees,17.06.2016,5100864675,"5,279.00",Airborne Environmental Consultants
Manchester City Council,Regeneration Finance,Professional fees,17.06.2016,5100864420,"5,112.90",Jacobs UK Ltd
Manchester City Council,Regeneration Finance,Professional fees,17.06.2016,5100863066,954.93,Mpulse Ltd
Manchester City Council,Regeneration Finance,Professional fees,17.06.2016,5100864674,756.00,Airborne Environmental Consultants
Manchester City Council,Regeneration Finance,Refuse Collection,17.06.2016,1905159409,820.64,Enterprise Manchester TRADE
Manchester City Council,Regeneration Finance,Storage Costs,17.06.2016,5100864829,536.26,Data Space Limited
Manchester City Council,General Fund,Levies - Cash Limit,19.06.2016,1905094380,"48,980.25",Environment Agency
Manchester City Council,Manchester Leisure,Agency staff provision,20.06.2016,5100863840,"5,936.34",Osborne Richardson
Manchester City Council,Manchester Leisure,Agency staff provision,20.06.2016,5100864978,"3,000.00",4CT Limited
Manchester City Council,Manchester Leisure,Goods purchased for resale in Council outlets,20.06.2016,5100864914,"1,107.43",Littlehampton Book Services Ltd
Manchester City Council,Manchester Leisure,Goods purchased for resale in Council outlets,20.06.2016,5100864920,"1,095.44",Littlehampton Book Services Ltd
Manchester City Council,Manchester Leisure,Grant Payments,20.06.2016,5100864958,"1,938.00",Wythenshawe Oasis
Manchester City Council,Manchester Leisure,Grant Payments,20.06.2016,1905152981,951.02,GMCVO
Manchester City Council,Manchester Leisure,Library Materials Acquisition,20.06.2016,1905151752,"16,768.00",Mintel Ltd
Manchester City Council,Manchester Leisure,Library Materials Acquisition,20.06.2016,1905151754,"1,345.48",Askews and Holts
Manchester City Council,Manchester Leisure,Payments for services,20.06.2016,5100864759,648.00,The Fitness Training Academy Ltd
Manchester City Council,Manchester Leisure,Payments to Sub-Contractors,20.06.2016,5100864868,"1,575.00",Groundwork Landscapes Ltd
Manchester City Council,Manchester Leisure,Professional fees,20.06.2016,5100864945,"4,000.00",Redacted Personal Information
Manchester City Council,Manchester Leisure,Professional fees,20.06.2016,5100864243,"2,100.00",Sportserve Ltd
Manchester City Council,Manchester Leisure,Professional fees,20.06.2016,5100864952,954.00,NAD Services & Consultancy Ltd
Manchester City Council,Manchester Leisure,Refuse Collection,20.06.2016,5100864288,"21,176.00",Biffa Municipal Limited
Manchester City Council,Manchester Leisure,Refuse Collection,20.06.2016,5100864292,"18,750.00",Biffa Municipal Limited
Manchester City Council,Manchester Leisure,Refuse Collection,20.06.2016,5100864247,833.33,Biffa Municipal Limited
Manchester City Council,Manchester Leisure,Variation Orders,20.06.2016,5100864289,"9,000.00",Biffa Municipal Limited
Manchester City Council,Manchester Leisure,Works Health and Safety related,20.06.2016,5100864498,"1,905.00",Fairway Landscapes Ltd
Manchester City Council,Hospitality + Trading Services,Agency staff provision,20.06.2016,5100863870,745.15,Search Consultancy Ltd
Manchester City Council,Hospitality + Trading Services,Building Materials for direct delivery,20.06.2016,5100864810,"4,976.28",William Smith Sons (Barnard Castle)
Manchester City Council,Hospitality + Trading Services,Building Materials for direct delivery,20.06.2016,5100864570,"2,916.00",Hitex Traffic safety Ltd
Manchester City Council,Hospitality + Trading Services,Building Materials for direct delivery,20.06.2016,1905160636,565.60,Ecomix Concrete Ltd
Manchester City Council,Hospitality + Trading Services,Catering Provisions,20.06.2016,1905160600,721.33,Brake Bros Foodservice Ltd
Manchester City Council,Hospitality + Trading Services,Catering Provisions,20.06.2016,1905160602,681.56,Brake Bros Foodservice Ltd
Manchester City Council,Hospitality + Trading Services,Catering Provisions,20.06.2016,1905160634,630.49,Brake Bros Foodservice Ltd
Manchester City Council,Hospitality + Trading Services,Catering Provisions,20.06.2016,1905160622,607.64,Brake Bros Foodservice Ltd
Manchester City Council,Hospitality + Trading Services,Catering Provisions,20.06.2016,1905160550,595.20,Brake Bros Foodservice Ltd
Manchester City Council,Hospitality + Trading Services,Catering Provisions,20.06.2016,1905160626,533.33,Brake Bros Foodservice Ltd
Manchester City Council,Hospitality + Trading Services,Contract Cleaning External,20.06.2016,5100864310,"1,200.00",Biffa Municipal Limited
Manchester City Council,Hospitality + Trading Services,Hire of Equipment,20.06.2016,5100864864,"1,058.00",Ashtead Plant Hire
Manchester City Council,Hospitality + Trading Services,Hire of Equipment,20.06.2016,5100864890,"1,012.00",Ashtead Plant Hire
Manchester City Council,Hospitality + Trading Services,Hire of Equipment,20.06.2016,5100864856,966.00,Ashtead Plant Hire
Manchester City Council,Hospitality + Trading Services,Hire of Equipment,20.06.2016,5100864861,966.00,Ashtead Plant Hire
Manchester City Council,Hospitality + Trading Services,Hire of Equipment,20.06.2016,5100864879,966.00,Ashtead Plant Hire
Manchester City Council,Hospitality + Trading Services,Hire of Equipment,20.06.2016,5100864940,715.00,Parkeon Ltd
Manchester City Council,Hospitality + Trading Services,Hire of Machinery,20.06.2016,5100864932,"1,299.50",R & M Developments Ltd
Manchester City Council,Hospitality + Trading Services,Hire of Machinery,20.06.2016,5100864935,"1,195.10",R & M Developments Ltd
Manchester City Council,Hospitality + Trading Services,Hire of Machinery,20.06.2016,5100864936,"1,012.50",R & M Developments Ltd
Manchester City Council,Hospitality + Trading Services,I T Provision,20.06.2016,5100864318,"6,000.00",Siemens Plc
Manchester City Council,Hospitality + Trading Services,Payments to Sub-Contractors,20.06.2016,5100864443,"2,221.02",Rosgal Ltd
Manchester City Council,Hospitality + Trading Services,Payments to Sub-Contractors,20.06.2016,5100864146,545.00,Rosgal Ltd
Manchester City Council,Hospitality + Trading Services,Vehicle Fuel Costs,20.06.2016,5100864859,"15,851.98",Carlton Fuels Ltd
Manchester City Council,Hospitality + Trading Services,Vehicle Hire Costs,20.06.2016,5100864903,"1,700.00",Peter Douglass Platforms
Manchester City Council,Hospitality + Trading Services,Vehicle Hire Costs,20.06.2016,5100864904,"1,200.00",Peter Douglass Platforms
Manchester City Council,Hospitality + Trading Services,Vehicle Repairs,20.06.2016,5100864672,"1,948.40",Advanced Vehicle Technicians Ltd
Manchester City Council,Hospitality + Trading Services,Vehicle Repairs,20.06.2016,5100864853,"1,236.35",LDS Motor Bodies Ltd
Manchester City Council,Hospitality + Trading Services,Vehicle Repairs,20.06.2016,5100864851,529.33,LDS Motor Bodies Ltd
Manchester City Council,Environment and Operations,I T Provision,20.06.2016,5100864771,696.00,Resolute Systems (UK) Ltd
Manchester City Council,Environment and Operations,Payments to Sub-Contractors,20.06.2016,5100864449,"1,250.00",Redacted Personal Information
Manchester City Council,Environment and Operations,Vehicle Fuel Costs,20.06.2016,5100864596,813.20,Carlton Fuels Ltd
Manchester City Council,Adult Social Care,Agency staff provision,20.06.2016,5100863847,"3,819.75",P S Recruitment Specialists Ltd
Manchester City Council,Adult Social Care,Agency staff provision,20.06.2016,5100864414,"2,673.00",Medicare First
Manchester City Council,Adult Social Care,Agency staff provision,20.06.2016,5100863917,"2,288.30",Capita  Resourcing Ltd
Manchester City Council,Adult Social Care,Agency staff provision,20.06.2016,5100864414,"2,056.60",Medicare First
Manchester City Council,Adult Social Care,Agency staff provision,20.06.2016,5100863865,"1,976.98",Liquid Personnel Ltd
Manchester City Council,Adult Social Care,Agency staff provision,20.06.2016,5100864414,"1,935.50",Medicare First
Manchester City Council,Adult Social Care,Agency staff provision,20.06.2016,5100863865,"1,935.50",Liquid Personnel Ltd
Manchester City Council,Adult Social Care,Agency staff provision,20.06.2016,5100863865,"1,935.50",Liquid Personnel Ltd
Manchester City Council,Adult Social Care,Agency staff provision,20.06.2016,5100863829,"1,838.73",Sanctuary Social Care
Manchester City Council,Adult Social Care,Agency staff provision,20.06.2016,5100863829,"1,519.00",Sanctuary Social Care
Manchester City Council,Adult Social Care,Agency staff provision,20.06.2016,5100863870,"1,220.23",Search Consultancy Ltd
Manchester City Council,Adult Social Care,Agency staff provision,20.06.2016,5100863917,"1,168.30",Capita  Resourcing Ltd
Manchester City Council,Adult Social Care,Agency staff provision,20.06.2016,5100864408,"1,168.30",Capita  Resourcing Ltd
Manchester City Council,Adult Social Care,Agency staff provision,20.06.2016,5100863829,"1,124.10",Sanctuary Social Care
Manchester City Council,Adult Social Care,Agency staff provision,20.06.2016,5100863847,"1,110.64",P S Recruitment Specialists Ltd
Manchester City Council,Adult Social Care,Agency staff provision,20.06.2016,5100863865,"1,049.30",Liquid Personnel Ltd
Manchester City Council,Adult Social Care,Agency staff provision,20.06.2016,5100863865,"1,023.05",Liquid Personnel Ltd
Manchester City Council,Adult Social Care,Agency staff provision,20.06.2016,5100863917,967.75,Capita  Resourcing Ltd
Manchester City Council,Adult Social Care,Agency staff provision,20.06.2016,5100864408,967.75,Capita  Resourcing Ltd
Manchester City Council,Adult Social Care,Agency staff provision,20.06.2016,5100863829,967.75,Sanctuary Social Care
Manchester City Council,Adult Social Care,Agency staff provision,20.06.2016,5100863865,967.75,Liquid Personnel Ltd
Manchester City Council,Adult Social Care,Agency staff provision,20.06.2016,5100863870,940.10,Search Consultancy Ltd
Manchester City Council,Adult Social Care,Agency staff provision,20.06.2016,5100863829,920.00,Sanctuary Social Care
Manchester City Council,Adult Social Care,Agency staff provision,20.06.2016,5100863847,871.76,P S Recruitment Specialists Ltd
Manchester City Council,Adult Social Care,Agency staff provision,20.06.2016,5100863865,774.20,Liquid Personnel Ltd
Manchester City Council,Adult Social Care,Agency staff provision,20.06.2016,5100864395,657.32,SRA Cover Staff Ltd
Manchester City Council,Adult Social Care,Agency staff provision,20.06.2016,5100863917,603.75,Capita  Resourcing Ltd
Manchester City Council,Adult Social Care,Bed and Breakfast Accommodation Expenditure,20.06.2016,5100864849,"8,510.00",Weaste Hotel
Manchester City Council,Adult Social Care,Bed and Breakfast Accommodation Expenditure,20.06.2016,5100864845,"7,540.00",Redacted Personal Information
Manchester City Council,Adult Social Care,Bed and Breakfast Accommodation Expenditure,20.06.2016,5100864848,"7,530.00",Weaste Hotel
Manchester City Council,Adult Social Care,Bed and Breakfast Accommodation Expenditure,20.06.2016,5100864847,"7,000.00",Weaste Hotel
Manchester City Council,Adult Social Care,Contract Cleaning Internal,20.06.2016,5100864896,"1,372.58",The Manchester College
Manchester City Council,Adult Social Care,Electricity,20.06.2016,5100864893,"5,278.40",The Manchester College
Manchester City Council,Adult Social Care,Equipment,20.06.2016,5100864806,"3,243.22",Computeam Limited
Manchester City Council,Adult Social Care,Equipment,20.06.2016,5100864615,"3,137.72",Computeam Limited
Manchester City Council,Adult Social Care,Equipment,20.06.2016,5100864645,"1,882.82",Clofield Ltd
Manchester City Council,Adult Social Care,Equipment,20.06.2016,5100864974,"1,450.00",Ultimate Healthcare
Manchester City Council,Adult Social Care,Equipment,20.06.2016,5100864969,845.00,Aidapt Bathrooms Ltd
Manchester City Council,Adult Social Care,Gas,20.06.2016,5100864325,"11,481.38",Manchester School Services Limited
Manchester City Council,Adult Social Care,Gas,20.06.2016,5100864328,"6,703.90",Manchester School Services Limited
Manchester City Council,Adult Social Care,Gas,20.06.2016,5100864893,817.86,The Manchester College
Manchester City Council,Adult Social Care,Grant and subscriptions awarded,20.06.2016,5100864970,"12,500.00",Manchester Womens Aid
Manchester City Council,Adult Social Care,Grant and subscriptions awarded,20.06.2016,5100864954,"9,905.00",Women in Prison Limited
Manchester City Council,Adult Social Care,Hire of Premises,20.06.2016,5100864893,"12,202.84",The Manchester College
Manchester City Council,Adult Social Care,Hire of Premises,20.06.2016,5100864950,900.00,Northmoor Community Association
Manchester City Council,Adult Social Care,I T Provision,20.06.2016,5100864204,"3,779.56",Computeam Limited
Manchester City Council,Adult Social Care,Payments for services,20.06.2016,5100864295,"9,000.00",Pact
Manchester City Council,Adult Social Care,Payments for services,20.06.2016,5100864953,737.00,Hopwood Hall College
Manchester City Council,Adult Social Care,Payments for services,20.06.2016,5100864843,624.75,H.G. Care Services Ltd
Manchester City Council,Adult Social Care,Private Finance and Public Private partnership initiatives,20.06.2016,5100864323,"383,155.42",Manchester School Services Limited
Manchester City Council,Adult Social Care,Professional fees,20.06.2016,5100864784,"2,998.25",One Education Ltd
Manchester City Council,Adult Social Care,Professional fees,20.06.2016,5100864942,"2,070.00",Liquid Personnel Ltd
Manchester City Council,Adult Social Care,Rents,20.06.2016,5100864893,"36,590.75",The Manchester College
Manchester City Council,Adult Social Care,Rents,20.06.2016,5100864900,"12,402.08",Mack Residential Letting Ltd
Manchester City Council,Adult Social Care,Subsistence and Conference Expenses,20.06.2016,5100865001,"1,000.00",Hideaway Youth Project
Manchester City Council,Adult Social Care,Supporting People Payments,20.06.2016,5100864852,"27,734.73",Manchester Womens Aid
Manchester City Council,Adult Social Care,Supporting People Payments,20.06.2016,5100864967,"27,734.73",Manchester Womens Aid
Manchester City Council,Adult Social Care,Supporting People Payments,20.06.2016,5100864811,"13,673.73",Great Places Housing Association
Manchester City Council,Adult Social Care,Supporting People Payments,20.06.2016,5100864815,"13,673.73",Great Places Housing Association
Manchester City Council,Adult Social Care,Supporting People Payments,20.06.2016,5100864852,"12,800.50",Manchester Womens Aid
Manchester City Council,Adult Social Care,Supporting People Payments,20.06.2016,5100864967,"12,800.50",Manchester Womens Aid
Manchester City Council,Adult Social Care,Supporting People Payments,20.06.2016,5100863988,"11,272.16",People First Housing Association
Manchester City Council,Adult Social Care,Supporting People Payments,20.06.2016,5100864819,"10,761.25",Great Places Housing Association
Manchester City Council,Adult Social Care,Supporting People Payments,20.06.2016,5100864821,"10,761.25",Great Places Housing Association
Manchester City Council,Adult Social Care,Supporting People Payments,20.06.2016,5100864811,"10,572.75",Great Places Housing Association
Manchester City Council,Adult Social Care,Supporting People Payments,20.06.2016,5100864815,"10,572.75",Great Places Housing Association
Manchester City Council,Adult Social Care,Supporting People Payments,20.06.2016,5100864811,"8,979.99",Great Places Housing Association
Manchester City Council,Adult Social Care,Supporting People Payments,20.06.2016,5100864815,"8,979.99",Great Places Housing Association
Manchester City Council,Adult Social Care,Supporting People Payments,20.06.2016,5100864576,"4,980.00",Irwell Valley Housing Association
Manchester City Council,Adult Social Care,Supporting People Payments,20.06.2016,5100864811,"4,864.66",Great Places Housing Association
Manchester City Council,Adult Social Care,Supporting People Payments,20.06.2016,5100864815,"4,864.66",Great Places Housing Association
Manchester City Council,Adult Social Care,Supporting People Payments,20.06.2016,5100863401,"4,200.75",Praxis Care Group
Manchester City Council,Adult Social Care,Third party payments relating to Voluntary Organisations,20.06.2016,5100864999,"75,261.50",The Big Life Company
Manchester City Council,Adult Social Care,Third party payments relating to Voluntary Organisations,20.06.2016,5100864692,"10,000.00",Just Psychology CIC
Manchester City Council,Adult Social Care,Third party payments relating to Voluntary Organisations,20.06.2016,5100864682,"1,166.74",Wythenshawe Community Initiative
Manchester City Council,Adult Social Care,Third party payments relating to Voluntary Organisations,20.06.2016,5100865052,750.00,Simply Cycling - Wyth Wheelers
Manchester City Council,Childrens Services,Works and associated costs for Land and Buildings,20.06.2016,5100864888,"2,281,883.00",Laing O'Rourke Construction Ltd
